Workbook

Sheet CoverSheet
A3: Electricity Distribution Business
A4: Price-Quality Regulation 1 April 2020 DPP Reset
A5: MAR waterfall model (draft to final)
A6: Final determination
A17: For publication 27 November 2019

Sheet Description
A1: Description
B2: This Excel workbook is one of a suite of models that accompanies the final determination of the default price-quality path for electricity distribution 2020-2025.
A4: Method for creating this model
B5: 1 | C5: This model has been adapted from the MAR waterfall model that shows the changes from the 2015 EDB reset decision to the DPP3 Final models.
B6: =B5+1 -> 2 | C6: Panel D (starting at AM10) in the Inputs sheet has been populated with values from the draft decision financial model inputs sheet.
B7: =B6+1 -> 3 | C7: Changes have been made to the Waterfall sheet and Reconciliation sheet to include Orion, which had not been able to be included in the
C8: waterfall model from the 2015 EDB reset decision to the Final decision models.
B9: 4 | C9: The sheet "DetailsOfChanges" has been added, which displays for a chosen EDB a chart similar to the charts on the WfallCht sheet but with
C10: the minimum and maximum values of vertical axis restricted to 85% to 110%. The chart includes data labels to show the numerical value of
C11: each of the rises and falls of the waterfall.
A12: Purpose
B13: This waterfall model produces a waterfall chart for each of 15 non-exempt EDB to show a breakdown of the drivers of the change in the building blocks allowable revenue (BBAR) from the draft decision to the Final decision models. A waterfall chart for each of the 15 EDBs is on the 'WaterfallCht' sheet. There is also a chart for the totals for the 15 EDBs. There are waterfall charts for only 15 of the 17 non-exempt EDBs. This is because the comparison of the DPP values between the draft and the final models is only meaningful if the EDB is on a default price path for the 2020 EDB reset. Wellington Electricity and Powerco do not feature as they are on CPPs.
A16: Overview of model structure
B17: 1 | C17: This model incorporates a copy of much of the 2015 EDB DPP reset financial model. The sheets from 'Inputs' to 'MAR' are the copied sheets.
B18: 2 | C18: The modifications extend the capability of the 2015 model to take into account accelerated depreciation. With this modification, the copied sheets can perform the calculations for the 2020 reset.
B19: 3 | C19: The model inputs include both the set of inputs used for the draft decision and the set used for the 2020 reset. When all the draft decision inputs are used, then the results reconcile with the Draft decision financial model. When the final inputs are used, the results reconcile with the final financial model. The reconciliation is demonstrated on the Reconciliation sheet.
B20: 4 | C20: For each EDB, the model recalculates the MAR values for 15 different sets of input data, each of these 15 sets being a combination of input data from the Draft decision for some inputs and input data from the Final decision for the rest of the data. Arranging the sequence of these data combinations allows for the impact of various inputs to be determined for the waterfall charts.
B21: 5 | C21: We discuss the 15 sets of input data combinations below in the context of the waterfall chart for one EDB.
A23: Waterfall chart
C24: The chart below is an example of the waterfall charts that this model prepares for each non-exempt EDB. A full set of 15 charts is available on the sheet 'WfallCht' plus a chart for the totals of the 15 EDBs.
B50: 6 | C50: The chart starts at its left hand with the brown column, indicating the value of the draft decision MAR (ie the MAR for the first year of the 2020 EDB reset as calculated for the draft decision) as 100%. All subsequent MAR values shown in the chart are relative to this value.
B51: 7 | C51: The chart ends at its right hand end with another brown column, this one indicating the 2020/21 MAR for the Final decision. Between these 2 columns, there are a series of rises and falls, indicating the impact of the various input categories listed along the x axis.
B52: 8 | C52: Consider, for example, the green rise column above the word 'Opex' on the x axis. The lower edge of this rise indicates the MAR if all the inputs for the parameters listed to the left of this Opex rise are at their Final decision values. These parameters are: CPI for revals; RAB, Depn; Tax; Capex and Disposals. The Opex values themselves will be set to their draft decision values for this MAR value, as will all the other parameters to the right of the Opex rise. The MAR represented by the upper edge of the Opex rise will reflect the same input values as the lower edge, except that the Final decision Opex values will be used. The height of the green rise therefore represents the impact of the change in opex forecasts from the Draft decision to the Final decision.
C53: Input categories
C54: The 15 input data categories are listed below, with commentary for some categories. The numbers in the "Mode" column below indicate the mode number used on Row 4 and Column D of the Inputs sheet to manage whether Draft decision data or Final decision data is used for the category. Note that there is a Mode 0.
B55: Mode
B56: 0 | C56: Draft decision financial model inputs All inputs in Mode Zero are the same as for the Draft decision financial model.
B57: 1 | C57: CPI for revals This is the forecast change in CPI from one quarter to the quarter 1 year later, and is used for calculating CPI indexed revaluations. There is just one row of inputs in the Inputs sheet for this category, being the one with the row heading "Forecast change in CPI used for revaluations".
B58: 2 | C58: RAB, Depn Six rows of inputs are in this category, the main ones being Opening RAB, Total depreciation and Closing RAB. These are all for the base year. The impact of these inputs is entirely driven by information disclosure data and input methodologies, so there is no impact from Commission decisions taken as part of the 2020 reset. The opening RAB divided by total depreciation gives the average remaining life for existing assets, so is a key determinant of the depreciation building block. The Closing RAB for the base year is the key determinant of the starting RAB at the start of the regulatory period, and so is in turn a key determinant of the return on the RAB and depreciation throughout the regulatory period.
B59: 3 | C59: Tax Five rows of inputs are in this category, being Opening RAB excluding revaluations, Adjusted depreciation, Tax depreciation, Opening regulatory tax asset value and Amortisation of initial differences in asset values. The Tax depreciation divided by the Opening regulatory tax asset value determines the effective average diminishing value depreciation rate for the base year, and this rate is used for determining the tax depreciation throughout the regulatory period. The other three input parameters are used to account for amortisations of differences between regulatory tax and cash tax. Rises and falls for this 'Tax' category do not reflect all the changes in the tax allowance building block. That building block will be strongly driven by the BBAR, which is an output of financial modelling rather than an input.
B60: 4 | C60: Capex Seven rows of inputs are in this category, being the panel of data of capex for the 5 years of the regulatory period plus two prior years.
B61: 5 | C61: Disposed assets Seven rows of inputs are in this category, being the panel of data of Disposed assets for the 5 years of the regulatory period plus two prior years.
B62: 6 | C62: Operating expenditure Seven rows of inputs are in this category, being the panel of data of Operating expenditure for the 5 years of the regulatory period plus two prior years.
B63: 7 | C63: Other regulated income Seven rows of inputs are in this category, being the panel of data of Other regulated income for the 5 years of the regulatory period plus two prior years. Other regulated income was accounted for in the Draft decision and the Final decision by setting the Other Regulated Income to nil. For the 2020 reset, the revenue cap with wash-up process will take account of actual values of other regulated income, and no forecast value will be used when setting the price path.
B64: 8 | C64: TCSD (Term Credit Spread Differential) This is a one row category.
B65: 9 | C65: Add. Allow. (Additional allowance) This is a one row category. The value has been set to nil for all EDBs for both the Draft decision and the Final decision.
B66: 10 | C66: WACC (Vanilla WACC (67th percentile)) This is a single value input. It is a strong determinant of the return on capital building block.
B67: 11 | C67: Accel'ed Depn (Adjustment factor (for accelerated depreciation)) This is a one row category. It relates to a mechanism from the 2016 input methodology review for an EDB to apply for an acceleration of the depreciation of its 'existing assets'. The provision for accelerated deprecation did not exist for the 2015 reset, so an additional row has been added to the Inputs sheet to allow for this. The values entered for the Draft decision were nil, and as the Final decision does not reflect any policy decisions they are also set to nil for the Final decision.
B68: 12 | C68: CPI, price path (Forecast changes in the CPI element of the price path) This is the forecast change in CPI from one year to the next and is used for calculating the CPI indexation of the price path. There is just one row of inputs in the Inputs sheet for this category, being the one with the row heading "Forecast change in CPI used for revaluations". This CPI change parameter is calculated differently from the 'CPI for revals', in that this calculation is based on the sum of 4 consecutive CPI values divided by the sum of the 4 consecutive CPI values from one year earlier.
B69: 13 | C69: CPRG (Constant price revenue growth) Seven rows of inputs are in this category, being the panel of data of CPRG for the 5 years of the regulatory period plus two prior years. CPRG was taken into account in the 2015 reset in calculating the profile of the price path. This was because the form of control used at the time of that reset was a weighted average price path. That price path took account of the forecast CPRG values. The form of control was changed to a revenue cap as part of the 2016 input methodologies review, and this means that CPRG will no longer be required for setting the price path. We account for this change in the form of control in this waterfall model by setting the CPRG forecast value for both the Draft decision and the Final decision to nil. This setting of CPRG to nil is a work-around to make the core calculation process of this model (ie the 2015 reset financial model process) reflect a revenue cap rather than a weighted average price cap. A CPRG model forms part of suite of models released with the Draft decision, but that model has no impact on the setting of the final price path. It is only used to estimate DPP2 2020/21 revenues, which continue to be subject to a weighted average price cap.
B70: 14 | C70: X (for CPI-X) Two rows are in this category, being Industry-wide X factor and Alternative X factor. A non-zero X can have a significant impact on MAR values, but has no impact on BBAR values.
A72: Inputs sheet & overall operation of this workbook
B74: 1 | C74: The inputs sheet is an adaptation of the Inputs sheet of the 2015 DPP reset financial model on which this workbook is based. It includes all the inputs to this workbook, together with a significant amount of the processing required to produce the waterfall charts.
B75: 2 | C75: The sheet is divided into a number of panels, the panels being separated by rows and columns that have a light yellow fill colour. The panels are referred to as Panels A, B, C and D, these being the panels with a top left corner at Cell A1, A9, U9 and AM9 respectively. The panels are labelled with cells with a green fill colour.
B76: 3 | C76: Panel A is very simple and sets just the "mode", being a number determining the extent to which the Draft decision versus Final decision inputs are to be used (Cell C5). If the chosen mode at Cell C5 is less than the mode number in Column A for each line of inputs, then the Draft decision inputs are used for that row of inputs, otherwise the 2020 inputs are used. A data table is used in the "Waterfall" sheet to step through 15 different values of the mode. This generates the data necessary to draw the waterfall chart for the chosen EDB. The macro for preparing the set of 16 waterfall charts steps through the choice of the 15 EDBs plus the chart for the totals of the 15 EDBs. There is a macro button on the "WfallCht" sheet to prepare this sheet.
B77: 4 | C77: Panel B consists of most of the used area of the Inputs sheet in the 2015 reset model. The links that transfer data from the Inputs sheet to the 'EDB data' sheet and other sheets from the 2015 model are largely still the same links in this workbook. The key difference in the Inputs sheet in this workbook is that the cells in this panel are no longer values but are instead formulas that reference the data in Panels C and D.
B78: 5 | C78: Panel C consists of links to the inputs to the Final decision financial model, while Panel D consists of values copied from the inputs to the Draft decision financial model.
A80: Reconciliation sheet
C82: The "Reconciliation" sheet checks that this model produces outputs consistent with the Draft decision and Final decision financial models. When the mode is set to 0, this workbook should produce the same outputs as the Draft decision financial model. When the mode is set to 14, this workbook should produce the same outputs as the Final decision financial model. There are notes on the Reconciliation sheet as to how it operates. See Cells F2, W8, C39 and V39.
A84: The "Totals for selected EDBs" chart
C85: A waterfall chart of the totals for all non-exempt EDBs except those currently on a CPP is prepared by this workbook, and is the last chart on the WfallCht sheet. It is prepared on the Waterfall sheet when 'Totals for selected EDBs' is selected by the waterfall chart macro at Waterfall!D3.
C86: Data for this chart is prepared in the named range "IndustryTotals" on the 'Waterfall' sheet. The values in this table are inserted through the VBA routine "Regenerate", which is the routine that also generates the charts on the WfallCht sheet. The VBA code that inserts the data starts with the VBA comment "Build table on the Waterfall sheet to chart the total for all non-exempts, except Powerco, Wellington."
C87: Note the formula at Waterfall!C21 and below. The formula selects the data from the data table to its immediate left except when "Totals for selected EDBs" is selected at D3. When the totals chart is selected, the data for the Column C formulas is taken from the totals column at the right of the named range "IndustryTotals".
A89: Model suite
C90: Follow the link 'Model map – EDB DPP3 final determination – 27 November 2019' on the Commission's EDB 2020-2025 default price-quality path determination web page for a graphical depiction of interconnections between the models and data sources.

Sheet Table of Contents
A1: Table of Contents
B4: Sheet Name | C4: Link
B5: Waterfall | C5: Waterfall calculations and chart for chosen EDB
C6: EDB names and values of MAR 2019/20
C7: Waterfall chart for chosen EDB
B8: DetailsOfChanges | C8: Details of the drivers of change from Draft decision to Final decision
B9: WfallCht | C9: Waterfall charts for 15 EDBs
B10: Inputs | C10: Inputs
B11: EDB data | C11: Inputs for the selected distributor
B12: TIMING | C12: Intra-year timing
C13: Inputs
C14: Calculations
C15: Outputs
C16: Check for timing of revenue receipt
B17: RAB | C17: Regulatory asset base
C18: Inputs
C19: Calculations
C20: Outputs
B21: TAX | C21: Tax calculations
C22: Inputs
C23: Calculations
C24: Outputs
B25: BBAR | C25: Building blocks allowable revenue
C26: Inputs
C27: Calculations
C28: Outputs
B29: REV | C29: Revenue growth index
C30: Inputs
C31: Calculations
C32: Outputs
B33: MAR | C33: Maximum allowable revenue
C34: Inputs
C35: Calculations
C36: Outputs
B37: Reconciliation | C37: Reconciliation with financial models outputs
C38: Outputs

Sheet Waterfall
A1: Waterfall calculations and chart for chosen EDB
A3: EDB | D3: Total for selected EDBs
A4: Distributor number | D4: =MATCH(WfallEDB,EDBnames,0) -> 16
A5: Chosen mode | D5: 14
A7: EDB names and values of MAR 2019/20
B9: 1 | C9: 2 | D9: 3 | E9: 4 | F9: 5 | G9: 6 | H9: 7 | I9: 8 | J9: 9 | K9: 10 | L9: 11 | M9: 12 | N9: 13 | O9: 14 | P9: 15 | Q9: 16 | R9: 17
B10: Alpine Energy | C10: Aurora Energy | D10: Centralines | E10: EA Networks | F10: Eastland Network | G10: Electricity Invercargill | H10: Horizon Energy | I10: Nelson Electricity | J10: Network Tasman | K10: Orion NZ | L10: OtagoNet | M10: The Lines Company | N10: Top Energy | O10: Unison Networks | P10: Vector Lines | Q10: Total for selected EDBs
A11: Estimated 2019/20 allowable revenue | B11: =Inputs!C97 -> 49719.82703 | C11: =Inputs!D97 -> 67031.77007 | D11: =Inputs!E97 -> 14465.45298 | E11: =Inputs!F97 -> 37120.37321 | F11: =Inputs!G97 -> 27873.52195 | G11: =Inputs!H97 -> 13951.54334 | H11: =Inputs!I97 -> 23616.33857 | I11: =Inputs!J97 -> 6803.157236 | J11: =Inputs!K97 -> 28269.63342 | K11: =Inputs!L97 -> 167132.9981 | L11: =Inputs!M97 -> 27205.40425 | M11: =Inputs!N97 -> 40848.16814 | N11: =Inputs!O97 -> 48585.63677 | O11: =Inputs!P97 -> 112883.5122 | P11: =Inputs!Q97 -> 417635.917 | Q11: =SUM(B11:P11) -> 1083143.254
A13: Waterfall chart for chosen EDB
A16: PV(BBAR) for chosen EDB and chosen mode | G16: =BBAR!C57 -> 
A17: Starting price for applicable X factor | G17: =MAR!D57 -> 
G19: Direction | H19: Base | I19: Fall | J19: Rise | K19: Orange dot
B20: =G17 ->  | C20: =B20 -> 
A21: 0 | C21: =IF(WfallEDB=$Q$10,T49,B21) -> 1029195.034 | D21: Draft MAR | E21: 1 | F21: =C21/$C$21 -> 1 | H21: 0 | I21: 0 | J21: 1
A22: 1 | C22: 1035691.483 | D22: CPI for revals | E22: =A22 -> 1 | F22: =C22/$C$21 -> 1.006312165 | G22: =IF(F22>F21,">","<") -> > | H22: =H21+J21-I22-0.00002%*0 -> 0.99999 | I22: =IF(F22<F21,F21-F22+0.00001,0.00001) -> 1e-05 | J22: =IF(F22>=F21,F22-F21+0.00001,0.00001) -> 0.006322165289
A23: 2 | C23: 1017583.702 | D23: RAB, Depn | E23: 2 | F23: 0.9887180449 | G23: < | H23: =H22+J22-I23-0.00002%*0 -> 0.9887080449 | I23: =IF(F23<F22,F22-F23+0.00001,0.00001) -> 0.0176041204 | J23: =IF(F23>=F22,F23-F22+0.00001,0.00001) -> 1e-05
A24: 3 | C24: 1018950.084 | D24: Tax | E24: 3 | F24: 0.990045667 | G24: > | H24: 0.9887080449 | I24: 1e-05 | J24: 0.001337622077
A25: 4 | C25: 1034110.995 | D25: Capex | E25: 4 | F25: 1.004776511 | G25: > | H25: =H24+J24-I25-0.00002%*0 -> 0.990035667 | I25: 1e-05 | J25: 0.01474084412
A26: 5 | C26: 1034315.462 | D26: Disposals | E26: 5 | F26: 1.004975178 | G26: > | H26: 1.004766511 | I26: 1e-05 | J26: 0.0002086668803
A27: 6 | C27: 1038099.177 | D27: Opex | E27: 6 | F27: 1.008651561 | G27: > | H27: 1.004965178 | I27: 1e-05 | J27: 0.003686382888
A28: 7 | C28: 1038099.177 | D28: OR Income | E28: 7 | F28: 1.008651561 | G28: < | H28: 1.008641561 | I28: 1e-05 | J28: 1e-05
A29: 8 | C29: 1042944.019 | D29: TCSD | E29: 8 | F29: 1.013358969 | G29: > | H29: 1.008641561 | I29: 1e-05 | J29: 0.004717408349
A30: 9 | C30: 1042944.019 | D30: Add. Allow. | E30: 9 | F30: 1.013358969 | G30: < | H30: 1.013348969 | I30: 1e-05 | J30: 1e-05
A31: 10 | C31: 995244.7759 | D31: WACC | E31: 10 | F31: 0.9670128043 | G31: < | H31: 0.9670028043 | I31: 0.04635616493 | J31: 1e-05
A32: 11 | C32: 995244.7759 | D32: Accel'ed Depn | E32: 11 | F32: 0.9670128043 | G32: < | H32: 0.9670028043 | I32: 1e-05 | J32: 1e-05
A33: 12 | C33: 996577.0427 | D33: CPI, price path | E33: 12 | F33: 0.9683072788 | G33: > | H33: 0.9670028043 | I33: 1e-05 | J33: 0.001304474541
A34: 13 | C34: 996577.0427 | D34: CPRG | E34: 13 | F34: 0.9683072788 | G34: < | H34: 0.9682972788 | I34: 1e-05 | J34: 1e-05
A35: 14 | C35: 1010490.797 | D35: X (CPI-X) | E35: 14 | F35: 0.9818263437 | G35: > | H35: 0.9682972788 | I35: 1e-05 | J35: 0.01352906489
D36: Final MAR | H36: 0.9818263437 | K36: =K42/C21 -> 1.052417879
G37: Check value, should = 0 | H37: =F35-H36 -> 0
E40: Text for textbox in chart and data for orange dot
J41: 2020/21 revenue | K41: =C35 -> 1010490.797
J42: Est 2019/20 allowable revenue | K42: =INDEX(B11:Q11,1,SuppNum) -> 1083143.254
J43: MAR increase, 2020/21 MAR from est 2019/20 allowable rev | K43: =(K41-K42)/K42 -> -0.06707557552
K45: ="Revenue increase, est 2019/20 allow. revenue to 2020/21 MAR: " & TEXT(K43,"0.00%") -> Revenue increase, est 2019/20 allow. revenue to 2020/21 MAR: -6.71%
D48: Named range, Anchor2 | E48: =B10 -> Alpine Energy | F48: =C10 -> Aurora Energy | G48: Centralines | H48: EA Networks | I48: =F10 -> Eastland Network | J48: Electricity Invercargill | K48: Horizon Energy | L48: Nelson Electricity | M48: Network Tasman | N48: Orion NZ | O48: OtagoNet | P48: The Lines Company | Q48: Top Energy | R48: Unison Networks | S48: Vector Lines | T48: Total for selected EDBs
D49: MAR 2015/16 | E49: 45361.38032 | F49: 72030.72752 | G49: 9398.539633 | H49: 37696.14503 | I49: 25055.11062 | J49: 12291.59231 | K49: 25008.55222 | L49: 5588.24628 | M49: 28780.563 | N49: 161170.0707 | O49: 25084.60058 | P49: 33943.50402 | Q49: 42189.2595 | R49: 102250.9767 | S49: 403345.7655 | T49: =SUM(E49:S49) -> 1029195.034
D50: CPI for revals | E50: 45513.68118 | F50: 72448.74348 | G50: 9447.8049 | H50: 37963.38942 | I50: 25209.27804 | J50: 12370.10868 | K50: 25119.11684 | L50: 5626.530291 | M50: 28936.75573 | N50: 162199.6062 | O50: 25279.89252 | P50: 34124.24319 | Q50: 42456.50456 | R50: 102803.8311 | S50: 406191.9971 | T50: =SUM(E50:S50) -> 1035691.483
D51: RAB, Depn | E51: 42389.8189 | F51: 69278.58589 | G51: 8947.296476 | H51: 36707.58552 | I51: 25163.14626 | J51: 12283.07936 | K51: 26066.80654 | L51: 5602.765333 | M51: 27607.92164 | N51: 158204.1593 | O51: 25410.24711 | P51: 33939.67352 | Q51: 41412.87896 | R51: 103768.8175 | S51: 400800.9196 | T51: 1017583.702
D52: Tax | E52: 42985.33899 | F52: 69659.41732 | G52: 8931.05835 | H52: 36700.4125 | I52: 25152.18329 | J52: 12277.88973 | K52: 26093.47448 | L52: 5603.654336 | M52: 27556.90709 | N52: 159300.5592 | O52: 25398.81716 | P52: 33856.17239 | Q52: 41371.33152 | R52: 103730.5947 | S52: 400332.2728 | T52: 1018950.084
D53: VCA | E53: 43362.18982 | F53: 72351.49864 | G53: 9272.952478 | H53: 36756.01288 | I53: 25279.09073 | J53: 12619.43338 | K53: 26077.58799 | L53: 5623.532182 | M53: 28482.12635 | N53: 161479.1195 | O53: 25853.99506 | P53: 34555.93295 | Q53: 41382.18142 | R53: 104345.5638 | S53: 406669.7783 | T53: 1034110.995
D54: Disposals | E54: 43369.40376 | F54: 72333.51588 | G54: 9272.581076 | H54: 36767.42902 | I54: 25279.71842 | J54: 12619.31569 | K54: 26083.91977 | L54: 5626.061621 | M54: 28488.29175 | N54: 161492.0978 | O54: 25862.22811 | P54: 34562.6146 | Q54: 41382.60681 | R54: 104380.7238 | S54: 406794.9544 | T54: 1034315.462
D55: Opex | E55: 43869.43315 | F55: 76341.62058 | G55: 9762.013543 | H55: 35015.06709 | I55: 25053.96379 | J55: 12814.38324 | K55: 24735.31859 | L55: 5757.298534 | M55: 27569.1475 | N55: 164778.9546 | O55: 27068.15358 | P55: 36133.62156 | Q55: 39779.90428 | R55: 103545.4846 | S55: 405874.8128 | T55: 1038099.177
D56: OR Income | E56: 43869.43315 | F56: 76341.62058 | G56: 9762.013543 | H56: 35015.06709 | I56: 25053.96379 | J56: 12814.38324 | K56: 24735.31859 | L56: 5757.298534 | M56: 27569.1475 | N56: 164778.9546 | O56: 27068.15358 | P56: 36133.62156 | Q56: 39779.90428 | R56: 103545.4846 | S56: 405874.8128 | T56: 1038099.177
D57: TCSD | E57: 43869.43315 | F57: 76341.62058 | G57: 9762.013543 | H57: 35015.06709 | I57: 25053.96379 | J57: 12814.38324 | K57: 24735.31859 | L57: 5757.298534 | M57: 27569.1475 | N57: 165637.8343 | O57: 27068.15358 | P57: 36085.50322 | Q57: 39779.90428 | R57: 104036.8887 | S57: 409417.4886 | T57: 1042944.019
D58: Add. Allow. | E58: 43869.43315 | F58: 76341.62058 | G58: 9762.013543 | H58: 35015.06709 | I58: 25053.96379 | J58: 12814.38324 | K58: 24735.31859 | L58: 5757.298534 | M58: 27569.1475 | N58: 165637.8343 | O58: 27068.15358 | P58: 36085.50322 | Q58: 39779.90428 | R58: 104036.8887 | S58: 409417.4886 | T58: 1042944.019
D59: WACC | E59: 42595.82072 | F59: 73317.30136 | G59: 9354.525504 | H59: 33214.44317 | I59: 23996.4527 | J59: 12241.19489 | K59: 23880.29541 | L59: 5494.444027 | M59: 26417.25041 | N59: 158286.568 | O59: 25745.02833 | P59: 34661.67064 | Q59: 37963.93175 | R59: 99886.16704 | S59: 388189.682 | T59: 995244.7759
D60: Accel'ed Depn | E60: 42595.82072 | F60: 73317.30136 | G60: 9354.525504 | H60: 33214.44317 | I60: 23996.4527 | J60: 12241.19489 | K60: 23880.29541 | L60: 5494.444027 | M60: 26417.25041 | N60: 158286.568 | O60: 25745.02833 | P60: 34661.67064 | Q60: 37963.93175 | R60: 99886.16704 | S60: 388189.682 | T60: 995244.7759
D61: CPI, price path | E61: 42652.59408 | F61: 73420.78748 | G61: 9366.993578 | H61: 33258.71266 | I61: 24028.4361 | J61: 12257.51043 | K61: 23912.12399 | L61: 5501.767235 | M61: 26452.46034 | N61: 158497.5385 | O61: 25779.3423 | P61: 34707.86906 | Q61: 38014.53155 | R61: 100019.2992 | S61: 388707.0762 | T61: 996577.0427
D62: CPRG | E62: 42652.59408 | F62: 73420.78748 | G62: 9366.993578 | H62: 33258.71266 | I62: 24028.4361 | J62: 12257.51043 | K62: 23912.12399 | L62: 5501.767235 | M62: 26452.46034 | N62: 158497.5385 | O62: 25779.3423 | P62: 34707.86906 | Q62: 38014.53155 | R62: 100019.2992 | S62: 388707.0762 | T62: 996577.0427
D63: X (CPI-X) | E63: 42652.59408 | F63: 87334.54193 | G63: 9366.993578 | H63: 33258.71266 | I63: 24028.4361 | J63: 12257.51043 | K63: 23912.12399 | L63: 5501.767235 | M63: 26452.46034 | N63: 158497.5385 | O63: 25779.3423 | P63: 34707.86906 | Q63: 38014.53155 | R63: 100019.2992 | S63: 388707.0762 | T63: 1010490.797

Sheet DetailsOfChanges
A1: Details of the drivers of change from Draft decision to Final decision
A3: To select the EDB for which the details chart below is to be displayed, selected the EDB at Cell D3 on the "Waterfall" sheet.
A46: Data for the chart above:
G47: =Waterfall!G19 -> Direction | H47: =Waterfall!H19 -> Base | I47: =Waterfall!I19 -> Fall | J47: =Waterfall!J19 -> Rise | K47: =Waterfall!K19 -> Orange dot | M47: Data for labels
D49: =Waterfall!D21 -> Draft MAR | F49: =Waterfall!F21 -> 1 | H49: =Waterfall!H21 -> 0 | I49: =Waterfall!I21 -> 0 | J49: =Waterfall!J21 -> 1 | M49: =J49 -> 1
D50: =Waterfall!D22 -> CPI for revals | F50: =Waterfall!F22 -> 1.006312165 | G50: =IF(F50>F49,">","<") -> > | H50: =Waterfall!H22 -> 0.99999 | I50: =Waterfall!I22 -> 1e-05 | J50: =Waterfall!J22 -> 0.006322165289 | M50: =F50-F49 -> 0.006312165289
D51: =Waterfall!D23 -> RAB, Depn | F51: =Waterfall!F23 -> 0.9887180449 | G51: < | H51: =Waterfall!H23 -> 0.9887080449 | I51: =Waterfall!I23 -> 0.0176041204 | J51: =Waterfall!J23 -> 1e-05 | M51: =F51-F50 -> -0.0175941204
D52: =Waterfall!D24 -> Tax | F52: =Waterfall!F24 -> 0.990045667 | G52: > | H52: =Waterfall!H24 -> 0.9887080449 | I52: =Waterfall!I24 -> 1e-05 | J52: =Waterfall!J24 -> 0.001337622077 | M52: 0.001327622077
D53: =Waterfall!D25 -> Capex | F53: =Waterfall!F25 -> 1.004776511 | G53: > | H53: =Waterfall!H25 -> 0.990035667 | I53: =Waterfall!I25 -> 1e-05 | J53: =Waterfall!J25 -> 0.01474084412 | M53: 0.01473084412
D54: =Waterfall!D26 -> Disposals | F54: =Waterfall!F26 -> 1.004975178 | G54: > | H54: =Waterfall!H26 -> 1.004766511 | I54: =Waterfall!I26 -> 1e-05 | J54: =Waterfall!J26 -> 0.0002086668803 | M54: =F54-F53 -> 0.0001986668803
D55: =Waterfall!D27 -> Opex | F55: =Waterfall!F27 -> 1.008651561 | G55: > | H55: =Waterfall!H27 -> 1.004965178 | I55: =Waterfall!I27 -> 1e-05 | J55: =Waterfall!J27 -> 0.003686382888 | M55: 0.003676382888
D56: =Waterfall!D28 -> OR Income | F56: =Waterfall!F28 -> 1.008651561 | G56: < | H56: =Waterfall!H28 -> 1.008641561 | I56: =Waterfall!I28 -> 1e-05 | J56: =Waterfall!J28 -> 1e-05 | M56: 0
D57: =Waterfall!D29 -> TCSD | F57: =Waterfall!F29 -> 1.013358969 | G57: > | H57: =Waterfall!H29 -> 1.008641561 | I57: =Waterfall!I29 -> 1e-05 | J57: =Waterfall!J29 -> 0.004717408349 | M57: 0.004707408349
D58: =Waterfall!D30 -> Add. Allow. | F58: =Waterfall!F30 -> 1.013358969 | G58: < | H58: =Waterfall!H30 -> 1.013348969 | I58: =Waterfall!I30 -> 1e-05 | J58: =Waterfall!J30 -> 1e-05 | M58: 0
D59: =Waterfall!D31 -> WACC | F59: =Waterfall!F31 -> 0.9670128043 | G59: < | H59: =Waterfall!H31 -> 0.9670028043 | I59: =Waterfall!I31 -> 0.04635616493 | J59: =Waterfall!J31 -> 1e-05 | M59: -0.04634616493
D60: =Waterfall!D32 -> Accel'ed Depn | F60: =Waterfall!F32 -> 0.9670128043 | G60: < | H60: =Waterfall!H32 -> 0.9670028043 | I60: =Waterfall!I32 -> 1e-05 | J60: =Waterfall!J32 -> 1e-05 | M60: 0
D61: =Waterfall!D33 -> CPI, price path | F61: =Waterfall!F33 -> 0.9683072788 | G61: > | H61: =Waterfall!H33 -> 0.9670028043 | I61: =Waterfall!I33 -> 1e-05 | J61: =Waterfall!J33 -> 0.001304474541 | M61: 0.001294474541
D62: =Waterfall!D34 -> CPRG | F62: =Waterfall!F34 -> 0.9683072788 | G62: < | H62: =Waterfall!H34 -> 0.9682972788 | I62: =Waterfall!I34 -> 1e-05 | J62: =Waterfall!J34 -> 1e-05 | M62: 0
D63: =Waterfall!D35 -> X (CPI-X) | F63: =Waterfall!F35 -> 0.9818263437 | G63: > | H63: =Waterfall!H35 -> 0.9682972788 | I63: =Waterfall!I35 -> 1e-05 | J63: =Waterfall!J35 -> 0.01352906489 | M63: 0.01351906489
D64: =Waterfall!D36 -> Final MAR | H64: =H63+J63-I64-0.00002%*0 -> 0.9818263437 | K64: =Waterfall!K36 -> 1.052417879 | M64: =H64 -> 0.9818263437
E68: Text for textbox in chart and data for orange dot
J69: =Waterfall!J41 -> 2020/21 revenue | K69: =Waterfall!K41 -> 1010490.797
J70: =Waterfall!J42 -> Est 2019/20 allowable revenue | K70: =Waterfall!K42 -> 1083143.254
J71: =Waterfall!J43 -> MAR increase, 2020/21 MAR from est 2019/20 allowable rev | K71: =Waterfall!K43 -> -0.06707557552
K73: ="Revenue increase, est 2019/20 allow. revenue to 2020/21 MAR: " & TEXT(K71,"0.00%") -> Revenue increase, est 2019/20 allow. revenue to 2020/21 MAR: -6.71%

Sheet WfallCht
A1: Waterfall charts for 15 EDBs
E2: For a more detailed view of the drivers of the changes from the Draft decision models to the Final decision, see the 'DetailsOfChanges' sheet.
AX4: Waterfall Charts
AX5: An aid to interpreting these charts is on the Description sheet, under the headings 'Waterfall Chart' and 'Input categories'.
AX6: The chart "Total for selected EDBs" is for all non-exempt EDBs except those on a CPP in 2020/21, ie, except Powerco and Wellington Electricity.

Sheet Inputs
A1: Inputs
A2: A | B2: The mode in cell C5 is chosen on the Waterfall sheet cell D5.
B3: All input data is entered into this worksheet
B4: Waterfall chart parameters
B5: Chosen mode | C5: =Waterfall!D5 -> 14
A10: B | B10: Values for chosen mode | U10: C | V10: Values from Financial model | AM10: D | AN10: Values for draft decision 2020 reset model
A11: Mode | B11: Inputs that are the same for all distributors
A12: 1 | B12: 2020 reset timeline | C12: Value | D12: =IF($C$5<$A12,AN12,V12) -> 2018/19 | E12: 2019/20 | F12: 2020/21 | G12: 2021/22 | H12: 2022/23 | I12: 2023/24 | J12: 2024/25 | V12: 2018/19 | W12: =LEFT(V12,4)+1 & "/" & RIGHT(V12,2)+1 -> 2019/20 | X12: =LEFT(W12,4)+1 & "/" & RIGHT(W12,2)+1 -> 2020/21 | Y12: 2021/22 | Z12: 2022/23 | AA12: 2023/24 | AB12: 2024/25 | AN12: 2013/14 | AO12: =LEFT(AN12,4)+1 & "/" & RIGHT(AN12,2)+1 -> 2014/15 | AP12: =LEFT(AO12,4)+1 & "/" & RIGHT(AO12,2)+1 -> 2015/16 | AQ12: 2016/17 | AR12: 2017/18 | AS12: 2018/19 | AT12: 2019/20
A13: 0 | B13: Year in modelling period | D13: 1 | E13: 2 | F13: 3 | G13: 4 | H13: 5 | I13: 6 | J13: 7 | V13: 1 | W13: 2 | X13: 3 | Y13: 4 | Z13: 5 | AA13: 6 | AB13: 7 | AN13: 1 | AO13: 2 | AP13: 3 | AQ13: 4 | AR13: 5 | AS13: 6 | AT13: 7
A14: 0 | B14: Year in regulatory period | F14: 1 | G14: 2 | H14: 3 | I14: 4 | J14: 5 | X14: 1 | Y14: 2 | Z14: 3 | AA14: 4 | AB14: 5 | AP14: 1 | AQ14: 2 | AR14: 3 | AS14: 4 | AT14: 5
A15: 1 | B15: Forecast changes in CPI used for revaluations | D15: =IF($C$5<$A15,AN15,V15) -> 0.01483679525 | E15: 0.017 | F15: 0.019 | G15: 0.02 | H15: 0.02 | I15: 0.02 | J15: 0.02 | V15: =[1]Inputs!C7 -> 0.01483679525 | W15: =[1]Inputs!D7 -> 0.017 | X15: =[1]Inputs!E7 -> 0.019 | Y15: =[1]Inputs!F7 -> 0.02 | Z15: =[1]Inputs!G7 -> 0.02 | AA15: =[1]Inputs!H7 -> 0.02 | AB15: =[1]Inputs!I7 -> 0.02 | AN15: 0.016 | AO15: 0.017 | AP15: 0.021 | AQ15: 0.021 | AR15: 0.02066666667 | AS15: 0.02033333333 | AT15: 0.02
A16: =A44+1 -> 12 | B16: Forecast changes in the CPI element of the price path | F16: =IF($C$5<$A16,AP16,X16) -> 0.01750437898 | G16: =IF($C$5<$A16,AQ16,Y16) -> 0.01950211459 | H16: =IF($C$5<$A16,AR16,Z16) -> 0.02024805898 | I16: =IF($C$5<$A16,AS16,AA16) -> 0.02 | J16: =IF($C$5<$A16,AT16,AB16) -> 0.02 | X16: =[1]Inputs!E8 -> 0.01750437898 | Y16: =[1]Inputs!F8 -> 0.01950211459 | Z16: =[1]Inputs!G8 -> 0.02024805898 | AA16: =[1]Inputs!H8 -> 0.02 | AB16: =[1]Inputs!I8 -> 0.02 | AP16: 0.01975379478 | AQ16: 0.02074952399 | AR16: 0.02066666667 | AS16: 0.02033333333 | AT16: 0.02
A17: 0 | B17: Company tax rate | D17: 0.28 | E17: =IF($C$5<$A17,AO17,W17) -> 0.28 | F17: 0.28 | G17: 0.28 | H17: 0.28 | I17: 0.28 | J17: 0.28 | V17: =[1]Inputs!C9 -> 0.28 | W17: =[1]Inputs!D9 -> 0.28 | X17: =[1]Inputs!E9 -> 0.28 | Y17: =[1]Inputs!F9 -> 0.28 | Z17: =[1]Inputs!G9 -> 0.28 | AA17: =[1]Inputs!H9 -> 0.28 | AB17: =[1]Inputs!I9 -> 0.28 | AN17: 0.28 | AO17: 0.28 | AP17: 0.28 | AQ17: 0.28 | AR17: 0.28 | AS17: 0.28 | AT17: 0.28
A18: 0 | B18: Days in a year | C18: =IF($C$5<$A18,AM18,U18) -> 365 | N18: Working area | U18: =[1]Inputs!B10 -> 365 | AM18: 365
A19: 0 | B19: Days from mid-year to year-end | C19: 182 | N19: =D12 -> 2018/19 | U19: =[1]Inputs!B11 -> 182 | AM19: 182
A20: 0 | B20: Days from revenue date to year-end | C20: 148 | N20: =E12 -> 2019/20 | U20: =[1]Inputs!B12 -> 148 | AM20: 148
A21: 0 | B21: Last day of year 1 of the DPP period | C21: 2021-03-31 | N21: =F12 -> 2020/21 | U21: =[1]Inputs!B13 -> 2021-03-31 | AM21: 2021-03-31
A22: =A45+1 -> 10 | B22: Vanilla WACC (67th percentile) | C22: 0.0457 | N22: =G12 -> 2021/22 | U22: =[1]Inputs!B14 -> 0.0457 | AM22: 0.0513
A23: =A22 -> 10 | B23: Cost of debt | C23: 0.0292 | N23: =H12 -> 2022/23 | U23: =[1]Inputs!B15 -> 0.0292 | AM23: 0.0361
A24: =A31+1 -> 3 | B24: Leverage | C24: 0.42 | N24: =I12 -> 2023/24 | U24: =[1]Inputs!B16 -> 0.42 | AM24: 0.42
A25: 0 | B25: Years of remaining life for newly commissioned assets | C25: 44 | N25: =J12 -> 2024/25 | U25: =[1]Inputs!B17 -> 44 | AM25: 44
A26: =A56+1 -> 14 | B26: Industry-wide X factor | C26: 0 | U26: =[1]Inputs!B18 -> 0 | AM26: 0
B27: Inputs that are specific to individual distributors
B28: Name | C28: Alpine Energy | D28: Aurora Energy | E28: Centralines | F28: EA Networks | G28: Eastland Network | H28: Electricity Invercargill | I28: Horizon Energy | J28: Nelson Electricity | K28: Network Tasman | L28: Orion NZ | M28: OtagoNet | N28: Powerco | O28: The Lines Company | P28: Top Energy | Q28: Unison Networks | R28: Vector Lines | S28: Wellington Electricity | U28: Alpine Energy | V28: Aurora Energy | W28: Centralines | X28: EA Networks | Y28: Eastland Network | Z28: Electricity Invercargill | AA28: Horizon Energy | AB28: Nelson Electricity | AC28: Network Tasman | AD28: Orion NZ | AE28: OtagoNet | AF28: Powerco | AG28: The Lines Company | AH28: Top Energy | AI28: Unison Networks | AJ28: Vector Lines | AK28: Wellington Electricity | AM28: Alpine Energy | AN28: Aurora Energy | AO28: Centralines | AP28: EA Networks | AQ28: Eastland Network | AR28: Electricity Invercargill | AS28: Horizon Energy | AT28: Nelson Electricity | AU28: Network Tasman | AV28: Orion NZ | AW28: OtagoNet | AX28: Powerco | AY28: The Lines Company | AZ28: Top Energy | BA28: Unison Networks | BB28: Vector Lines | BC28: Wellington Electricity
B29: Distributor number | C29: 1 | D29: 2 | E29: 3 | F29: 4 | G29: 5 | H29: 6 | I29: 7 | J29: 8 | K29: 9 | L29: 10 | M29: 11 | N29: 12 | O29: 13 | P29: 14 | Q29: 15 | R29: 16 | S29: 17 | U29: 1 | V29: 2 | W29: 3 | X29: 4 | Y29: 5 | Z29: 6 | AA29: 7 | AB29: 8 | AC29: 9 | AD29: 10 | AE29: 11 | AF29: 12 | AG29: 13 | AH29: 14 | AI29: 15 | AJ29: 16 | AK29: 17 | AM29: 1 | AN29: 2 | AO29: 3 | AP29: 4 | AQ29: 5 | AR29: 6 | AS29: 7 | AT29: 8 | AU29: 9 | AV29: 10 | AW29: 11 | AX29: 12 | AY29: 13 | AZ29: 14 | BA29: 15 | BB29: 16 | BC29: 17
B30: Initial conditions
A31: =A15+1 -> 2 | B31: Opening RAB | C31: =IF($C$5<$A31,AM31,U31) -> 199621 | D31: =IF($C$5<$A31,AN31,V31) -> 394155.2034 | E31: =IF($C$5<$A31,AO31,W31) -> 54013 | F31: =IF($C$5<$A31,AP31,X31) -> 259359.001 | G31: =IF($C$5<$A31,AQ31,Y31) -> 154613.2058 | H31: =IF($C$5<$A31,AR31,Z31) -> 84071.69551 | I31: =IF($C$5<$A31,AS31,AA31) -> 124949.9691 | J31: =IF($C$5<$A31,AT31,AB31) -> 41110.98197 | K31: =IF($C$5<$A31,AU31,AC31) -> 165522 | L31: =IF($C$5<$A31,AV31,AD31) -> 1051194 | M31: =IF($C$5<$A31,AW31,AE31) -> 186531.164 | N31: =IF($C$5<$A31,AX31,AF31) -> 1657736.857 | O31: =IF($C$5<$A31,AY31,AG31) -> 188818.5386 | P31: =IF($C$5<$A31,AZ31,AH31) -> 251488.161 | Q31: =IF($C$5<$A31,BA31,AI31) -> 586195 | R31: =IF($C$5<$A31,BB31,AJ31) -> 2951716 | S31: =IF($C$5<$A31,BC31,AK31) -> 611855.0815 | U31: =[1]Inputs!B23 -> 199621 | V31: =[1]Inputs!C23 -> 394155.2034 | W31: =[1]Inputs!D23 -> 54013 | X31: =[1]Inputs!E23 -> 259359.001 | Y31: =[1]Inputs!F23 -> 154613.2058 | Z31: =[1]Inputs!G23 -> 84071.69551 | AA31: =[1]Inputs!H23 -> 124949.9691 | AB31: =[1]Inputs!I23 -> 41110.98197 | AC31: =[1]Inputs!J23 -> 165522 | AD31: =[1]Inputs!K23 -> 1051194 | AE31: =[1]Inputs!L23 -> 186531.164 | AF31: =[1]Inputs!M23 -> 1657736.857 | AG31: =[1]Inputs!N23 -> 188818.5386 | AH31: =[1]Inputs!O23 -> 251488.161 | AI31: =[1]Inputs!P23 -> 586195 | AJ31: =[1]Inputs!Q23 -> 2951716 | AK31: =[1]Inputs!R23 -> 611855.0815 | AM31: 199620.7032 | AN31: 393922 | AO31: 54013 | AP31: 259359.001 | AQ31: 154613.2058 | AR31: 84072.05987 | AS31: 124949.9691 | AT31: 41110.98197 | AU31: 165522 | AV31: 1051194 | AW31: 186531.164 | AX31: 1657736.859 | AY31: 188818.5386 | AZ31: 251488.161 | BA31: 586194.8 | BB31: 2951716.311 | BC31: 611855.0815
A32: =A31 -> 2 | B32: Lost assets | C32: 0 | D32: 0 | E32: 0 | F32: 0 | G32: 0 | H32: 0 | I32: 0 | J32: 0 | K32: 0 | L32: 0 | M32: 0 | N32: 0 | O32: 0 | P32: 0 | Q32: 0 | R32: 0 | S32: 0 | U32: 0 | V32: 0 | W32: 0 | X32: 0 | Y32: 0 | Z32: 0 | AA32: 0 | AB32: 0 | AC32: 0 | AD32: 0 | AE32: 0 | AF32: 0 | AG32: 0 | AH32: 0 | AI32: 0 | AJ32: 0 | AK32: 0 | AM32: 0 | AN32: 0 | AO32: 0 | AP32: 0 | AQ32: 0 | AR32: 0 | AS32: 0 | AT32: 0 | AU32: 0 | AV32: 0 | AW32: 0 | AX32: 0 | AY32: 0 | AZ32: 0 | BA32: 0 | BB32: 0 | BC32: 0
A33: =A31 -> 2 | B33: Found assets | C33: 0 | D33: 0 | E33: 0 | F33: 0 | G33: 0 | H33: 0 | I33: 0 | J33: 0 | K33: 0 | L33: 0 | M33: 0 | N33: 0 | O33: 0 | P33: 0 | Q33: 0 | R33: 0 | S33: 0 | U33: 0 | V33: 0 | W33: 0 | X33: 0 | Y33: 0 | Z33: 0 | AA33: 0 | AB33: 0 | AC33: 0 | AD33: 0 | AE33: 0 | AF33: 0 | AG33: 0 | AH33: 0 | AI33: 0 | AJ33: 0 | AK33: 0 | AM33: 0 | AN33: 0 | AO33: 0 | AP33: 0 | AQ33: 0 | AR33: 0 | AS33: 0 | AT33: 0 | AU33: 0 | AV33: 0 | AW33: 0 | AX33: 0 | AY33: 0 | AZ33: 0 | BA33: 0 | BB33: 0 | BC33: 0
A34: =A31 -> 2 | B34: Total depreciation | C34: 12793.13117 | D34: 15058.02417 | E34: 2033 | F34: 9529.623038 | G34: 6088.948957 | H34: 3119.771454 | I34: 6456.22173 | J34: 1446.55623 | K34: 6807 | L34: 40615.81705 | M34: 7711.915713 | N34: 67007.59801 | O34: 8412.100597 | P34: 9155.47597 | Q34: 27555.254 | R34: 108729 | S34: 26323.29182 | U34: =[1]Inputs!B24 -> 12793.13117 | V34: =[1]Inputs!C24 -> 15058.02417 | W34: =[1]Inputs!D24 -> 2033 | X34: =[1]Inputs!E24 -> 9529.623038 | Y34: =[1]Inputs!F24 -> 6088.948957 | Z34: =[1]Inputs!G24 -> 3119.771454 | AA34: =[1]Inputs!H24 -> 6456.22173 | AB34: =[1]Inputs!I24 -> 1446.55623 | AC34: =[1]Inputs!J24 -> 6807 | AD34: =[1]Inputs!K24 -> 40615.81705 | AE34: =[1]Inputs!L24 -> 7711.915713 | AF34: =[1]Inputs!M24 -> 67007.59801 | AG34: =[1]Inputs!N24 -> 8412.100597 | AH34: =[1]Inputs!O24 -> 9155.47597 | AI34: =[1]Inputs!P24 -> 27555.254 | AJ34: =[1]Inputs!Q24 -> 108729 | AK34: =[1]Inputs!R24 -> 26323.29182 | AM34: 14657.68055 | AN34: 15666.76686 | AO34: 2638.505966 | AP34: 9907.162647 | AQ34: 6020.052549 | AR34: 3178.037329 | AS34: 6206.241873 | AT34: 1471.814946 | AU34: 7299.708834 | AV34: 42205.82349 | AW34: 7192.949336 | AX34: 72538.67137 | AY34: 9126.411931 | AZ34: 9527.547071 | BA34: 27671.43593 | BB34: 115387.4597 | BC34: 30673.44801
A35: =A31 -> 2 | B35: Revaluations | C35: 0 | D35: 0 | E35: 0 | F35: 0 | G35: 0 | H35: 0 | I35: 0 | J35: 0 | K35: 0 | L35: 0 | M35: 0 | N35: 0 | O35: 0 | P35: 0 | Q35: 0 | R35: 0 | S35: 0
A36: =A31 -> 2 | B36: Closing RAB | C36: 201494.5438 | D36: 447072.1812 | E36: 57848 | F36: 268447.1646 | G36: 161677.5522 | H36: 86604.99681 | I36: 133085.9 | J36: 41933.72916 | K36: 165472 | L36: 1088531.372 | M36: 194442.0895 | N36: 1787099.84 | O36: 206316.4374 | P36: 261426.1465 | Q36: 620045.33 | R36: 3075471 | S36: 629322.9926 | U36: =[1]Inputs!B25 -> 201494.5438 | V36: =[1]Inputs!C25 -> 447072.1812 | W36: =[1]Inputs!D25 -> 57848 | X36: =[1]Inputs!E25 -> 268447.1646 | Y36: =[1]Inputs!F25 -> 161677.5522 | Z36: =[1]Inputs!G25 -> 86604.99681 | AA36: =[1]Inputs!H25 -> 133085.9 | AB36: =[1]Inputs!I25 -> 41933.72916 | AC36: =[1]Inputs!J25 -> 165472 | AD36: =[1]Inputs!K25 -> 1088531.372 | AE36: =[1]Inputs!L25 -> 194442.0895 | AF36: =[1]Inputs!M25 -> 1787099.84 | AG36: =[1]Inputs!N25 -> 206316.4374 | AH36: =[1]Inputs!O25 -> 261426.1465 | AI36: =[1]Inputs!P25 -> 620045.33 | AJ36: =[1]Inputs!Q25 -> 3075471 | AK36: =[1]Inputs!R25 -> 629322.9926 | AM36: 208993.8659 | AN36: 480520.0526 | AO36: 55780.40194 | AP36: 278029.8126 | AQ36: 163053.7378 | AR36: 86866.63228 | AS36: 126856.7588 | AT36: 41892.17866 | AU36: 173813.5212 | AV36: 1113129.191 | AW36: 199434.0866 | AX36: 1820403.258 | AY36: 199756.4819 | AZ36: 268572.3018 | BA36: 609185.4367 | BB36: 3053381.115 | BC36: 631633.1137
A37: =A24 -> 3 | B37: Opening RAB excluding revaluations | C37: 170446.47 | D37: 361569.5442 | E37: 48772 | F37: 240111.3019 | G37: 141779.8794 | H37: 77250.2 | I37: 114466.5638 | J37: 37930 | K37: 150203 | L37: 965046.964 | M37: 173737 | N37: 1517689.783 | O37: 166614.8011 | P37: 224217.6316 | Q37: 536379 | R37: 2695210 | S37: 556622.5202 | U37: =[1]Inputs!B26 -> 170446.47 | V37: =[1]Inputs!C26 -> 361569.5442 | W37: =[1]Inputs!D26 -> 48772 | X37: =[1]Inputs!E26 -> 240111.3019 | Y37: =[1]Inputs!F26 -> 141779.8794 | Z37: =[1]Inputs!G26 -> 77250.2 | AA37: =[1]Inputs!H26 -> 114466.5638 | AB37: =[1]Inputs!I26 -> 37930 | AC37: =[1]Inputs!J26 -> 150203 | AD37: =[1]Inputs!K26 -> 965046.964 | AE37: =[1]Inputs!L26 -> 173737 | AF37: =[1]Inputs!M26 -> 1517689.783 | AG37: =[1]Inputs!N26 -> 166614.8011 | AH37: =[1]Inputs!O26 -> 224217.6316 | AI37: =[1]Inputs!P26 -> 536379 | AJ37: =[1]Inputs!Q26 -> 2695210 | AK37: =[1]Inputs!R26 -> 556622.5202 | AM37: 203325.759 | AN37: 361563.5 | AO37: 48747.22429 | AP37: 239189.6093 | AQ37: 141773.7422 | AR37: 77208.89175 | AS37: 114782.717 | AT37: 37936.33016 | AU37: 149927.8526 | AV37: 964649.6337 | AW37: 171841.6988 | AX37: 1514714.947 | AY37: 168225.2525 | AZ37: 224194.2399 | BA37: 536307.9835 | BB37: 2687318.477 | BC37: 556618.5435
A38: =$A$36+1 -> 3 | B38: Adjusted depreciation | C38: 10635.43092 | D38: 13630.79869 | E38: 1934 | F38: 8731.374143 | G38: 5287.94844 | H38: 2844.854 | I38: 5022.32702 | J38: 1354 | K38: 6290 | L38: 36341.389 | M38: 7161 | N38: 60760.81768 | O38: 7730.983111 | P38: 7999.217391 | Q38: 25169 | R38: 99210 | S38: 23190.27941 | U38: =[1]Inputs!B27 -> 10635.43092 | V38: =[1]Inputs!C27 -> 13630.79869 | W38: =[1]Inputs!D27 -> 1934 | X38: =[1]Inputs!E27 -> 8731.374143 | Y38: =[1]Inputs!F27 -> 5287.94844 | Z38: =[1]Inputs!G27 -> 2844.854 | AA38: =[1]Inputs!H27 -> 5022.32702 | AB38: =[1]Inputs!I27 -> 1354 | AC38: =[1]Inputs!J27 -> 6290 | AD38: =[1]Inputs!K27 -> 36341.389 | AE38: =[1]Inputs!L27 -> 7161 | AF38: =[1]Inputs!M27 -> 60760.81768 | AG38: =[1]Inputs!N27 -> 7730.983111 | AH38: =[1]Inputs!O27 -> 7999.217391 | AI38: =[1]Inputs!P27 -> 25169 | AJ38: =[1]Inputs!Q27 -> 99210 | AK38: =[1]Inputs!R27 -> 23190.27941 | AM38: 14929.73412 | AN38: 14379.82915 | AO38: 2381.275658 | AP38: 9136.719198 | AQ38: 5520.132471 | AR38: 2918.600311 | AS38: 5701.236338 | AT38: 1358.159184 | AU38: 6611.98916 | AV38: 38731.03554 | AW38: 6626.49933 | AX38: 66280.36842 | AY38: 8131.049858 | AZ38: 8493.525758 | BA38: 25316.51936 | BB38: 105051.7122 | BC38: 27904.33629
A39: 3 | B39: Tax depreciation | C39: 14782.75991 | D39: 21650 | E39: 2186 | F39: 11910.71094 | G39: 6271.29534 | H39: 3313.98 | I39: 5404.500609 | J39: 1297 | K39: 5114 | L39: 32004.275 | M39: 15388 | N39: 79612.31554 | O39: 4330.035972 | P39: 11576.76816 | Q39: 30035 | R39: 103486 | S39: 28793.11796 | U39: =[1]Inputs!B28 -> 14782.75991 | V39: =[1]Inputs!C28 -> 21650 | W39: =[1]Inputs!D28 -> 2186 | X39: =[1]Inputs!E28 -> 11910.71094 | Y39: =[1]Inputs!F28 -> 6271.29534 | Z39: =[1]Inputs!G28 -> 3313.98 | AA39: =[1]Inputs!H28 -> 5404.500609 | AB39: =[1]Inputs!I28 -> 1297 | AC39: =[1]Inputs!J28 -> 5114 | AD39: =[1]Inputs!K28 -> 32004.275 | AE39: =[1]Inputs!L28 -> 15388 | AF39: =[1]Inputs!M28 -> 79612.31554 | AG39: =[1]Inputs!N28 -> 4330.035972 | AH39: =[1]Inputs!O28 -> 11576.76816 | AI39: =[1]Inputs!P28 -> 30035 | AJ39: =[1]Inputs!Q28 -> 103486 | AK39: =[1]Inputs!R28 -> 28793.11796 | AM39: 15569.58297 | AN39: 24098.09022 | AO39: 2146.017618 | AP39: 12197.39475 | AQ39: 6214.87137 | AR39: 3255.623889 | AS39: 5153.852701 | AT39: 1283.53217 | AU39: 4667.473348 | AV39: 46081.94008 | AW39: 15134.16914 | AX39: 71110.92004 | AY39: 4785.561895 | AZ39: 11094.77118 | BA39: 29192.0653 | BB39: 101502.9067 | BC39: 29304.36863
A40: 3 | B40: Opening regulatory tax asset value | C40: 122940.0287 | D40: 222185.9147 | E40: 24349 | F40: 134591.6309 | G40: 70250.53571 | H40: 41317.03 | I40: 51284.963 | J40: 18165 | K40: 63134 | L40: 400019.6316 | M40: 95268 | N40: 1025176.282 | O40: 45756 | P40: 136251.1719 | Q40: 313784 | R40: 1224826 | S40: 351370.7044 | U40: =[1]Inputs!B29 -> 122940.0287 | V40: =[1]Inputs!C29 -> 222185.9147 | W40: =[1]Inputs!D29 -> 24349 | X40: =[1]Inputs!E29 -> 134591.6309 | Y40: =[1]Inputs!F29 -> 70250.53571 | Z40: =[1]Inputs!G29 -> 41317.03 | AA40: =[1]Inputs!H29 -> 51284.963 | AB40: =[1]Inputs!I29 -> 18165 | AC40: =[1]Inputs!J29 -> 63134 | AD40: =[1]Inputs!K29 -> 400019.6316 | AE40: =[1]Inputs!L29 -> 95268 | AF40: =[1]Inputs!M29 -> 1025176.282 | AG40: =[1]Inputs!N29 -> 45756 | AH40: =[1]Inputs!O29 -> 136251.1719 | AI40: =[1]Inputs!P29 -> 313784 | AJ40: =[1]Inputs!Q29 -> 1224826 | AK40: =[1]Inputs!R29 -> 351370.7044 | AM40: 122940.0287 | AN40: 234075 | AO40: 24361 | AP40: 135023.0164 | AQ40: 70420.64605 | AR40: 41298.6 | AS40: 51563.82529 | AT40: 18236.93456 | AU40: 63876 | AV40: 416309.5404 | AW40: 94615.36681 | AX40: 1001328.027 | AY40: 48557.93282 | AZ40: 136235.1804 | BA40: 316064.482 | BB40: 1230174.595 | BC40: 353460.3293
A41: 3 | B41: Amortisation of initial differences in asset values | C41: 2756.174785 | D41: 4989.952406 | E41: 1254.5 | F41: 2142.610349 | G41: 1900.57606 | H41: 1268.368421 | I41: 4218.944535 | J41: 693.05 | K41: 3239.163154 | L41: 15323.20205 | M41: 1343.545455 | N41: 10201.18099 | O41: 4085.269864 | P41: 3399.105263 | Q41: 5670.1 | R41: 34300.67742 | S41: 7150.784348 | U41: =[1]Inputs!B30 -> 2756.174785 | V41: =[1]Inputs!C30 -> 4989.952406 | W41: =[1]Inputs!D30 -> 1254.5 | X41: =[1]Inputs!E30 -> 2142.610349 | Y41: =[1]Inputs!F30 -> 1900.57606 | Z41: =[1]Inputs!G30 -> 1268.368421 | AA41: =[1]Inputs!H30 -> 4218.944535 | AB41: =[1]Inputs!I30 -> 693.05 | AC41: =[1]Inputs!J30 -> 3239.163154 | AD41: =[1]Inputs!K30 -> 15323.20205 | AE41: =[1]Inputs!L30 -> 1343.545455 | AF41: =[1]Inputs!M30 -> 10201.18099 | AG41: =[1]Inputs!N30 -> 4085.269864 | AH41: =[1]Inputs!O30 -> 3399.105263 | AI41: =[1]Inputs!P30 -> 5670.1 | AJ41: =[1]Inputs!Q30 -> 34300.67742 | AK41: =[1]Inputs!R30 -> 7150.784348 | AM41: 2756.174785 | AN41: 4992.566549 | AO41: 1254.538462 | AP41: 2142.610548 | AQ41: 1904.499165 | AR41: 1268.35 | AS41: 4218.944535 | AT41: 693.0454545 | AU41: 3239.360324 | AV41: 15348.54813 | AW41: 1345 | AX41: 10277.92979 | AY41: 4085.257898 | AZ41: 3399.105263 | BA41: 5670.095238 | BB41: 34390.625 | BC41: 7150.784348
A42: =A80+1 -> 8 | B42: Term credit spread differential allowance | C42: 0 | D42: 0 | E42: 0 | F42: 0 | G42: 0 | H42: 0 | I42: 0 | J42: 0 | K42: 0 | L42: 788.4552941 | M42: 0 | N42: 1966.526362 | O42: 0 | P42: 0 | Q42: 440.1887319 | R42: 3983.687394 | S42: 362.4615546 | U42: =[1]Inputs!B31 -> 0 | V42: =[1]Inputs!C31 -> 0 | W42: =[1]Inputs!D31 -> 0 | X42: =[1]Inputs!E31 -> 0 | Y42: =[1]Inputs!F31 -> 0 | Z42: =[1]Inputs!G31 -> 0 | AA42: =[1]Inputs!H31 -> 0 | AB42: =[1]Inputs!I31 -> 0 | AC42: =[1]Inputs!J31 -> 0 | AD42: =[1]Inputs!K31 -> 788.4552941 | AE42: =[1]Inputs!L31 -> 0 | AF42: =[1]Inputs!M31 -> 1966.526362 | AG42: =[1]Inputs!N31 -> 0 | AH42: =[1]Inputs!O31 -> 0 | AI42: =[1]Inputs!P31 -> 440.1887319 | AJ42: =[1]Inputs!Q31 -> 3983.687394 | AK42: =[1]Inputs!R31 -> 362.4615546 | AM42: 0 | AN42: 0 | AO42: 0 | AP42: 0 | AQ42: 0 | AR42: 0 | AS42: 0 | AT42: 0 | AU42: 0 | AV42: 0 | AW42: 0 | AX42: 0 | AY42: 40.47461221 | AZ42: 0 | BA42: 1.146262998 | BB42: 805.2566826 | BC42: 591.6347574
A43: =A37 -> 3 | B43: Opening deferred tax balance | C43: -6546.424746 | D43: -18008.43966 | E43: -2740 | F43: -12614.86729 | G43: -7364 | H43: -3433.962507 | I43: 0 | J43: -1441 | K43: -1612.351921 | L43: -43149.14864 | M43: -12352 | N43: -60532.96154 | O43: -12008 | P43: -10180.72612 | Q43: -29786 | R43: -83664 | S43: -33852.90099 | U43: =[1]Inputs!B32 -> -6546.424746 | V43: =[1]Inputs!C32 -> -18008.43966 | W43: =[1]Inputs!D32 -> -2740 | X43: =[1]Inputs!E32 -> -12614.86729 | Y43: =[1]Inputs!F32 -> -7364 | Z43: =[1]Inputs!G32 -> -3433.962507 | AA43: =[1]Inputs!H32 -> 0 | AB43: =[1]Inputs!I32 -> -1441 | AC43: =[1]Inputs!J32 -> -1612.351921 | AD43: =[1]Inputs!K32 -> -43149.14864 | AE43: =[1]Inputs!L32 -> -12352 | AF43: =[1]Inputs!M32 -> -60532.96154 | AG43: =[1]Inputs!N32 -> -12008 | AH43: =[1]Inputs!O32 -> -10180.72612 | AI43: =[1]Inputs!P32 -> -29786 | AJ43: =[1]Inputs!Q32 -> -83664 | AK43: =[1]Inputs!R32 -> -33852.90099 | AM43: -6558.11944 | AN43: -22753.59863 | AO43: -2742.750769 | AP43: -12536.51979 | AQ43: -7388.304107 | AR43: -3456.65892 | AS43: -997.9245478 | AT43: -1471.275932 | AU43: -1578.940655 | AV43: -45788.67892 | AW43: -12560.96 | AX43: -68683.50015 | AY43: -9922.853224 | AZ43: -10333.3514 | BA43: -30234.73171 | BB43: -83246.815 | BC43: -33671.50644
A44: =A22+1 -> 11 | B44: Adjustment factor (for accelerated depreciation) | C44: 1 | D44: 1 | E44: 1 | F44: 1 | G44: 1 | H44: 1 | I44: 1 | J44: 1 | K44: 1 | L44: 1 | M44: 1 | N44: 1 | O44: 1 | P44: 1 | Q44: 1 | R44: 1 | S44: 1 | U44: =[1]Inputs!B33 -> 1 | V44: =[1]Inputs!C33 -> 1 | W44: =[1]Inputs!D33 -> 1 | X44: =[1]Inputs!E33 -> 1 | Y44: =[1]Inputs!F33 -> 1 | Z44: =[1]Inputs!G33 -> 1 | AA44: =[1]Inputs!H33 -> 1 | AB44: =[1]Inputs!I33 -> 1 | AC44: =[1]Inputs!J33 -> 1 | AD44: =[1]Inputs!K33 -> 1 | AE44: =[1]Inputs!L33 -> 1 | AF44: =[1]Inputs!M33 -> 1 | AG44: =[1]Inputs!N33 -> 1 | AH44: =[1]Inputs!O33 -> 1 | AI44: =[1]Inputs!P33 -> 1 | AJ44: =[1]Inputs!Q33 -> 1 | AK44: =[1]Inputs!R33 -> 1 | AM44: 1 | AN44: 1 | AO44: 1 | AP44: 1 | AQ44: 1 | AR44: 1 | AS44: 1 | AT44: 1 | AU44: 1 | AV44: 1 | AW44: 1 | AX44: 1 | AY44: 1 | AZ44: 1 | BA44: 1 | BB44: 1 | BC44: 1
A45: =A42+1 -> 9 | B45: Additional allowance in 1 April 2015 PV terms | C45: 0 | D45: 0 | E45: 0 | F45: 0 | G45: 0 | H45: 0 | I45: 0 | J45: 0 | K45: 0 | L45: 0 | M45: 0 | N45: 0 | O45: 0 | P45: 0 | Q45: 0 | R45: 0 | S45: 0 | U45: =[1]Inputs!B34 -> 0 | V45: =[1]Inputs!C34 -> 0 | W45: =[1]Inputs!D34 -> 0 | X45: =[1]Inputs!E34 -> 0 | Y45: =[1]Inputs!F34 -> 0 | Z45: =[1]Inputs!G34 -> 0 | AA45: =[1]Inputs!H34 -> 0 | AB45: =[1]Inputs!I34 -> 0 | AC45: =[1]Inputs!J34 -> 0 | AD45: =[1]Inputs!K34 -> 0 | AE45: =[1]Inputs!L34 -> 0 | AF45: =[1]Inputs!M34 -> 0 | AG45: =[1]Inputs!N34 -> 0 | AH45: =[1]Inputs!O34 -> 0 | AI45: =[1]Inputs!P34 -> 0 | AJ45: =[1]Inputs!Q34 -> 0 | AK45: =[1]Inputs!R34 -> 0 | AM45: 0 | AN45: 0 | AO45: 0 | AP45: 0 | AQ45: 0 | AR45: 0 | AS45: 0 | AT45: 0 | AU45: 0 | AV45: 0 | AW45: 0 | AX45: 0 | AY45: 0 | AZ45: 0 | BA45: 0 | BB45: 0 | BC45: 0
A46: =A26 -> 14 | B46: Alternative X factor | C46: 0 | D46: 0 | E46: 0 | F46: 0 | G46: 0 | H46: 0 | I46: 0 | J46: 0 | K46: 0 | L46: 0 | M46: 0 | N46: 0 | O46: 0 | P46: 0 | Q46: 0 | R46: 0 | S46: 0 | U46: =[1]Inputs!B35 -> 0 | V46: =[1]Inputs!C35 -> 0 | W46: =[1]Inputs!D35 -> 0 | X46: =[1]Inputs!E35 -> 0 | Y46: =[1]Inputs!F35 -> 0 | Z46: =[1]Inputs!G35 -> 0 | AA46: =[1]Inputs!H35 -> 0 | AB46: =[1]Inputs!I35 -> 0 | AC46: =[1]Inputs!J35 -> 0 | AD46: =[1]Inputs!K35 -> 0 | AE46: =[1]Inputs!L35 -> 0 | AF46: =[1]Inputs!M35 -> 0 | AG46: =[1]Inputs!N35 -> 0 | AH46: =[1]Inputs!O35 -> 0 | AI46: =[1]Inputs!P35 -> 0 | AJ46: =[1]Inputs!Q35 -> 0 | AK46: =[1]Inputs!R35 -> 0 | AM46: 0 | AN46: -0.089 | AO46: 0 | AP46: 0 | AQ46: 0 | AR46: 0 | AS46: 0 | AT46: 0 | AU46: 0 | AV46: 0 | AW46: 0 | AX46: 0 | AY46: 0 | AZ46: 0 | BA46: 0 | BB46: 0 | BC46: 0
B47: Operating expenditure | BE47: =AM28 -> Alpine Energy | BF47: =AN28 -> Aurora Energy | BG47: Centralines | BH47: EA Networks | BI47: Eastland Network | BJ47: Electricity Invercargill | BK47: Horizon Energy | BL47: Nelson Electricity | BM47: Network Tasman | BN47: Orion NZ | BO47: OtagoNet | BP47: Powerco | BQ47: The Lines Company | BR47: Top Energy | BS47: Unison Networks | BT47: Vector Lines | BU47: Wellington Electricity
A48: =A72+1 -> 6 | B48: ="Operating expenditure, " & N19 -> Operating expenditure, 2018/19 | C48: =IF($C$5<$A48,AM48,U48) ->  | M48: =IF($C$5<$A48,AW48,AE48) -> 
A49: =$A$48 -> 6 | B49: Operating expenditure, 2019/20
A50: 6 | B50: Operating expenditure, 2020/21 | C50: 19420.27295 | D50: 44723.36092 | E50: 4226.355437 | F50: 11823.138 | G50: 10615.39048 | H50: 5180.711808 | I50: 9885.612004 | J50: 2246.837417 | K50: 11157.71197 | L50: 64153.5484 | M50: 9162.923911 | N50: 93422.96778 | O50: 14911.90269 | P50: 16021.47849 | Q50: 41582.38717 | R50: 127351.1379 | S50: 35667.65735 | U50: =[1]Inputs!B37 -> 19420.27295 | V50: =[1]Inputs!C37 -> 44723.36092 | W50: =[1]Inputs!D37 -> 4226.355437 | X50: =[1]Inputs!E37 -> 11823.138 | Y50: =[1]Inputs!F37 -> 10615.39048 | Z50: =[1]Inputs!G37 -> 5180.711808 | AA50: =[1]Inputs!H37 -> 9885.612004 | AB50: =[1]Inputs!I37 -> 2246.837417 | AC50: =[1]Inputs!J37 -> 11157.71197 | AD50: =[1]Inputs!K37 -> 64153.5484 | AE50: =[1]Inputs!L37 -> 9162.923911 | AF50: =[1]Inputs!M37 -> 93422.96778 | AG50: =[1]Inputs!N37 -> 14911.90269 | AH50: =[1]Inputs!O37 -> 16021.47849 | AI50: =[1]Inputs!P37 -> 41582.38717 | AJ50: =[1]Inputs!Q37 -> 127351.1379 | AK50: =[1]Inputs!R37 -> 35667.65735 | AM50: 18958.27695 | AN50: 40108.01182 | AO50: 3806.103561 | AP50: 13505.51834 | AQ50: 10850.673 | AR50: 4993.638188 | AS50: 11291.42424 | AT50: 2122.383493 | AU50: 12096.42151 | AV50: 61022.97054 | AW50: 7993.842907 | AX50: 77973.23545 | AY50: 13361.49606 | AZ50: 17657.33647 | BA50: 42559.57526 | BB50: 128568.6903 | BC50: 36822.09577 | BE50: =U50/AM50-1 -> 0.02436909268 | BF50: =V50/AN50-1 -> 0.1150729963 | BG50: 0.1104152499 | BH50: -0.1245698456 | BI50: -0.02168367992 | BJ50: 0.03746238973 | BK50: -0.12450265 | BL50: 0.05863875414 | BM50: -0.07760225118 | BN50: 0.05130163006 | BO50: 0.1462476832 | BP50: 0.1981414806 | BQ50: 0.1160354064 | BR50: -0.09264466276 | BS50: -0.02296047576 | BT50: -0.009470053117 | BU50: -0.03135178479
A51: 6 | B51: Operating expenditure, 2021/22 | C51: 20012.12028 | D51: 46248.5301 | E51: 4334.175299 | F51: 12215.64195 | G51: 10898.08181 | H51: 5310.586635 | I51: 10170.6927 | J51: 2316.975648 | K51: 11513.0795 | L51: 66487.65443 | M51: 9425.276484 | N51: 96485.78883 | O51: =IF($C$5<$A51,AY51,AG51) -> 15303.18716 | P51: 16537.34445 | Q51: 42904.14303 | R51: 132448.6848 | S51: 36792.11547 | U51: =[1]Inputs!B38 -> 20012.12028 | V51: =[1]Inputs!C38 -> 46248.5301 | W51: =[1]Inputs!D38 -> 4334.175299 | X51: =[1]Inputs!E38 -> 12215.64195 | Y51: =[1]Inputs!F38 -> 10898.08181 | Z51: =[1]Inputs!G38 -> 5310.586635 | AA51: =[1]Inputs!H38 -> 10170.6927 | AB51: =[1]Inputs!I38 -> 2316.975648 | AC51: =[1]Inputs!J38 -> 11513.0795 | AD51: =[1]Inputs!K38 -> 66487.65443 | AE51: =[1]Inputs!L38 -> 9425.276484 | AF51: =[1]Inputs!M38 -> 96485.78883 | AG51: =[1]Inputs!N38 -> 15303.18716 | AH51: =[1]Inputs!O38 -> 16537.34445 | AI51: =[1]Inputs!P38 -> 42904.14303 | AJ51: =[1]Inputs!Q38 -> 132448.6848 | AK51: =[1]Inputs!R38 -> 36792.11547 | AM51: 19558.63749 | AN51: 41758.76769 | AO51: 3878.336392 | AP51: 13998.54116 | AQ51: 11158.75254 | AR51: 5127.712059 | AS51: 11609.988 | AT51: 2191.999503 | AU51: 12483.73592 | AV51: 63364.75771 | AW51: 8233.409552 | AX51: 80518.99376 | AY51: 13747.62658 | AZ51: 18209.31413 | BA51: 43930.83323 | BB51: 133812.7745 | BC51: 38003.60011 | BE51: =U51/AM51-1 -> 0.02318580659 | BF51: 0.1075166404 | BG51: 0.1175346493 | BH51: -0.127363215 | BI51: -0.02336020394 | BJ51: 0.03566397147 | BK51: -0.1239704381 | BL51: 0.05701467734 | BM51: -0.07775368138 | BN51: 0.04928444177 | BO51: 0.1447598258 | BP51: 0.1982984924 | BQ51: 0.1131512102 | BR51: -0.09181947576 | BS51: -0.02337060607 | BT51: -0.01019401724 | BU51: -0.03187815468
A52: 6 | B52: Operating expenditure, 2022/23 | C52: 20629.43209 | D52: 48129.31552 | E52: 4446.350226 | F52: 12625.15911 | G52: 11192.33198 | H52: 5445.680406 | I52: 10485.31936 | J52: 2390.165825 | K52: 11880.37654 | L52: 68931.50553 | M52: 9698.649757 | N52: 99415.11327 | O52: 15708.68538 | P52: 17051.66159 | Q52: 44325.32603 | R52: 137800.8232 | S52: 37965.37991 | U52: =[1]Inputs!B39 -> 20629.43209 | V52: =[1]Inputs!C39 -> 48129.31552 | W52: =[1]Inputs!D39 -> 4446.350226 | X52: =[1]Inputs!E39 -> 12625.15911 | Y52: =[1]Inputs!F39 -> 11192.33198 | Z52: =[1]Inputs!G39 -> 5445.680406 | AA52: =[1]Inputs!H39 -> 10485.31936 | AB52: =[1]Inputs!I39 -> 2390.165825 | AC52: =[1]Inputs!J39 -> 11880.37654 | AD52: =[1]Inputs!K39 -> 68931.50553 | AE52: =[1]Inputs!L39 -> 9698.649757 | AF52: =[1]Inputs!M39 -> 99415.11327 | AG52: =[1]Inputs!N39 -> 15708.68538 | AH52: =[1]Inputs!O39 -> 17051.66159 | AI52: =[1]Inputs!P39 -> 44325.32603 | AJ52: =[1]Inputs!Q39 -> 137800.8232 | AK52: =[1]Inputs!R39 -> 37965.37991 | AM52: 20151.66449 | AN52: 43420.9089 | AO52: 3946.829692 | AP52: 14490.62343 | AQ52: 11460.5961 | AR52: 5258.511716 | AS52: 11921.95492 | AT52: 2260.942989 | AU52: 12866.63178 | AV52: 65710.50062 | AW52: 8469.089503 | AX52: 83039.30707 | AY52: 14126.45338 | AZ52: 18754.02958 | BA52: 45287.07074 | BB52: 139088.9347 | BC52: 39171.80533 | BE52: 0.02370859256 | BF52: 0.1084363901 | BG52: 0.1265624749 | BH52: -0.1287359596 | BI52: -0.02340751908 | BJ52: 0.03559347206 | BK52: -0.1205033542 | BL52: 0.05715439811 | BM52: -0.07665216914 | BN52: 0.04901811555 | BO52: 0.1451821065 | BP52: 0.1972054776 | BQ52: 0.1120049001 | BR52: -0.09077345122 | BS52: -0.02123662887 | BT52: -0.009261064254 | BU52: -0.03079831057
A53: 6 | B53: Operating expenditure, 2023/24 | C53: 21237.10451 | D53: 50194.34228 | E53: 4555.125601 | F53: 13063.73347 | G53: 11497.23373 | H53: 5585.037299 | I53: 10832.65929 | J53: 2464.998216 | K53: 12252.61888 | L53: 71320.63802 | M53: 9957.784343 | N53: 102609.6705 | O53: 16108.54615 | P53: 17569.3518 | Q53: 45716.09645 | R53: 142973.171 | S53: 39168.44702 | U53: =[1]Inputs!B40 -> 21237.10451 | V53: =[1]Inputs!C40 -> 50194.34228 | W53: =[1]Inputs!D40 -> 4555.125601 | X53: =[1]Inputs!E40 -> 13063.73347 | Y53: =[1]Inputs!F40 -> 11497.23373 | Z53: =[1]Inputs!G40 -> 5585.037299 | AA53: =[1]Inputs!H40 -> 10832.65929 | AB53: =[1]Inputs!I40 -> 2464.998216 | AC53: =[1]Inputs!J40 -> 12252.61888 | AD53: =[1]Inputs!K40 -> 71320.63802 | AE53: =[1]Inputs!L40 -> 9957.784343 | AF53: =[1]Inputs!M40 -> 102609.6705 | AG53: =[1]Inputs!N40 -> 16108.54615 | AH53: =[1]Inputs!O40 -> 17569.3518 | AI53: =[1]Inputs!P40 -> 45716.09645 | AJ53: =[1]Inputs!Q40 -> 142973.171 | AK53: =[1]Inputs!R40 -> 39168.44702 | AM53: 20709.7457 | AN53: 44972.79235 | AO53: 4003.142186 | AP53: 14960.7268 | AQ53: 11738.52793 | AR53: 5379.542644 | AS53: 12207.88699 | AT53: 2324.809394 | AU53: 13221.66223 | AV53: 67829.46906 | AW53: 8674.731494 | AX53: 85377.3673 | AY53: 14453.9179 | AZ53: 19260.57163 | BA53: 46545.18499 | BB53: 143907.6248 | BC53: 40251.97425 | BE53: 0.02546428217 | BF53: 0.1161046413 | BG53: 0.1378875368 | BH53: -0.126798207 | BI53: -0.02055574594 | BJ53: 0.03819927979 | BK53: -0.1126507562 | BL53: 0.06030121114 | BM53: -0.07329209693 | BN53: 0.05146979625 | BO53: 0.1479069236 | BP53: 0.2018369012 | BQ53: 0.1144761075 | BR53: -0.08780735405 | BS53: -0.01781255225 | BT53: -0.006493428053 | BU53: -0.02691861068
A54: =$A$48 -> 6 | B54: Operating expenditure, 2024/25 | C54: 21815.91739 | D54: 51957.91286 | E54: 4656.581727 | F54: 13485.87562 | G54: 11783.55828 | H54: 5715.710443 | I54: 11113.44999 | J54: 2536.716857 | K54: 12609.49819 | L54: 73634.73386 | M54: 10201.98055 | N54: 106186.7639 | O54: 16483.22902 | P54: 18063.17601 | Q54: 47028.87762 | R54: 148015.8896 | S54: 40320.61647 | U54: =[1]Inputs!B41 -> 21815.91739 | V54: =[1]Inputs!C41 -> 51957.91286 | W54: =[1]Inputs!D41 -> 4656.581727 | X54: =[1]Inputs!E41 -> 13485.87562 | Y54: =[1]Inputs!F41 -> 11783.55828 | Z54: =[1]Inputs!G41 -> 5715.710443 | AA54: =[1]Inputs!H41 -> 11113.44999 | AB54: =[1]Inputs!I41 -> 2536.716857 | AC54: =[1]Inputs!J41 -> 12609.49819 | AD54: =[1]Inputs!K41 -> 73634.73386 | AE54: =[1]Inputs!L41 -> 10201.98055 | AF54: =[1]Inputs!M41 -> 106186.7639 | AG54: =[1]Inputs!N41 -> 16483.22902 | AH54: =[1]Inputs!O41 -> 18063.17601 | AI54: =[1]Inputs!P41 -> 47028.87762 | AJ54: =[1]Inputs!Q41 -> 148015.8896 | AK54: =[1]Inputs!R41 -> 40320.61647 | AM54: 21127.6113 | AN54: 46239.73787 | AO54: 4030.604862 | AP54: 15333.11227 | AQ54: 11935.25806 | AR54: 5463.106639 | AS54: 12409.24676 | AT54: 2372.995228 | AU54: 13487.11339 | AV54: 69504.64817 | AW54: 8820.378022 | AX54: 87139.19481 | AY54: 14680.81739 | AZ54: 19636.11582 | BA54: 47488.35882 | BB54: 147804.197 | BC54: 41059.39379 | BE54: 0.03257850952 | BF54: 0.123663655 | BG54: 0.155305937 | BH54: -0.1204736919 | BI54: -0.01271022246 | BJ54: 0.04623812431 | BK54: -0.1044218713 | BL54: 0.06899366156 | BM54: -0.06507064803 | BN54: 0.05942171928 | BO54: 0.1566375641 | BP54: 0.2185878484 | BQ54: 0.1227732474 | BR54: -0.0801044273 | BS54: -0.009675659624 | BT54: 0.001432250325 | BU54: -0.01799289379
B55: Constant price revenue growth | U55: Zeroed
A56: =A16+1 -> 13 | B56: ="Constant price revenue growth, " & N19 -> Constant price revenue growth, 2018/19 | C56: =IF($C$5<$A56,AM56,U56) -> 0 | D56: 0 | E56: 0 | F56: 0 | G56: 0 | H56: 0 | I56: 0 | J56: 0 | K56: 0 | L56: 0 | M56: =IF($C$5<$A56,AW56,AE56) -> 0 | N56: 0 | O56: 0 | P56: 0 | Q56: 0 | R56: 0 | S56: 0 | U56: 0 | V56: 0 | W56: 0 | X56: 0 | Y56: 0 | Z56: 0 | AA56: 0 | AB56: 0 | AC56: 0 | AD56: 0 | AE56: 0 | AF56: 0 | AG56: 0 | AH56: 0 | AI56: 0 | AJ56: 0 | AK56: 0 | AM56: 0 | AN56: 0 | AO56: 0 | AP56: 0 | AQ56: 0 | AR56: 0 | AS56: 0 | AT56: 0 | AU56: 0 | AV56: 0 | AW56: 0 | AX56: 0 | AY56: 0 | AZ56: 0 | BA56: 0 | BB56: 0 | BC56: 0
A57: =$A$56 -> 13 | B57: Constant price revenue growth, 2019/20 | C57: 0 | D57: 0 | E57: 0 | F57: 0 | G57: 0 | H57: 0 | I57: 0 | J57: 0 | K57: 0 | L57: 0 | M57: 0 | N57: 0 | O57: 0 | P57: 0 | Q57: 0 | R57: 0 | S57: 0 | U57: 0 | V57: 0 | W57: 0 | X57: 0 | Y57: 0 | Z57: 0 | AA57: 0 | AB57: 0 | AC57: 0 | AD57: 0 | AE57: 0 | AF57: 0 | AG57: 0 | AH57: 0 | AI57: 0 | AJ57: 0 | AK57: 0 | AM57: 0 | AN57: 0 | AO57: 0 | AP57: 0 | AQ57: 0 | AR57: 0 | AS57: 0 | AT57: 0 | AU57: 0 | AV57: 0 | AW57: 0 | AX57: 0 | AY57: 0 | AZ57: 0 | BA57: 0 | BB57: 0 | BC57: 0
A58: 13 | B58: Constant price revenue growth, 2020/21 | C58: 0 | D58: 0 | E58: 0 | F58: 0 | G58: 0 | H58: 0 | I58: 0 | J58: 0 | K58: 0 | L58: 0 | M58: 0 | N58: 0 | O58: 0 | P58: 0 | Q58: 0 | R58: 0 | S58: 0 | U58: 0 | V58: 0 | W58: 0 | X58: 0 | Y58: 0 | Z58: 0 | AA58: 0 | AB58: 0 | AC58: 0 | AD58: 0 | AE58: 0 | AF58: 0 | AG58: 0 | AH58: 0 | AI58: 0 | AJ58: 0 | AK58: 0 | AM58: 0 | AN58: 0 | AO58: 0 | AP58: 0 | AQ58: 0 | AR58: 0 | AS58: 0 | AT58: 0 | AU58: 0 | AV58: 0 | AW58: 0 | AX58: 0 | AY58: 0 | AZ58: 0 | BA58: 0 | BB58: 0 | BC58: 0
A59: 13 | B59: Constant price revenue growth, 2021/22 | C59: 0 | D59: 0 | E59: 0 | F59: 0 | G59: 0 | H59: 0 | I59: 0 | J59: 0 | K59: 0 | L59: 0 | M59: 0 | N59: 0 | O59: 0 | P59: 0 | Q59: 0 | R59: 0 | S59: 0 | U59: 0 | V59: 0 | W59: 0 | X59: 0 | Y59: 0 | Z59: 0 | AA59: 0 | AB59: 0 | AC59: 0 | AD59: 0 | AE59: 0 | AF59: 0 | AG59: 0 | AH59: 0 | AI59: 0 | AJ59: 0 | AK59: 0 | AM59: 0 | AN59: 0 | AO59: 0 | AP59: 0 | AQ59: 0 | AR59: 0 | AS59: 0 | AT59: 0 | AU59: 0 | AV59: 0 | AW59: 0 | AX59: 0 | AY59: 0 | AZ59: 0 | BA59: 0 | BB59: 0 | BC59: 0
A60: 13 | B60: Constant price revenue growth, 2022/23 | C60: 0 | D60: 0 | E60: 0 | F60: 0 | G60: 0 | H60: 0 | I60: 0 | J60: 0 | K60: 0 | L60: 0 | M60: 0 | N60: 0 | O60: 0 | P60: 0 | Q60: 0 | R60: 0 | S60: 0 | U60: 0 | V60: 0 | W60: 0 | X60: 0 | Y60: 0 | Z60: 0 | AA60: 0 | AB60: 0 | AC60: 0 | AD60: 0 | AE60: 0 | AF60: 0 | AG60: 0 | AH60: 0 | AI60: 0 | AJ60: 0 | AK60: 0 | AM60: 0 | AN60: 0 | AO60: 0 | AP60: 0 | AQ60: 0 | AR60: 0 | AS60: 0 | AT60: 0 | AU60: 0 | AV60: 0 | AW60: 0 | AX60: 0 | AY60: 0 | AZ60: 0 | BA60: 0 | BB60: 0 | BC60: 0
A61: 13 | B61: Constant price revenue growth, 2023/24 | C61: 0 | D61: 0 | E61: 0 | F61: 0 | G61: 0 | H61: 0 | I61: 0 | J61: 0 | K61: 0 | L61: 0 | M61: 0 | N61: 0 | O61: 0 | P61: 0 | Q61: 0 | R61: 0 | S61: 0 | U61: 0 | V61: 0 | W61: 0 | X61: 0 | Y61: 0 | Z61: 0 | AA61: 0 | AB61: 0 | AC61: 0 | AD61: 0 | AE61: 0 | AF61: 0 | AG61: 0 | AH61: 0 | AI61: 0 | AJ61: 0 | AK61: 0 | AM61: 0 | AN61: 0 | AO61: 0 | AP61: 0 | AQ61: 0 | AR61: 0 | AS61: 0 | AT61: 0 | AU61: 0 | AV61: 0 | AW61: 0 | AX61: 0 | AY61: 0 | AZ61: 0 | BA61: 0 | BB61: 0 | BC61: 0
A62: 13 | B62: Constant price revenue growth, 2024/25 | C62: 0 | D62: 0 | E62: 0 | F62: 0 | G62: 0 | H62: 0 | I62: 0 | J62: 0 | K62: 0 | L62: 0 | M62: 0 | N62: 0 | O62: 0 | P62: 0 | Q62: 0 | R62: 0 | S62: 0 | U62: 0 | V62: 0 | W62: 0 | X62: 0 | Y62: 0 | Z62: 0 | AA62: 0 | AB62: 0 | AC62: 0 | AD62: 0 | AE62: 0 | AF62: 0 | AG62: 0 | AH62: 0 | AI62: 0 | AJ62: 0 | AK62: 0 | AM62: 0 | AN62: 0 | AO62: 0 | AP62: 0 | AQ62: 0 | AR62: 0 | AS62: 0 | AT62: 0 | AU62: 0 | AV62: 0 | AW62: 0 | AX62: 0 | AY62: 0 | AZ62: 0 | BA62: 0 | BB62: 0 | BC62: 0
B63: Value of commissioned assets | U63: VCA ex AMPs
A64: =A37+1 -> 4 | B64: ="Value of commissioned assets, " & N19 -> Value of commissioned assets, 2018/19 | C64: =IF($C$5<$A64,AM64,U64) -> 17961.77993 | D64: 63004.354 | E64: 5064 | F64: 16375.66566 | G64: 11755.60458 | H64: 4533.37 | I64: 12884.01 | J64: 1659.3482 | K64: 6557 | L64: 63636.968 | M64: =IF($C$5<$A64,AW64,AE64) -> 12936.76861 | N64: 185312.7343 | O64: 23462.78369 | P64: 15378.41393 | Q64: 53881.408 | R64: 203460 | S64: 37191.00171 | U64: =[1]Inputs!B43 -> 17961.77993 | V64: =[1]Inputs!C43 -> 63004.354 | W64: =[1]Inputs!D43 -> 5064 | X64: =[1]Inputs!E43 -> 16375.66566 | Y64: =[1]Inputs!F43 -> 11755.60458 | Z64: =[1]Inputs!G43 -> 4533.37 | AA64: =[1]Inputs!H43 -> 12884.01 | AB64: =[1]Inputs!I43 -> 1659.3482 | AC64: =[1]Inputs!J43 -> 6557 | AD64: =[1]Inputs!K43 -> 63636.968 | AE64: =[1]Inputs!L43 -> 12936.76861 | AF64: =[1]Inputs!M43 -> 185312.7343 | AG64: =[1]Inputs!N43 -> 23462.78369 | AH64: =[1]Inputs!O43 -> 15378.41393 | AI64: =[1]Inputs!P43 -> 53881.408 | AJ64: =[1]Inputs!Q43 -> 203460 | AK64: =[1]Inputs!R43 -> 37191.00171 | AM64: 21003.3359 | AN64: 96115.46671 | AO64: 3568.138988 | AP64: 25588.00668 | AQ64: 12171.17964 | AR64: 4750.08918 | AS64: 6429.087178 | AT64: 1683 | AU64: 13532 | AV64: 89138 | AW64: 17452.59507 | AX64: 220284 | AY64: 17591.63888 | AZ64: 22622.20291 | BA64: 44116.6044 | BB64: 181452 | BC64: 40675.69359
A65: =$A$64 -> 4 | B65: Value of commissioned assets, 2019/20 | C65: 14014 | D65: 76195.24183 | E65: 6913.263609 | F65: 21629.30733 | G65: 9803.84829 | H65: 5750.222511 | I65: 8296.868168 | J65: 1552 | K65: 15593 | L65: 66443.232 | M65: 23187.72482 | N65: 180476 | O65: 18922.35535 | P65: 31785.32203 | Q65: 50412.92153 | R65: 240761 | S65: 52409.99428 | U65: =[1]Inputs!B44 -> 14014 | V65: =[1]Inputs!C44 -> 76195.24183 | W65: =[1]Inputs!D44 -> 6913.263609 | X65: =[1]Inputs!E44 -> 21629.30733 | Y65: =[1]Inputs!F44 -> 9803.84829 | Z65: =[1]Inputs!G44 -> 5750.222511 | AA65: =[1]Inputs!H44 -> 8296.868168 | AB65: =[1]Inputs!I44 -> 1552 | AC65: =[1]Inputs!J44 -> 15593 | AD65: =[1]Inputs!K44 -> 66443.232 | AE65: =[1]Inputs!L44 -> 23187.72482 | AF65: =[1]Inputs!M44 -> 180476 | AG65: =[1]Inputs!N44 -> 18922.35535 | AH65: =[1]Inputs!O44 -> 31785.32203 | AI65: =[1]Inputs!P44 -> 50412.92153 | AJ65: =[1]Inputs!Q44 -> 240761 | AK65: =[1]Inputs!R44 -> 52409.99428 | AM65: 10680.654 | AN65: 75591.46229 | AO65: 3757.937584 | AP65: 21189.32363 | AQ65: 11640.21012 | AR65: 1899.110302 | AS65: 7324.652052 | AT65: 1345.32 | AU65: 12803 | AV65: 59334 | AW65: 16885.66094 | AX65: 166854 | AY65: 16746.31471 | AZ65: 25001.25727 | BA65: 44601.05877 | BB65: 179966 | BC65: 45090.89669
A66: 4 | B66: Value of commissioned assets, 2020/21 | C66: 16663.08499 | D66: 50947.77351 | E66: 6059.7474 | F66: 18050.31413 | G66: 9684.977778 | H66: 4655.623511 | I66: 8322.469242 | J66: 1627.474824 | K66: 10289.86037 | L66: 72172.3836 | M66: 13989.58467 | O66: 18320.86004 | P66: 14593.15331 | Q66: 46746.12475 | R66: 211119.9719 | S66: 37748.02201 | U66: =[1]Inputs!B45 -> 16663.08499 | V66: =[1]Inputs!C45 -> 50947.77351 | W66: =[1]Inputs!D45 -> 6059.7474 | X66: =[1]Inputs!E45 -> 18050.31413 | Y66: =[1]Inputs!F45 -> 9684.977778 | Z66: =[1]Inputs!G45 -> 4655.623511 | AA66: =[1]Inputs!H45 -> 8322.469242 | AB66: =[1]Inputs!I45 -> 1627.474824 | AC66: =[1]Inputs!J45 -> 10289.86037 | AD66: =[1]Inputs!K45 -> 72172.3836 | AE66: =[1]Inputs!L45 -> 13989.58467 | AF66: =[1]Inputs!M45 ->  | AG66: =[1]Inputs!N45 -> 18320.86004 | AH66: =[1]Inputs!O45 -> 14593.15331 | AI66: =[1]Inputs!P45 -> 46746.12475 | AJ66: =[1]Inputs!Q45 -> 211119.9719 | AK66: =[1]Inputs!R45 -> 37748.02201 | AM66: 16681.11344 | AN66: 29927.53016 | AO66: 2840.160078 | AP66: 19238.7558 | AQ66: 8521.103953 | AR66: 4512.976058 | AS66: 8241.896502 | AT66: 1491.012419 | AU66: 5449.356954 | AV66: 60621.18221 | AW66: 14983.40975 | AY66: 12186.89563 | AZ66: 22807.15378 | BA66: 45181.92748 | BB66: 169613.4004 | BC66: 42385.314
A67: 4 | B67: Value of commissioned assets, 2021/22 | C67: 16978.39945 | D67: 50750.30833 | E67: 2773.830772 | F67: 17941.49324 | G67: 10136.40106 | H67: 5052.944771 | I67: 6720.079499 | J67: 1709.820373 | K67: 12261.46064 | L67: 63777.11187 | M67: 13504.17305 | O67: 16919.22791 | P67: 15127.25397 | Q67: 52524.92856 | R67: 209600.0063 | S67: 35509.95434 | U67: =[1]Inputs!B46 -> 16978.39945 | V67: =[1]Inputs!C46 -> 50750.30833 | W67: =[1]Inputs!D46 -> 2773.830772 | X67: =[1]Inputs!E46 -> 17941.49324 | Y67: =[1]Inputs!F46 -> 10136.40106 | Z67: =[1]Inputs!G46 -> 5052.944771 | AA67: =[1]Inputs!H46 -> 6720.079499 | AB67: =[1]Inputs!I46 -> 1709.820373 | AC67: =[1]Inputs!J46 -> 12261.46064 | AD67: =[1]Inputs!K46 -> 63777.11187 | AE67: =[1]Inputs!L46 -> 13504.17305 | AF67: =[1]Inputs!M46 ->  | AG67: =[1]Inputs!N46 -> 16919.22791 | AH67: =[1]Inputs!O46 -> 15127.25397 | AI67: =[1]Inputs!P46 -> 52524.92856 | AJ67: =[1]Inputs!Q46 -> 209600.0063 | AK67: =[1]Inputs!R46 -> 35509.95434 | AM67: 16097.18299 | AN67: 30649.84492 | AO67: 2668.165337 | AP67: 19088.25832 | AQ67: 7729.775832 | AR67: 3804.700931 | AS67: 6286.986161 | AT67: 1617.788593 | AU67: 6787.65066 | AV67: 64785.6191 | AW67: 15216.95455 | AY67: 12286.82356 | AZ67: 16698.18597 | BA67: 44799.4973 | BB67: 190827.1429 | BC67: 31714.42059
A68: 4 | B68: Value of commissioned assets, 2022/23 | C68: 15377.14096 | D68: 48245.58195 | E68: 3967.781561 | F68: 17796.75912 | G68: 8982.174078 | H68: 5567.574752 | I68: 8075.367255 | J68: 1663.731588 | K68: 9042.364133 | L68: 89623.65441 | M68: 18002.80896 | O68: 15873.67665 | P68: 16514.78571 | Q68: 50530.60146 | R68: 213423.9823 | S68: 37677.09052 | U68: =[1]Inputs!B47 -> 15377.14096 | V68: =[1]Inputs!C47 -> 48245.58195 | W68: =[1]Inputs!D47 -> 3967.781561 | X68: =[1]Inputs!E47 -> 17796.75912 | Y68: =[1]Inputs!F47 -> 8982.174078 | Z68: =[1]Inputs!G47 -> 5567.574752 | AA68: =[1]Inputs!H47 -> 8075.367255 | AB68: =[1]Inputs!I47 -> 1663.731588 | AC68: =[1]Inputs!J47 -> 9042.364133 | AD68: =[1]Inputs!K47 -> 89623.65441 | AE68: =[1]Inputs!L47 -> 18002.80896 | AF68: =[1]Inputs!M47 ->  | AG68: =[1]Inputs!N47 -> 15873.67665 | AH68: =[1]Inputs!O47 -> 16514.78571 | AI68: =[1]Inputs!P47 -> 50530.60146 | AJ68: =[1]Inputs!Q47 -> 213423.9823 | AK68: =[1]Inputs!R47 -> 37677.09052 | AM68: 13450.52029 | AN68: 30012.27049 | AO68: 2700.887345 | AP68: 18058.85735 | AQ68: 7311.317123 | AR68: 4167.923621 | AS68: 6750.024192 | AT68: 1652.103257 | AU68: 6445.362832 | AV68: 69550.18462 | AW68: 15966.67854 | AY68: 11928.51651 | AZ68: 16364.169 | BA68: 44115.77441 | BB68: 204070.2506 | BC68: 33652.83131
A69: 4 | B69: Value of commissioned assets, 2023/24 | C69: 14672.77715 | D69: 38772.73852 | E69: 2840.710231 | F69: 15710.8415 | G69: 9383.363028 | H69: 5578.077014 | I69: 8520.763277 | J69: 1665.534351 | K69: 10071.95114 | L69: 79929.574 | M69: 23071.29684 | O69: 16558.30227 | P69: 16264.11707 | Q69: 46851.60486 | R69: 209518.1839 | S69: 39911.18605 | U69: =[1]Inputs!B48 -> 14672.77715 | V69: =[1]Inputs!C48 -> 38772.73852 | W69: =[1]Inputs!D48 -> 2840.710231 | X69: =[1]Inputs!E48 -> 15710.8415 | Y69: =[1]Inputs!F48 -> 9383.363028 | Z69: =[1]Inputs!G48 -> 5578.077014 | AA69: =[1]Inputs!H48 -> 8520.763277 | AB69: =[1]Inputs!I48 -> 1665.534351 | AC69: =[1]Inputs!J48 -> 10071.95114 | AD69: =[1]Inputs!K48 -> 79929.574 | AE69: =[1]Inputs!L48 -> 23071.29684 | AF69: =[1]Inputs!M48 ->  | AG69: =[1]Inputs!N48 -> 16558.30227 | AH69: =[1]Inputs!O48 -> 16264.11707 | AI69: =[1]Inputs!P48 -> 46851.60486 | AJ69: =[1]Inputs!Q48 -> 209518.1839 | AK69: =[1]Inputs!R48 -> 39911.18605 | AM69: 14062.53155 | AN69: 28159.61044 | AO69: 3232.563804 | AP69: 15819.04408 | AQ69: 8261.253855 | AR69: 4125.952791 | AS69: 7480.150931 | AT69: 1843.280188 | AU69: 4310.233232 | AV69: 66466.17943 | AW69: 16984.19237 | AY69: 11690.56427 | AZ69: 16657.70283 | BA69: 49989.79844 | BB69: 199263.7933 | BC69: 35350.25396
A70: 4 | B70: Value of commissioned assets, 2024/25 | C70: 14150.71115 | D70: 43211.49356 | E70: 2963.686482 | F70: 14722.51895 | G70: 10052.31519 | H70: 5125.786826 | I70: 8567.100545 | J70: 1671.915809 | K70: 8471.990543 | L70: 84444.36524 | M70: 13934.59964 | O70: 15250.21014 | P70: 16597.07094 | Q70: 48041.41008 | R70: 197131.6496 | S70: 42077.36282 | U70: =[1]Inputs!B49 -> 14150.71115 | V70: =[1]Inputs!C49 -> 43211.49356 | W70: =[1]Inputs!D49 -> 2963.686482 | X70: =[1]Inputs!E49 -> 14722.51895 | Y70: =[1]Inputs!F49 -> 10052.31519 | Z70: =[1]Inputs!G49 -> 5125.786826 | AA70: =[1]Inputs!H49 -> 8567.100545 | AB70: =[1]Inputs!I49 -> 1671.915809 | AC70: =[1]Inputs!J49 -> 8471.990543 | AD70: =[1]Inputs!K49 -> 84444.36524 | AE70: =[1]Inputs!L49 -> 13934.59964 | AF70: =[1]Inputs!M49 ->  | AG70: =[1]Inputs!N49 -> 15250.21014 | AH70: =[1]Inputs!O49 -> 16597.07094 | AI70: =[1]Inputs!P49 -> 48041.41008 | AJ70: =[1]Inputs!Q49 -> 197131.6496 | AK70: =[1]Inputs!R49 -> 42077.36282 | AM70: 11411.98307 | AN70: 29245.39047 | AO70: 3322.328046 | AP70: 16277.87495 | AQ70: 9078.485682 | AR70: 4192.018008 | AS70: 8079.859231 | AT70: 1670.123921 | AU70: 4688.713208 | AV70: 78731.04057 | AW70: 16670.84603 | AY70: 12254.51766 | AZ70: 17735.53137 | BA70: 48856.4802 | BB70: 189811.2063 | BC70: 38418.87936
B71: Disposed assets
A72: =A64+1 -> 5 | B72: ="Value of disposed assets, " & N19 -> Value of disposed assets, 2018/19 | C72: =IF($C$5<$A72,AM72,U72) -> 0 | D72: 853.067 | E72: 38 | F72: 773.1872516 | G72: 162.027095 | H72: 125.5172149 | I72: 142.4 | J72: 0 | K72: 393 | L72: 1377.93637 | M72: =IF($C$5<$A72,AW72,AE72) -> 79.50196669 | N72: 12095.95858 | O72: 346.585288 | P72: 15.95 | Q72: 1812 | R72: 7412 | S72: 0 | U72: =[1]Inputs!B51 -> 0 | V72: =[1]Inputs!C51 -> 853.067 | W72: =[1]Inputs!D51 -> 38 | X72: =[1]Inputs!E51 -> 773.1872516 | Y72: =[1]Inputs!F51 -> 162.027095 | Z72: =[1]Inputs!G51 -> 125.5172149 | AA72: =[1]Inputs!H51 -> 142.4 | AB72: =[1]Inputs!I51 -> 0 | AC72: =[1]Inputs!J51 -> 393 | AD72: =[1]Inputs!K51 -> 1377.93637 | AE72: =[1]Inputs!L51 -> 79.50196669 | AF72: =[1]Inputs!M51 -> 12095.95858 | AG72: =[1]Inputs!N51 -> 346.585288 | AH72: =[1]Inputs!O51 -> 15.95 | AI72: =[1]Inputs!P51 -> 1812 | AJ72: =[1]Inputs!Q51 -> 7412 | AK72: =[1]Inputs!R51 -> 0 | AM72: 160.6594222 | AN72: 144.78 | AO72: 25.17212308 | AP72: 1137.427863 | AQ72: 179.0675311 | AR72: 119.3772106 | AS72: 308.3227895 | AT72: 85.73454977 | AU72: 577.2377865 | AV72: 1770.935018 | AW72: 332.9106814 | AX72: 11393.89328 | AY72: 536.7708384 | AZ72: 29.82463074 | BA72: 2779.792771 | BB72: 11397.60826 | BC72: 4.04033003
A73: =$A$72 -> 5 | B73: Value of disposed assets, 2019/20 | C73: 130.5628549 | D73: 291.1814714 | E73: 28.18579202 | F73: 1081.618105 | G73: 178.4788566 | H73: 122.5443026 | I73: 279.5283851 | J73: 69.6737697 | K73: 549.0391778 | L73: 1719.455398 | M73: 286.7167309 | N73: 11719.77637 | O73: 506.7122106 | P73: 27.48176853 | Q73: 2627.610878 | R73: 10769.99498 | S73: 3.283449027 | U73: =[1]Inputs!B52 -> 130.5628549 | V73: =[1]Inputs!C52 -> 291.1814714 | W73: =[1]Inputs!D52 -> 28.18579202 | X73: =[1]Inputs!E52 -> 1081.618105 | Y73: =[1]Inputs!F52 -> 178.4788566 | Z73: =[1]Inputs!G52 -> 122.5443026 | AA73: =[1]Inputs!H52 -> 279.5283851 | AB73: =[1]Inputs!I52 -> 69.6737697 | AC73: =[1]Inputs!J52 -> 549.0391778 | AD73: =[1]Inputs!K52 -> 1719.455398 | AE73: =[1]Inputs!L52 -> 286.7167309 | AF73: =[1]Inputs!M52 -> 11719.77637 | AG73: =[1]Inputs!N52 -> 506.7122106 | AH73: =[1]Inputs!O52 -> 27.48176853 | AI73: =[1]Inputs!P52 -> 2627.610878 | AJ73: =[1]Inputs!Q52 -> 10769.99498 | AK73: =[1]Inputs!R52 -> 3.283449027 | AM73: 163.3906324 | AN73: 147.24126 | AO73: 25.60004918 | AP73: 1156.764137 | AQ73: 182.1116791 | AR73: 121.4066232 | AS73: 313.5642769 | AT73: 87.19203711 | AU73: 587.0508288 | AV73: 1801.040913 | AW73: 338.570163 | AX73: 11587.58947 | AY73: 545.8959426 | AZ73: 30.33164946 | BA73: 2827.049248 | BB73: 11591.3676 | BC73: 4.10901564
A74: =$A$72 -> 5 | B74: Value of disposed assets, 2020/21 | C74: 133.0435492 | D74: 296.7139193 | E74: 28.72132207 | F74: 1102.168849 | G74: 181.8699549 | H74: 124.8726444 | I74: 284.8394244 | J74: 70.99757132 | K74: 559.4709222 | L74: 1752.125051 | M74: 292.1643488 | N74: 11942.45212 | O74: 516.3397426 | P74: 28.00392213 | Q74: 2677.535484 | R74: 10974.62489 | S74: 3.345834558 | U74: =[1]Inputs!B53 -> 133.0435492 | V74: =[1]Inputs!C53 -> 296.7139193 | W74: =[1]Inputs!D53 -> 28.72132207 | X74: =[1]Inputs!E53 -> 1102.168849 | Y74: =[1]Inputs!F53 -> 181.8699549 | Z74: =[1]Inputs!G53 -> 124.8726444 | AA74: =[1]Inputs!H53 -> 284.8394244 | AB74: =[1]Inputs!I53 -> 70.99757132 | AC74: =[1]Inputs!J53 -> 559.4709222 | AD74: =[1]Inputs!K53 -> 1752.125051 | AE74: =[1]Inputs!L53 -> 292.1643488 | AF74: =[1]Inputs!M53 -> 11942.45212 | AG74: =[1]Inputs!N53 -> 516.3397426 | AH74: =[1]Inputs!O53 -> 28.00392213 | AI74: =[1]Inputs!P53 -> 2677.535484 | AJ74: =[1]Inputs!Q53 -> 10974.62489 | AK74: =[1]Inputs!R53 -> 3.345834558 | AM74: 166.8218357 | AN74: 150.3333265 | AO74: 26.13765021 | AP74: 1181.056183 | AQ74: 185.9360244 | AR74: 123.9561623 | AS74: 320.1491267 | AT74: 89.02306989 | AU74: 599.3788962 | AV74: 1838.862773 | AW74: 345.6801364 | AX74: 11830.92884 | AY74: 557.3597574 | AZ74: 30.9686141 | BA74: 2886.417282 | BB74: 11834.78632 | BC74: 4.195304969
A75: 5 | B75: Value of disposed assets, 2021/22 | C75: 135.7044202 | D75: 302.6481977 | E75: 29.29574851 | F75: 1124.212226 | G75: 185.507354 | H75: 127.3700973 | I75: 290.5362129 | J75: 72.41752275 | K75: 570.6603406 | L75: 1787.167552 | M75: 298.0076358 | N75: 12181.30116 | O75: 526.6665374 | P75: 28.56400058 | Q75: 2731.086194 | R75: 11194.11739 | S75: 3.412751249 | U75: =[1]Inputs!B54 -> 135.7044202 | V75: =[1]Inputs!C54 -> 302.6481977 | W75: =[1]Inputs!D54 -> 29.29574851 | X75: =[1]Inputs!E54 -> 1124.212226 | Y75: =[1]Inputs!F54 -> 185.507354 | Z75: =[1]Inputs!G54 -> 127.3700973 | AA75: =[1]Inputs!H54 -> 290.5362129 | AB75: =[1]Inputs!I54 -> 72.41752275 | AC75: =[1]Inputs!J54 -> 570.6603406 | AD75: =[1]Inputs!K54 -> 1787.167552 | AE75: =[1]Inputs!L54 -> 298.0076358 | AF75: =[1]Inputs!M54 -> 12181.30116 | AG75: =[1]Inputs!N54 -> 526.6665374 | AH75: =[1]Inputs!O54 -> 28.56400058 | AI75: =[1]Inputs!P54 -> 2731.086194 | AJ75: =[1]Inputs!Q54 -> 11194.11739 | AK75: =[1]Inputs!R54 -> 3.412751249 | AM75: 170.3250942 | AN75: 153.4903263 | AO75: 26.68654086 | AP75: 1205.858363 | AQ75: 189.8406809 | AR75: 126.5592417 | AS75: 326.8722584 | AT75: 90.89255436 | AU75: 611.9658531 | AV75: 1877.478891 | AW75: 352.9394193 | AX75: 12079.37835 | AY75: 569.0643123 | AZ75: 31.618955 | BA75: 2947.032045 | BB75: 12083.31683 | BC75: 4.283406373
A76: 5 | B76: Value of disposed assets, 2022/23 | C76: 138.4185086 | D76: 308.7011617 | E76: 29.88166348 | F76: 1146.696471 | G76: 189.2175011 | H76: 129.9174992 | I76: 296.3469372 | J76: 73.8658732 | K76: 582.0735474 | L76: 1822.910903 | M76: 303.9677885 | N76: 12424.92718 | O76: 537.1998682 | P76: 29.13528059 | Q76: 2785.707918 | R76: 11417.99973 | S76: 3.481006274 | U76: =[1]Inputs!B55 -> 138.4185086 | V76: =[1]Inputs!C55 -> 308.7011617 | W76: =[1]Inputs!D55 -> 29.88166348 | X76: =[1]Inputs!E55 -> 1146.696471 | Y76: =[1]Inputs!F55 -> 189.2175011 | Z76: =[1]Inputs!G55 -> 129.9174992 | AA76: =[1]Inputs!H55 -> 296.3469372 | AB76: =[1]Inputs!I55 -> 73.8658732 | AC76: =[1]Inputs!J55 -> 582.0735474 | AD76: =[1]Inputs!K55 -> 1822.910903 | AE76: =[1]Inputs!L55 -> 303.9677885 | AF76: =[1]Inputs!M55 -> 12424.92718 | AG76: =[1]Inputs!N55 -> 537.1998682 | AH76: =[1]Inputs!O55 -> 29.13528059 | AI76: =[1]Inputs!P55 -> 2785.707918 | AJ76: =[1]Inputs!Q55 -> 11417.99973 | AK76: =[1]Inputs!R55 -> 3.481006274 | AM76: 173.8451462 | AN76: 156.6624597 | AO76: 27.23806271 | AP76: 1230.779436 | AQ76: 193.7640549 | AR76: 129.1747993 | AS76: 333.6276184 | AT76: 92.77100048 | AU76: 624.6131473 | AV76: 1916.280121 | AW76: 360.2335006 | AX76: 12329.01884 | AY76: 580.8249748 | AZ76: 32.2724134 | BA76: 3007.937374 | BB76: 12333.03871 | BC76: 4.371930105
A77: 5 | B77: Value of disposed assets, 2023/24 | C77: 141.1868787 | D77: 314.8751849 | E77: 30.47929675 | F77: 1169.6304 | G77: 193.0018511 | H77: 132.5158492 | I77: 302.2738759 | J77: 75.34319067 | K77: 593.7150184 | L77: 1859.369121 | M77: 310.0471442 | N77: 12673.42573 | O77: 547.9438655 | P77: 29.7179862 | Q77: 2841.422076 | R77: 11646.35973 | S77: 3.5506264 | U77: =[1]Inputs!B56 -> 141.1868787 | V77: =[1]Inputs!C56 -> 314.8751849 | W77: =[1]Inputs!D56 -> 30.47929675 | X77: =[1]Inputs!E56 -> 1169.6304 | Y77: =[1]Inputs!F56 -> 193.0018511 | Z77: =[1]Inputs!G56 -> 132.5158492 | AA77: =[1]Inputs!H56 -> 302.2738759 | AB77: =[1]Inputs!I56 -> 75.34319067 | AC77: =[1]Inputs!J56 -> 593.7150184 | AD77: =[1]Inputs!K56 -> 1859.369121 | AE77: =[1]Inputs!L56 -> 310.0471442 | AF77: =[1]Inputs!M56 -> 12673.42573 | AG77: =[1]Inputs!N56 -> 547.9438655 | AH77: =[1]Inputs!O56 -> 29.7179862 | AI77: =[1]Inputs!P56 -> 2841.422076 | AJ77: =[1]Inputs!Q56 -> 11646.35973 | AK77: =[1]Inputs!R56 -> 3.5506264 | AM77: 177.3799975 | AN77: 159.8479297 | AO77: 27.79190332 | AP77: 1255.805285 | AQ77: 197.7039241 | AR77: 131.8013536 | AS77: 340.4113799 | AT77: 94.65734416 | AU77: 637.3136147 | AV77: 1955.244484 | AW77: 367.5582485 | AX77: 12579.70889 | AY77: 592.6350826 | AZ77: 32.92861914 | BA77: 3069.098767 | BB77: 12583.8105 | BC77: 4.460826017
A78: 5 | B78: Value of disposed assets, 2024/25 | C78: 144.0106163 | D78: 321.1726886 | E78: 31.08888268 | F78: 1193.023008 | G78: 196.8618881 | H78: 135.1661662 | I78: 308.3193534 | J78: 76.85005448 | K78: 605.5893187 | L78: 1896.556503 | M78: 316.2480871 | N78: 12926.89424 | O78: 558.9027428 | P78: 30.31234592 | Q78: 2898.250518 | R78: 11879.28692 | S78: 3.621638928 | U78: =[1]Inputs!B57 -> 144.0106163 | V78: =[1]Inputs!C57 -> 321.1726886 | W78: =[1]Inputs!D57 -> 31.08888268 | X78: =[1]Inputs!E57 -> 1193.023008 | Y78: =[1]Inputs!F57 -> 196.8618881 | Z78: =[1]Inputs!G57 -> 135.1661662 | AA78: =[1]Inputs!H57 -> 308.3193534 | AB78: =[1]Inputs!I57 -> 76.85005448 | AC78: =[1]Inputs!J57 -> 605.5893187 | AD78: =[1]Inputs!K57 -> 1896.556503 | AE78: =[1]Inputs!L57 -> 316.2480871 | AF78: =[1]Inputs!M57 -> 12926.89424 | AG78: =[1]Inputs!N57 -> 558.9027428 | AH78: =[1]Inputs!O57 -> 30.31234592 | AI78: =[1]Inputs!P57 -> 2898.250518 | AJ78: =[1]Inputs!Q57 -> 11879.28692 | AK78: =[1]Inputs!R57 -> 3.621638928 | AM78: 180.9275975 | AN78: 163.0448883 | AO78: 28.34774138 | AP78: 1280.92139 | AQ78: 201.6580025 | AR78: 134.4373807 | AS78: 347.2196075 | AT78: 96.55049104 | AU78: 650.059887 | AV78: 1994.349373 | AW78: 374.9094135 | AX78: 12831.30306 | AY78: 604.4877843 | AZ78: 33.58719152 | BA78: 3130.480743 | BB78: 12835.48671 | BC78: 4.550042537
B79: Other regulated income | U79: Zeroed | AM79: Zeroed
A80: =A48+1 -> 7 | B80: ="Other regulated income, " & N19 -> Other regulated income, 2018/19 | C80: =IF($C$5<$A80,AM80,U80) -> 0 | D80: 0 | E80: 0 | F80: 0 | G80: 0 | H80: 0 | I80: 0 | J80: 0 | K80: 0 | L80: 0 | M80: =IF($C$5<$A80,AW80,AE80) -> 0 | N80: 0 | O80: 0 | P80: 0 | Q80: 0 | R80: 0 | S80: 0 | U80: 0 | V80: 0 | W80: 0 | X80: 0 | Y80: 0 | Z80: 0 | AA80: 0 | AB80: 0 | AC80: 0 | AD80: 0 | AE80: 0 | AF80: 0 | AG80: 0 | AH80: 0 | AI80: 0 | AJ80: 0 | AK80: 0 | AM80: 0 | AN80: 0 | AO80: 0 | AP80: 0 | AQ80: 0 | AR80: 0 | AS80: 0 | AT80: 0 | AU80: 0 | AV80: 0 | AW80: 0 | AX80: 0 | AY80: 0 | AZ80: 0 | BA80: 0 | BB80: 0 | BC80: 0
A81: =$A$80 -> 7 | B81: Other regulated income, 2019/20 | C81: 0 | D81: 0 | E81: 0 | F81: 0 | G81: 0 | H81: 0 | I81: 0 | J81: 0 | K81: 0 | L81: 0 | M81: 0 | N81: 0 | O81: 0 | P81: 0 | Q81: 0 | R81: 0 | S81: 0 | U81: 0 | V81: 0 | W81: 0 | X81: 0 | Y81: 0 | Z81: 0 | AA81: 0 | AB81: 0 | AC81: 0 | AD81: 0 | AE81: 0 | AF81: 0 | AG81: 0 | AH81: 0 | AI81: 0 | AJ81: 0 | AK81: 0 | AM81: 0 | AN81: 0 | AO81: 0 | AP81: 0 | AQ81: 0 | AR81: 0 | AS81: 0 | AT81: 0 | AU81: 0 | AV81: 0 | AW81: 0 | AX81: 0 | AY81: 0 | AZ81: 0 | BA81: 0 | BB81: 0 | BC81: 0
A82: =$A$80 -> 7 | B82: Other regulated income, 2020/21 | C82: 0 | D82: 0 | E82: 0 | F82: 0 | G82: 0 | H82: 0 | I82: 0 | J82: 0 | K82: 0 | L82: 0 | M82: 0 | N82: 0 | O82: 0 | P82: 0 | Q82: 0 | R82: 0 | S82: 0 | U82: 0 | V82: 0 | W82: 0 | X82: 0 | Y82: 0 | Z82: 0 | AA82: 0 | AB82: 0 | AC82: 0 | AD82: 0 | AE82: 0 | AF82: 0 | AG82: 0 | AH82: 0 | AI82: 0 | AJ82: 0 | AK82: 0 | AM82: 0 | AN82: 0 | AO82: 0 | AP82: 0 | AQ82: 0 | AR82: 0 | AS82: 0 | AT82: 0 | AU82: 0 | AV82: 0 | AW82: 0 | AX82: 0 | AY82: 0 | AZ82: 0 | BA82: 0 | BB82: 0 | BC82: 0
A83: 7 | B83: Other regulated income, 2021/22 | C83: 0 | D83: 0 | E83: 0 | F83: 0 | G83: 0 | H83: 0 | I83: 0 | J83: 0 | K83: 0 | L83: 0 | M83: 0 | N83: 0 | O83: 0 | P83: 0 | Q83: 0 | R83: 0 | S83: 0 | U83: 0 | V83: 0 | W83: 0 | X83: 0 | Y83: 0 | Z83: 0 | AA83: 0 | AB83: 0 | AC83: 0 | AD83: 0 | AE83: 0 | AF83: 0 | AG83: 0 | AH83: 0 | AI83: 0 | AJ83: 0 | AK83: 0 | AM83: 0 | AN83: 0 | AO83: 0 | AP83: 0 | AQ83: 0 | AR83: 0 | AS83: 0 | AT83: 0 | AU83: 0 | AV83: 0 | AW83: 0 | AX83: 0 | AY83: 0 | AZ83: 0 | BA83: 0 | BB83: 0 | BC83: 0
A84: 7 | B84: Other regulated income, 2022/23 | C84: 0 | D84: 0 | E84: 0 | F84: 0 | G84: 0 | H84: 0 | I84: 0 | J84: 0 | K84: 0 | L84: 0 | M84: 0 | N84: 0 | O84: 0 | P84: 0 | Q84: 0 | R84: 0 | S84: 0 | U84: 0 | V84: 0 | W84: 0 | X84: 0 | Y84: 0 | Z84: 0 | AA84: 0 | AB84: 0 | AC84: 0 | AD84: 0 | AE84: 0 | AF84: 0 | AG84: 0 | AH84: 0 | AI84: 0 | AJ84: 0 | AK84: 0 | AM84: 0 | AN84: 0 | AO84: 0 | AP84: 0 | AQ84: 0 | AR84: 0 | AS84: 0 | AT84: 0 | AU84: 0 | AV84: 0 | AW84: 0 | AX84: 0 | AY84: 0 | AZ84: 0 | BA84: 0 | BB84: 0 | BC84: 0
A85: 7 | B85: Other regulated income, 2023/24 | C85: 0 | D85: 0 | E85: 0 | F85: 0 | G85: 0 | H85: 0 | I85: 0 | J85: 0 | K85: 0 | L85: 0 | M85: 0 | N85: 0 | O85: 0 | P85: 0 | Q85: 0 | R85: 0 | S85: 0 | U85: 0 | V85: 0 | W85: 0 | X85: 0 | Y85: 0 | Z85: 0 | AA85: 0 | AB85: 0 | AC85: 0 | AD85: 0 | AE85: 0 | AF85: 0 | AG85: 0 | AH85: 0 | AI85: 0 | AJ85: 0 | AK85: 0 | AM85: 0 | AN85: 0 | AO85: 0 | AP85: 0 | AQ85: 0 | AR85: 0 | AS85: 0 | AT85: 0 | AU85: 0 | AV85: 0 | AW85: 0 | AX85: 0 | AY85: 0 | AZ85: 0 | BA85: 0 | BB85: 0 | BC85: 0
A86: 7 | B86: Other regulated income, 2024/25 | C86: 0 | D86: 0 | E86: 0 | F86: 0 | G86: 0 | H86: 0 | I86: 0 | J86: 0 | K86: 0 | L86: 0 | M86: 0 | N86: 0 | O86: 0 | P86: 0 | Q86: 0 | R86: 0 | S86: 0 | U86: 0 | V86: 0 | W86: 0 | X86: 0 | Y86: 0 | Z86: 0 | AA86: 0 | AB86: 0 | AC86: 0 | AD86: 0 | AE86: 0 | AF86: 0 | AG86: 0 | AH86: 0 | AI86: 0 | AJ86: 0 | AK86: 0 | AM86: 0 | AN86: 0 | AO86: 0 | AP86: 0 | AQ86: 0 | AR86: 0 | AS86: 0 | AT86: 0 | AU86: 0 | AV86: 0 | AW86: 0 | AX86: 0 | AY86: 0 | AZ86: 0 | BA86: 0 | BB86: 0 | BC86: 0
B87: Allowable notional revenue
B88: Allowable notional revenue 2014/2015 | C88: =IF($C$5<$A88,AM88,U88) -> 31278.35088 | D88: 57665.066 | E88: 9928.87278 | F88: 21449.537 | G88: 29790.56014 | H88: 13121 | I88: 21308.973 | J88: 6884.494938 | K88: 29374.553 | L88: 0 | M88: =IF($C$5<$A88,AW88,AE88) -> 25230 | N88: 244422 | O88: 38054 | P88: 33930 | Q88: 101327.41 | R88: 395990 | S88: 104846.1601 | U88: 31278.35088 | V88: 57665.066 | W88: 9928.87278 | X88: 21449.537 | Y88: 29790.56014 | Z88: 13121 | AA88: 21308.973 | AB88: 6884.494938 | AC88: 29374.553 | AD88: 0 | AE88: 25230 | AF88: 244422 | AG88: 38054 | AH88: 33930 | AI88: 101327.41 | AJ88: 395990 | AK88: 104846.1601 | AM88: 31278.35088 | AN88: 57665.066 | AO88: 9928.87278 | AP88: 29790.56014 | AQ88: 21449.537 | AR88: 13121 | AS88: 21308.973 | AT88: 6884.494938 | AU88: 29374.553 | AV88: 0 | AW88: 25230 | AX88: 244422 | AY88: 38054 | AZ88: 33930 | BA88: 101327.41 | BB88: 395990 | BC88: 104846.1601
B89: Pass-through costs 2014/15 | C89: 302.105 | D89: 1137.583 | E89: 88 | F89: 365 | G89: 358 | H89: 193 | I89: 304.7 | J89: 84 | K89: 240 | L89: 0 | M89: 235 | N89: 3076 | O89: 342 | P89: 5824 | Q89: 1271 | R89: 11551 | S89: 2907 | U89: 302.105 | V89: 1137.583 | W89: 88 | X89: 365 | Y89: 358 | Z89: 193 | AA89: 304.7 | AB89: 84 | AC89: 240 | AD89: 0 | AE89: 235 | AF89: 3076 | AG89: 342 | AH89: 5824 | AI89: 1271 | AJ89: 11551 | AK89: 2907 | AM89: 302.105 | AN89: 1137.583 | AO89: 88 | AP89: 358 | AQ89: 365 | AR89: 193 | AS89: 304.7 | AT89: 84 | AU89: 240 | AV89: 0 | AW89: 235 | AX89: 3076 | AY89: 342 | AZ89: 5824 | BA89: 1271 | BB89: 11551 | BC89: 2907
B90: Claw-back
A91: 1 | B91: Claw-back 2014/15 | C91: =IF($C$5<$A91,AM91,U91) -> 0 | D91: 0 | E91: 0 | F91: 0 | G91: 0 | H91: 0 | I91: 0 | J91: 0 | K91: 0 | L91: 0 | M91: =IF($C$5<$A91,AW91,AE91) -> 0 | N91: 0 | O91: 0 | P91: 0 | Q91: 0 | R91: 0 | S91: 0 | U91: 0 | V91: 0 | W91: 0 | X91: 0 | Y91: 0 | Z91: 0 | AA91: 0 | AB91: 0 | AC91: 0 | AD91: 0 | AE91: 0 | AF91: 0 | AG91: 0 | AH91: 0 | AI91: 0 | AJ91: 0 | AK91: 0 | AM91: 0 | AN91: 415.933 | AO91: 0 | AP91: 1143.734982 | AQ91: 34.377 | AR91: 762 | AS91: -661.997 | AT91: 474.9692774 | AU91: 2793 | AV91: 0 | AW91: 1099 | AX91: 6001 | AY91: 0 | AZ91: 0 | BA91: 0 | BB91: -15780 | BC91: 8050.85401
A92: 1 | B92: Claw-back 2015/16 | C92: 0 | D92: 0 | E92: 0 | F92: 0 | G92: 0 | H92: 0 | I92: 0 | J92: 0 | K92: 0 | L92: 0 | M92: 0 | N92: 0 | O92: 0 | P92: 0 | Q92: 0 | R92: 0 | S92: 0 | U92: 0 | V92: 0 | W92: 0 | X92: 0 | Y92: 0 | Z92: 0 | AA92: 0 | AB92: 0 | AC92: 0 | AD92: 0 | AE92: 0 | AF92: 0 | AG92: 0 | AH92: 0 | AI92: 0 | AJ92: 0 | AK92: 0 | AM92: 4983.653576 | AN92: 0 | AO92: 627.8500642 | AP92: 0 | AQ92: 0 | AR92: 0 | AS92: 0 | AT92: 0 | AU92: 0 | AV92: 0 | AW92: 0 | AX92: 0 | AY92: 0 | AZ92: 2132.183522 | BA92: 2009.417147 | BB92: 0 | BC92: 0
B95: Estimated 2019/20 allowable revenue ex Revenue change model
C96: Alpine Energy | D96: Aurora Energy | E96: Centralines | F96: EA Networks | G96: Eastland Network | H96: Electricity Invercargill | I96: Horizon Energy | J96: Nelson Electricity | K96: Network Tasman | L96: Orion NZ | M96: OtagoNet | N96: The Lines Company | O96: Top Energy | P96: Unison Networks | Q96: Vector Lines
B97: Estimated 2019/20 allowable revenue | C97: =[2]Outputs!B7 -> 49719.82703 | D97: =[2]Outputs!C7 -> 67031.77007 | E97: =[2]Outputs!D7 -> 14465.45298 | F97: =[2]Outputs!E7 -> 37120.37321 | G97: =[2]Outputs!F7 -> 27873.52195 | H97: =[2]Outputs!G7 -> 13951.54334 | I97: =[2]Outputs!H7 -> 23616.33857 | J97: =[2]Outputs!I7 -> 6803.157236 | K97: =[2]Outputs!J7 -> 28269.63342 | L97: =[2]Outputs!K7 -> 167132.9981 | M97: =[2]Outputs!L7 -> 27205.40425 | N97: =[2]Outputs!M7 -> 40848.16814 | O97: =[2]Outputs!N7 -> 48585.63677 | P97: =[2]Outputs!O7 -> 112883.5122 | Q97: =[2]Outputs!P7 -> 417635.917

Sheet EDB data
A1: Inputs for the selected distributor | H1: =EDB_Name -> Total for selected EDBs
A2: Data from the Inputs sheet that relates to the selected distributor. The distributor's name is user-selected in cell C4.
A3: Distributor | C3: Scenario
A4: Name | C4: =Waterfall!D3 -> Total for selected EDBs
A5: Distributor number | C5: =Reconciliation!C6 -> 
A6: Distributor number (for output data table) | C6: =HLOOKUP(EDB_Name,Inputs!$C$28:$S$29,2,FALSE) -> 
A8: General data
A9: Non business-specific single inputs | B9: Value
A10: =Inputs!B22 -> Vanilla WACC (67th percentile) | B10: =Inputs!C22 -> 0.0457
A11: =Inputs!B23 -> Cost of debt | B11: =Inputs!C23 -> 0.0292
A12: =Inputs!B24 -> Leverage | B12: =Inputs!C24 -> 0.42
A13: =Inputs!B25 -> Years of remaining life for newly commissioned assets | B13: =Inputs!C25 -> 44 | C13: years
A14: =Inputs!B26 -> Industry-wide X factor | B14: =Inputs!C26 -> 0
A15: =Inputs!B18 -> Days in a year | B15: =Inputs!C18 -> 365 | C15: days
A16: =Inputs!B19 -> Days from mid-year to year-end | B16: =Inputs!C19 -> 182 | C16: days
A17: =Inputs!B20 -> Days from revenue date to year-end | B17: =Inputs!C20 -> 148 | C17: days
A18: =Inputs!B21 -> Last day of year 1 of the DPP period | B18: =Inputs!C21 -> 2021-03-31
A19: General time-series data
B20: =Inputs!D12 -> 2018/19 | C20: =Inputs!E12 -> 2019/20 | D20: =Inputs!F12 -> 2020/21 | E20: =Inputs!G12 -> 2021/22 | F20: =Inputs!H12 -> 2022/23 | G20: =Inputs!I12 -> 2023/24 | H20: =Inputs!J12 -> 2024/25
A21: =Inputs!B13 -> Year in modelling period | B21: =Inputs!D13 -> 1 | C21: =Inputs!E13 -> 2 | D21: =Inputs!F13 -> 3 | E21: =Inputs!G13 -> 4 | F21: =Inputs!H13 -> 5 | G21: =Inputs!I13 -> 6 | H21: =Inputs!J13 -> 7
A22: =Inputs!B14 -> Year in regulatory period | D22: =Inputs!F14 -> 1 | E22: =Inputs!G14 -> 2 | F22: =Inputs!H14 -> 3 | G22: =Inputs!I14 -> 4 | H22: =Inputs!J14 -> 5
A23: =Inputs!B15 -> Forecast changes in CPI used for revaluations | B23: =Inputs!D15 -> 0.01483679525 | C23: =Inputs!E15 -> 0.017 | D23: =Inputs!F15 -> 0.019 | E23: =Inputs!G15 -> 0.02 | F23: =Inputs!H15 -> 0.02 | G23: =Inputs!I15 -> 0.02 | H23: =Inputs!J15 -> 0.02
A24: =Inputs!B16 -> Forecast changes in the CPI element of the price path | B24: =Inputs!D16 -> 0 | C24: =Inputs!E16 -> 0 | D24: =Inputs!F16 -> 0.01750437898 | E24: =Inputs!G16 -> 0.01950211459 | F24: =Inputs!H16 -> 0.02024805898 | G24: =Inputs!I16 -> 0.02 | H24: =Inputs!J16 -> 0.02
A25: =Inputs!B17 -> Company tax rate | B25: =Inputs!D17 -> 0.28 | C25: =Inputs!E17 -> 0.28 | D25: =Inputs!F17 -> 0.28 | E25: =Inputs!G17 -> 0.28 | F25: =Inputs!H17 -> 0.28 | G25: =Inputs!I17 -> 0.28 | H25: =Inputs!J17 -> 0.28
A26: Business-specific data
A27: Initial conditions
A28: =Inputs!B31 -> Opening RAB | B28: =INDEX(Indiv_Data,MATCH(A28,Inputs!B:B,0),$C$5) -> 
A29: =Inputs!B32 -> Lost assets | B29: =INDEX(Indiv_Data,MATCH(A29,Inputs!B:B,0),$C$5) -> 
A30: =Inputs!B33 -> Found assets | B30: =INDEX(Indiv_Data,MATCH(A30,Inputs!B:B,0),$C$5) -> 
A31: =Inputs!B34 -> Total depreciation | B31: =INDEX(Indiv_Data,MATCH(A31,Inputs!B:B,0),$C$5) -> 
A32: =Inputs!B35 -> Revaluations | B32: =INDEX(Indiv_Data,MATCH(A32,Inputs!B:B,0),$C$5) -> 
A33: =Inputs!B36 -> Closing RAB | B33: =INDEX(Indiv_Data,MATCH(A33,Inputs!B:B,0),$C$5) -> 
A34: =Inputs!B37 -> Opening RAB excluding revaluations | B34: =INDEX(Indiv_Data,MATCH(A34,Inputs!B:B,0),$C$5) -> 
A35: =Inputs!B38 -> Adjusted depreciation | B35: =INDEX(Indiv_Data,MATCH(A35,Inputs!B:B,0),$C$5) -> 
A36: =Inputs!B39 -> Tax depreciation | B36: =INDEX(Indiv_Data,MATCH(A36,Inputs!B:B,0),$C$5) -> 
A37: =Inputs!B40 -> Opening regulatory tax asset value | B37: =INDEX(Indiv_Data,MATCH(A37,Inputs!B:B,0),$C$5) -> 
A38: =Inputs!B41 -> Amortisation of initial differences in asset values | B38: =INDEX(Indiv_Data,MATCH(A38,Inputs!B:B,0),$C$5) -> 
A39: =Inputs!B42 -> Term credit spread differential allowance | B39: =INDEX(Indiv_Data,MATCH(A39,Inputs!B:B,0),$C$5) -> 
A40: =Inputs!B43 -> Opening deferred tax balance | B40: =INDEX(Indiv_Data,MATCH(A40,Inputs!B:B,0),$C$5) -> 
A41: =Inputs!B44 -> Adjustment factor (for accelerated depreciation) | B41: =INDEX(Indiv_Data,MATCH(A41,Inputs!B:B,0),$C$5) -> 
A42: =Inputs!B45 -> Additional allowance in 1 April 2015 PV terms | B42: =INDEX(Indiv_Data,MATCH(A42,Inputs!B:B,0),$C$5) -> 
A43: =Inputs!B46 -> Alternative X factor | B43: =IF(ISNUMBER(INDEX(Indiv_Data,MATCH(A43,Inputs!B:B,0),$C$5)),INDEX(Indiv_Data,MATCH(A43,Inputs!B:B,0),$C$5),"") -> 
A45: Operating expenditure
A46: =Inputs!B48 -> Operating expenditure, 2018/19 | B46: =INDEX(Indiv_Data,MATCH(A46,Inputs!B:B,0),$C$5) -> 
A47: =Inputs!B49 -> Operating expenditure, 2019/20 | B47: =INDEX(Indiv_Data,MATCH(A47,Inputs!B:B,0),$C$5) -> 
A48: =Inputs!B50 -> Operating expenditure, 2020/21 | B48: =INDEX(Indiv_Data,MATCH(A48,Inputs!B:B,0),$C$5) -> 
A49: =Inputs!B51 -> Operating expenditure, 2021/22 | B49: =INDEX(Indiv_Data,MATCH(A49,Inputs!B:B,0),$C$5) -> 
A50: =Inputs!B52 -> Operating expenditure, 2022/23 | B50: =INDEX(Indiv_Data,MATCH(A50,Inputs!B:B,0),$C$5) -> 
A51: =Inputs!B53 -> Operating expenditure, 2023/24 | B51: =INDEX(Indiv_Data,MATCH(A51,Inputs!B:B,0),$C$5) -> 
A52: =Inputs!B54 -> Operating expenditure, 2024/25 | B52: =INDEX(Indiv_Data,MATCH(A52,Inputs!B:B,0),$C$5) -> 
A54: Constant price revenue growth
A55: =Inputs!B56 -> Constant price revenue growth, 2018/19 | B55: =INDEX(Indiv_Data,MATCH(A55,Inputs!B:B,0),$C$5) -> 
A56: =Inputs!B57 -> Constant price revenue growth, 2019/20 | B56: =INDEX(Indiv_Data,MATCH(A56,Inputs!B:B,0),$C$5) -> 
A57: =Inputs!B58 -> Constant price revenue growth, 2020/21 | B57: =INDEX(Indiv_Data,MATCH(A57,Inputs!B:B,0),$C$5) -> 
A58: =Inputs!B59 -> Constant price revenue growth, 2021/22 | B58: =INDEX(Indiv_Data,MATCH(A58,Inputs!B:B,0),$C$5) -> 
A59: =Inputs!B60 -> Constant price revenue growth, 2022/23 | B59: =INDEX(Indiv_Data,MATCH(A59,Inputs!B:B,0),$C$5) -> 
A60: =Inputs!B61 -> Constant price revenue growth, 2023/24 | B60: =INDEX(Indiv_Data,MATCH(A60,Inputs!B:B,0),$C$5) -> 
A61: =Inputs!B62 -> Constant price revenue growth, 2024/25 | B61: =INDEX(Indiv_Data,MATCH(A61,Inputs!B:B,0),$C$5) -> 
A63: Value of commissioned assets
A64: =Inputs!B64 -> Value of commissioned assets, 2018/19 | B64: =INDEX(Indiv_Data,MATCH(A64,Inputs!B:B,0),$C$5) -> 
A65: =Inputs!B65 -> Value of commissioned assets, 2019/20 | B65: =INDEX(Indiv_Data,MATCH(A65,Inputs!B:B,0),$C$5) -> 
A66: =Inputs!B66 -> Value of commissioned assets, 2020/21 | B66: =INDEX(Indiv_Data,MATCH(A66,Inputs!B:B,0),$C$5) -> 
A67: =Inputs!B67 -> Value of commissioned assets, 2021/22 | B67: =INDEX(Indiv_Data,MATCH(A67,Inputs!B:B,0),$C$5) -> 
A68: =Inputs!B68 -> Value of commissioned assets, 2022/23 | B68: =INDEX(Indiv_Data,MATCH(A68,Inputs!B:B,0),$C$5) -> 
A69: =Inputs!B69 -> Value of commissioned assets, 2023/24 | B69: =INDEX(Indiv_Data,MATCH(A69,Inputs!B:B,0),$C$5) -> 
A70: =Inputs!B70 -> Value of commissioned assets, 2024/25 | B70: =INDEX(Indiv_Data,MATCH(A70,Inputs!B:B,0),$C$5) -> 
A72: Disposed assets
A73: =Inputs!B72 -> Value of disposed assets, 2018/19 | B73: =INDEX(Indiv_Data,MATCH(A73,Inputs!B:B,0),$C$5) -> 
A74: =Inputs!B73 -> Value of disposed assets, 2019/20 | B74: =INDEX(Indiv_Data,MATCH(A74,Inputs!B:B,0),$C$5) -> 
A75: =Inputs!B74 -> Value of disposed assets, 2020/21 | B75: =INDEX(Indiv_Data,MATCH(A75,Inputs!B:B,0),$C$5) -> 
A76: =Inputs!B75 -> Value of disposed assets, 2021/22 | B76: =INDEX(Indiv_Data,MATCH(A76,Inputs!B:B,0),$C$5) -> 
A77: =Inputs!B76 -> Value of disposed assets, 2022/23 | B77: =INDEX(Indiv_Data,MATCH(A77,Inputs!B:B,0),$C$5) -> 
A78: =Inputs!B77 -> Value of disposed assets, 2023/24 | B78: =INDEX(Indiv_Data,MATCH(A78,Inputs!B:B,0),$C$5) -> 
A79: =Inputs!B78 -> Value of disposed assets, 2024/25 | B79: =INDEX(Indiv_Data,MATCH(A79,Inputs!B:B,0),$C$5) -> 
A81: Other regulated income
A82: =Inputs!B80 -> Other regulated income, 2018/19 | B82: =INDEX(Indiv_Data,MATCH(A82,Inputs!B:B,0),$C$5) -> 
A83: =Inputs!B81 -> Other regulated income, 2019/20 | B83: =INDEX(Indiv_Data,MATCH(A83,Inputs!B:B,0),$C$5) -> 
A84: =Inputs!B82 -> Other regulated income, 2020/21 | B84: =INDEX(Indiv_Data,MATCH(A84,Inputs!B:B,0),$C$5) -> 
A85: =Inputs!B83 -> Other regulated income, 2021/22 | B85: =INDEX(Indiv_Data,MATCH(A85,Inputs!B:B,0),$C$5) -> 
A86: =Inputs!B84 -> Other regulated income, 2022/23 | B86: =INDEX(Indiv_Data,MATCH(A86,Inputs!B:B,0),$C$5) -> 
A87: =Inputs!B85 -> Other regulated income, 2023/24 | B87: =INDEX(Indiv_Data,MATCH(A87,Inputs!B:B,0),$C$5) -> 
A88: =Inputs!B86 -> Other regulated income, 2024/25 | B88: =INDEX(Indiv_Data,MATCH(A88,Inputs!B:B,0),$C$5) -> 

Sheet TIMING
A1: Intra-year timing
A2: Derivation of the five timing factors TFopex, TFtax, TFVCA, TFori and TFrev.
A3: Inputs
B4: From | C4: Value
A5: Last day of year 1 of the DPP period | B5: EDB data | C5: ='EDB data'!B18 -> 2021-03-31
A6: Days in a year | B6: EDB data | C6: ='EDB data'!B15 -> 365
A7: Days from mid-year to year-end | B7: EDB data | C7: ='EDB data'!B16 -> 182
A8: Days from revenue date to year-end | B8: EDB data | C8: ='EDB data'!B17 -> 148
A9: Vanilla WACC (67th percentile) | B9: EDB data | C9: =WACC -> 0.0457
A10: Calculations
C11: Value
A12: Mid-year date | C12: =EOMONTH(C5,-6) -> 2020-09-30
A13: Revenue date | C13: =C5-C8 -> 2020-11-03 | D13: As demonstrated below, 12 equal monthly transactions on the 20th of the following month can be approximated by a single payment on the revenue date.
A14: Operating expenditure date | C14: =C12 -> 2020-09-30 | D14: i.e. mid-year
A15: Tax date | C15: =C12 -> 2020-09-30 | D15: i.e. mid-year
A16: Asset commissioning date | C16: =C12 -> 2020-09-30 | D16: i.e. mid-year
A17: Interest date | C17: =C12 -> 2020-09-30 | D17: i.e. mid-year
A18: Asset disposal date | C18: =C12 -> 2020-09-30 | D18: i.e. mid-year
A19: TF for mid-year cash flows | C19: =(1+$C$9)^(C7/C6) -> 1.022532143 | D19: Intra-year timing factors: discount from mid year to end of year values
A20: TFrev | C20: =(1+$C$9)^(C8/C6) -> 1.018284618 | D20: Intra-year timing factor: discount from revenue date to end of year values
A21: Outputs
C22: Value
A23: TFopex | C23: =$C$19 -> 1.022532143
A24: TFtax | C24: =$C$19 -> 1.022532143
A25: TFVCA | C25: 1.022532143
A26: TFori | C26: 1.022532143
A27: TFrev | C27: =$C$20 -> 1.018284618
A28: Check for timing of revenue receipt
A29: Demonstration that a 4 November receipt date for all revenues in a year ending 31 March is almost identical to
A30: receiving 12 equal revenue amounts on the 20th of the month following the provision of service.
A31: Monthly cash flows
A32: Dates of receipt of revenues | C32: =EDATE(C5,-12) -> 2020-03-31 | D32: =EOMONTH(C32,1)+20 -> 2020-05-20 | E32: =EDATE(D32,1) -> 2020-06-20 | F32: =EDATE(E32,1) -> 2020-07-20 | G32: 2020-08-20 | H32: 2020-09-20 | I32: 2020-10-20 | J32: 2020-11-20 | K32: 2020-12-20 | L32: 2021-01-20 | M32: 2021-02-20 | N32: =EDATE(M32,1) -> 2021-03-20 | O32: =EDATE(N32,1) -> 2021-04-20
A33: Indexed amount of revenue | C33: 0 | D33: 1 | E33: 1 | F33: 1 | G33: 1 | H33: 1 | I33: 1 | J33: 1 | K33: 1 | L33: 1 | M33: 1 | N33: 1 | O33: 1
A35: Equivalent single cash flow
A36: Dates of receipt of revenues | C36: =C32 -> 2020-03-31 | D36: =C13 -> 2020-11-03
A37: Indexed amount of revenue | C37: 0 | D37: 12
A39: Present value | C39: Value
A40: ="PV as at "&TEXT(C5,"dd mmm yy")&" of the series of unit amounts" -> PV as at 31 Mar 21 of the series of unit amounts | C40: =XNPV(WACC,C33:O33,C32:O32) -> 11.68469323
A41: PV of the equivalent single amount | C41: =XNPV(WACC,C37:D37,C36:D36) -> 11.68539296
A42: ="Difference in PV for a date of " & TEXT(D36,"d mmm") -> Difference in PV for a date of 3 Nov | C42: =C40-C41 -> -0.0006997251877
A43: Percentage difference | C43: =C42/C40 -> -5.988391597e-05

Sheet RAB
A1: Regulatory asset base | J1: =EDB_Name -> Total for selected EDBs
A2: Calculations involving the roll-forward of asset values.
A3: Inputs
B4: From | C4: Value | D4: =Inputs!D$12 -> 2018/19 | E4: =Inputs!E$12 -> 2019/20 | F4: =Inputs!F$12 -> 2020/21 | G4: =Inputs!G$12 -> 2021/22 | H4: =Inputs!H$12 -> 2022/23 | I4: =Inputs!I$12 -> 2023/24 | J4: =Inputs!J$12 -> 2024/25
A5: Opening RAB | B5: EDB data | C5: ='EDB data'!B28 -> 
A6: Total depreciation | B6: EDB data | C6: ='EDB data'!B31 -> 
A7: Revaluations | B7: EDB data | C7: ='EDB data'!B32 -> 
A8: Closing RAB | B8: EDB data | C8: ='EDB data'!B33 -> 
A9: Disposed assets | B9: EDB data | D9: ='EDB data'!$B73 ->  | E9: ='EDB data'!$B74 ->  | F9: ='EDB data'!$B75 ->  | G9: ='EDB data'!$B76 ->  | H9: ='EDB data'!$B77 ->  | I9: ='EDB data'!$B78 ->  | J9: ='EDB data'!$B79 -> 
A10: Value of commissioned assets | B10: EDB data | D10: ='EDB data'!$B64 ->  | E10: ='EDB data'!$B65 ->  | F10: ='EDB data'!$B66 ->  | G10: ='EDB data'!$B67 ->  | H10: ='EDB data'!$B68 ->  | I10: ='EDB data'!$B69 ->  | J10: ='EDB data'!$B70 -> 
A11: Remaining life of newly commissioned assets | B11: EDB data | C11: ='EDB data'!B13 -> 44
A12: Forecast changes in CPI used for revaluations | B12: EDB data | D12: ='EDB data'!B23 -> 0.01483679525 | E12: ='EDB data'!C23 -> 0.017 | F12: ='EDB data'!D23 -> 0.019 | G12: ='EDB data'!E23 -> 0.02 | H12: ='EDB data'!F23 -> 0.02 | I12: ='EDB data'!G23 -> 0.02 | J12: ='EDB data'!H23 -> 0.02
A13: Adjustment factor (for accelerated depreciation) | B13: EDB data | C13: ='EDB data'!B41 -> 
A14: Calculations
A16: Roll forward of existing assets
D17: =Inputs!D$12 -> 2018/19 | E17: =Inputs!E$12 -> 2019/20 | F17: =Inputs!F$12 -> 2020/21 | G17: =Inputs!G$12 -> 2021/22 | H17: =Inputs!H$12 -> 2022/23 | I17: =Inputs!I$12 -> 2023/24 | J17: =Inputs!J$12 -> 2024/25
A18: Remaining asset life of existing assets | E18: =100%*C5/C6-1 ->  | F18: =C13*C5/C6-2 ->  | G18: =F18-1 -> 
A19: Opening RAB value of existing assets | E19: =D23 ->  | F19: =E23 ->  | G19: =F23 ->  | H19: =G23 ->  | I19: =H23 ->  | J19: =I23 -> 
A20: Disposed assets | E20: =E9 -> 
A21: Revaluation of existing assets | E21: =(E19*0.999-E20)*E28 -> 
A22: Depreciation of existing assets | E22: =E19/E18 -> 
A23: Closing RAB value of existing assets | D23: =C8 ->  | E23: =E19-E20+E21-E22 -> 
A25: Individual roll forward of additional assets
D26: =Inputs!D$12 -> 2018/19 | E26: =Inputs!E$12 -> 2019/20 | F26: =Inputs!F$12 -> 2020/21 | G26: =Inputs!G$12 -> 2021/22 | H26: =Inputs!H$12 -> 2022/23 | I26: =Inputs!I$12 -> 2023/24 | J26: =Inputs!J$12 -> 2024/25
A27: Year in modelling period | D27: 1 | E27: =D27+1 -> 2 | F27: =E27+1 -> 3 | G27: 4 | H27: 5 | I27: =H27+1 -> 6 | J27: =I27+1 -> 7
A28: Revaluation rate | D28: =D12 -> 0.01483679525 | E28: 0.017 | F28: 0.019 | G28: 0.02 | H28: 0.02 | I28: 0.02 | J28: 0.02
A29: Commissioned assets | D29: =D$10 -> 
A30: Assets commissioned in 2014/15:
A31: Year asset is added during modelling period | C31: =E27 -> 2
A32: Opening RAB | D32: 0 | E32: =D36 -> 0
A33: Years of remaining life | D33: =$C$11+$C31 -> 46 | E33: =D33-1 -> 45 | F33: =E33-1 -> 44 | G33: 43 | H33: =G33-1 -> 42 | I33: =H33-1 -> 41 | J33: =I33-1 -> 40
A34: Revaluation of assets | D34: =D32*D$28 -> 0 | E34: 0
A35: Depreciation of assets | D35: =D32/D33 -> 0 | E35: 0
A36: Closing RAB | D36: =D32+D34-D35+IF($C31=D$27,D$29,0) -> 0
A37: Assets commissioned in 2015/16:
A38: Year asset is added during modelling period | C38: =F27 -> 3
A39: Opening RAB | D39: 0 | E39: =D43 -> 0 | F39: 0
A40: Years of remaining life | D40: =$C$11+$C38 -> 47 | E40: =D40-1 -> 46 | F40: 45 | G40: 44 | H40: 43 | I40: 42 | J40: 41
A41: Revaluation of assets | D41: =D39*D$28 -> 0 | E41: 0 | F41: 0
A42: Depreciation of assets | D42: =D39/D40 -> 0 | E42: 0 | F42: 0
A43: Closing RAB | D43: =D39+D41-D42+IF($C38=D$27,D$29,0) -> 0 | E43: 0
A44: Assets commissioned in 2016/17:
A45: Year asset is added during modelling period | C45: =G27 -> 4
A46: Opening RAB | D46: 0 | E46: =D50 -> 0 | F46: 0 | G46: 0
A47: Years of remaining life | D47: =$C$11+$C45 -> 48 | E47: =D47-1 -> 47 | F47: 46 | G47: 45 | H47: 44 | I47: 43 | J47: 42
A48: Revaluation of assets | D48: =D46*D$28 -> 0 | E48: 0 | F48: 0 | G48: 0
A49: Depreciation of assets | D49: =D46/D47 -> 0 | E49: 0 | F49: 0 | G49: 0
A50: Closing RAB | D50: =D46+D48-D49+IF($C45=D$27,D$29,0) -> 0 | E50: 0 | F50: 0
A51: Assets commissioned in 2017/18:
A52: Year asset is added during modelling period | C52: =H27 -> 5
A53: Opening RAB | D53: 0 | E53: =D57 -> 0 | F53: 0 | G53: 0 | H53: 0
A54: Years of remaining life | D54: =$C$11+$C52 -> 49 | E54: =D54-1 -> 48 | F54: 47 | G54: 46 | H54: 45 | I54: 44 | J54: 43
A55: Revaluation of assets | D55: =D53*D$28 -> 0 | E55: 0 | F55: 0 | G55: 0 | H55: 0
A56: Depreciation of assets | D56: =D53/D54 -> 0 | E56: 0 | F56: 0 | G56: 0 | H56: 0
A57: Closing RAB | D57: =D53+D55-D56+IF($C52=D$27,D$29,0) -> 0 | E57: 0 | F57: 0 | G57: 0
A58: Assets commissioned in 2018/19:
A59: Year asset is added during modelling period | C59: =I27 -> 6
A60: Opening RAB | D60: 0 | E60: =D64 -> 0 | F60: 0 | G60: 0 | H60: 0 | I60: 0
A61: Years of remaining life | D61: =$C$11+$C59 -> 50 | E61: =D61-1 -> 49 | F61: 48 | G61: 47 | H61: 46 | I61: 45 | J61: 44
A62: Revaluation of assets | D62: =D60*D$28 -> 0 | E62: 0 | F62: 0 | G62: 0 | H62: 0 | I62: 0
A63: Depreciation of assets | D63: =D60/D61 -> 0 | E63: 0 | F63: 0 | G63: 0 | H63: 0 | I63: 0
A64: Closing RAB | D64: =D60+D62-D63+IF($C59=D$27,D$29,0) -> 0 | E64: 0 | F64: 0 | G64: 0 | H64: 0
A65: Assets commissioned in 2019/20:
A66: Year asset is added during modelling period | C66: =J27 -> 7
A67: Opening RAB | D67: 0 | E67: =D71 -> 0 | F67: 0 | G67: 0 | H67: 0 | I67: 0 | J67: 0
A68: Years of remaining life | D68: =$C$11+$C66 -> 51 | E68: =D68-1 -> 50 | F68: =E68-1 -> 49 | G68: 48 | H68: =G68-1 -> 47 | I68: =H68-1 -> 46 | J68: =I68-1 -> 45
A69: Revaluation of assets | D69: =D67*D$28 -> 0 | E69: 0 | F69: 0 | G69: 0 | H69: 0 | I69: 0 | J69: 0
A70: Depreciation of assets | D70: =D67/D68 -> 0 | E70: 0 | F70: 0 | G70: 0 | H70: 0 | I70: 0 | J70: 0
A71: Closing RAB | D71: =D67+D69-D70+IF($C66=D$27,D$29,0) -> 0 | E71: 0 | F71: 0 | G71: 0 | H71: 0 | I71: 0
A73: Aggregate roll forward of additional assets
A75: Opening RAB of commissioned additional assets | D75: =D32+D39+D46+D53+D60+D67 -> 0 | E75: 0 | F75: =F32+F39+F46+F53+F60+F67 -> 
A76: Revaluation of commissioned additional assets | D76: =D34+D41+D48+D55+D62+D69 -> 0 | E76: 0 | F76: =F34+F41+F48+F55+F62+F69 -> 
A77: Depreciation of commissioned additional assets | D77: 0 | E77: 0 | F77: =F35+F42+F49+F56+F63+F70 -> 
A78: Closing RAB of commissioned additional assets | D78: 0 | F78: =F36+F43+F50+F57+F64+F71 -> 
A80: Combined roll forward of existing and additional assets
D82: =Inputs!D$12 -> 2018/19 | E82: =Inputs!E$12 -> 2019/20 | F82: =Inputs!F$12 -> 2020/21 | G82: =Inputs!G$12 -> 2021/22 | H82: =Inputs!H$12 -> 2022/23 | I82: =Inputs!I$12 -> 2023/24 | J82: =Inputs!J$12 -> 2024/25
A83: Aggregate opening RAB value | D83: =C5 ->  | E83: =E19+E75 -> 
A84: Total revaluation | D84: =C7 ->  | E84: =E21+E76 -> 
A85: Total depreciation | D85: =C6 -> 
A86: Aggregate closing RAB value | D86: =D23+D78 -> 
A87: Check that closing value is as expected. Should = 0 | E87: =E83+E29+E84-E85-E20-E86 ->  | F87: =F83+F29+F84-F85-F20-F86 -> 
A88: Outputs
D90: =Inputs!D$12 -> 2018/19 | E90: =Inputs!E$12 -> 2019/20 | F90: =Inputs!F$12 -> 2020/21 | G90: =Inputs!G$12 -> 2021/22 | H90: =Inputs!H$12 -> 2022/23 | I90: =Inputs!I$12 -> 2023/24 | J90: =Inputs!J$12 -> 2024/25
A91: Remaining asset life of existing assets | E91: =E18 -> 
A92: Total depreciation | D92: =D85 -> 
A93: Aggregate opening RAB value | D93: =D83 ->  | E93: =E83 -> 
A94: Total revaluation | D94: =D84 ->  | E94: =E84 -> 
A95: Aggregate closing RAB value | D95: =D86 ->  | E95: =E86 -> 

Sheet TAX
A1: Tax calculations | J1: =EDB_Name -> Total for selected EDBs
A2: Calculations involving the roll-forward of adjusted depreciation regulatory asset values, deferred tax and tax adjustments.
A3: Inputs
B4: Source | C4: Value | D4: =Inputs!D$12 -> 2018/19 | E4: =Inputs!E$12 -> 2019/20 | F4: =Inputs!F$12 -> 2020/21 | G4: =Inputs!G$12 -> 2021/22 | H4: =Inputs!H$12 -> 2022/23 | I4: =Inputs!I$12 -> 2023/24 | J4: =Inputs!J$12 -> 2024/25
A5: Year in modelling period | B5: EDB data | D5: ='EDB data'!B21 -> 1 | E5: ='EDB data'!C21 -> 2 | F5: ='EDB data'!D21 -> 3 | G5: ='EDB data'!E21 -> 4 | H5: ='EDB data'!F21 -> 5 | I5: ='EDB data'!G21 -> 6 | J5: ='EDB data'!H21 -> 7
A6: Tax rate | B6: EDB data | D6: ='EDB data'!B25 -> 0.28 | E6: ='EDB data'!C25 -> 0.28 | F6: ='EDB data'!D25 -> 0.28 | G6: ='EDB data'!E25 -> 0.28 | H6: ='EDB data'!F25 -> 0.28 | I6: ='EDB data'!G25 -> 0.28 | J6: ='EDB data'!H25 -> 0.28
A7: Value of commissioned assets | B7: EDB data | D7: ='EDB data'!$B64 ->  | E7: ='EDB data'!$B65 ->  | F7: ='EDB data'!$B66 ->  | G7: ='EDB data'!$B67 ->  | H7: ='EDB data'!$B68 ->  | I7: ='EDB data'!$B69 ->  | J7: ='EDB data'!$B70 -> 
A8: Remaining life of newly commissioned assets | B8: EDB data | D8: ='EDB data'!B13 -> 44
A9: Amortisation of initial differences in asset values | B9: EDB data | D9: ='EDB data'!B38 -> 
A10: Lost assets | B10: EDB data | D10: ='EDB data'!B29 -> 
A11: Found assets | B11: EDB data | D11: ='EDB data'!B30 -> 
A12: Disposed assets | B12: EDB data | D12: ='EDB data'!$B73 ->  | E12: ='EDB data'!$B74 ->  | F12: ='EDB data'!$B75 ->  | G12: ='EDB data'!$B76 ->  | H12: ='EDB data'!$B77 ->  | I12: ='EDB data'!$B78 ->  | J12: ='EDB data'!$B79 -> 
A13: Opening RAB excluding revaluations | B13: EDB data | D13: ='EDB data'!B34 -> 
A14: Adjusted depreciation | B14: EDB data | D14: ='EDB data'!B35 -> 
A15: Tax depreciation | B15: EDB data | D15: ='EDB data'!B36 -> 
A16: Opening regulatory tax asset value | B16: EDB data | D16: ='EDB data'!B37 -> 
A17: Opening deferred tax balance | B17: EDB data | D17: ='EDB data'!B40 -> 
A18: Cost of debt | B18: EDB data | D18: ='EDB data'!B11 -> 0.0292
A19: Leverage | B19: EDB data | D19: ='EDB data'!B12 -> 0.42
A20: Remaining asset life of existing assets | B20: RAB | E20: =RAB!E91 ->  | F20: =RAB!F91 ->  | G20: =RAB!G91 ->  | H20: =RAB!H91 ->  | I20: =RAB!I91 ->  | J20: =RAB!J91 -> 
A21: Total depreciation | B21: RAB | D21: =RAB!D92 ->  | E21: =RAB!E92 ->  | F21: =RAB!F92 ->  | G21: =RAB!G92 ->  | H21: =RAB!H92 ->  | I21: =RAB!I92 ->  | J21: =RAB!J92 -> 
A22: Term credit spread differential allowance | B22: BBAR | D22: =BBAR!D58 ->  | E22: =BBAR!E58 ->  | F22: =BBAR!F58 ->  | G22: =BBAR!G58 ->  | H22: =BBAR!H58 ->  | I22: =BBAR!I58 ->  | J22: =BBAR!J58 -> 
A23: Opening investment value | B23: BBAR | D23: =BBAR!D56 ->  | E23: =BBAR!E56 ->  | F23: =BBAR!F56 ->  | G23: =BBAR!G56 ->  | H23: =BBAR!H56 ->  | I23: =BBAR!I56 ->  | J23: =BBAR!J56 -> 
A24: Calculations
A25: Adjusted RAB & depreciation of assets commissioned
C26: Value | D26: =Inputs!D$12 -> 2018/19 | E26: =Inputs!E$12 -> 2019/20 | F26: =Inputs!F$12 -> 2020/21 | G26: =Inputs!G$12 -> 2021/22 | H26: =Inputs!H$12 -> 2022/23 | I26: =Inputs!I$12 -> 2023/24 | J26: =Inputs!J$12 -> 2024/25
A27: Commissioned assets | D27: =D7 -> 
A28: Assets commissioned in 2014/15: | C28: =E5 -> 2
A29: Opening RAB, adjusted depreciation | D29: 0 | E29: =D32 -> 0
A30: Years of remaining life | D30: =$D$8+$C28 -> 46 | E30: =D30-1 -> 45 | F30: 44 | G30: 43 | H30: 42 | I30: 41 | J30: 40
A31: Adjusted depreciation | D31: =D29/D30 -> 0 | E31: 0
A32: Closing RAB, adjusted depreciation | D32: =D29-D31+IF($C28=D$5,D$27,0) -> 0
A33: Assets commissioned in 2015/16: | C33: =F5 -> 3
A34: Opening RAB, adjusted depreciation | D34: 0 | E34: =D37 -> 0 | F34: 0
A35: Years of remaining life | D35: =$D$8+$C33 -> 47 | E35: =D35-1 -> 46 | F35: 45 | G35: 44 | H35: 43 | I35: 42 | J35: 41
A36: Adjusted depreciation | D36: =D34/D35 -> 0 | E36: 0 | F36: 0
A37: Closing RAB, adjusted depreciation | D37: =D34-D36+IF($C33=D$5,D$27,0) -> 0 | E37: 0
A38: Assets commissioned in 2016/17: | C38: =G5 -> 4
A39: Opening RAB, adjusted depreciation | D39: 0 | E39: =D42 -> 0 | F39: 0 | G39: 0
A40: Years of remaining life | D40: =$D$8+$C38 -> 48 | E40: =D40-1 -> 47 | F40: 46 | G40: 45 | H40: 44 | I40: 43 | J40: 42
A41: Adjusted depreciation | D41: =D39/D40 -> 0 | E41: 0 | F41: 0 | G41: 0
A42: Closing RAB, adjusted depreciation | D42: =D39-D41+IF($C38=D$5,D$27,0) -> 0 | E42: 0 | F42: 0
A43: Assets commissioned in 2017/18: | C43: =H5 -> 5
A44: Opening RAB, adjusted depreciation | D44: 0 | E44: =D47 -> 0 | F44: 0 | G44: 0 | H44: 0
A45: Years of remaining life | D45: =$D$8+$C43 -> 49 | E45: =D45-1 -> 48 | F45: 47 | G45: 46 | H45: 45 | I45: 44 | J45: 43
A46: Adjusted depreciation | D46: =D44/D45 -> 0 | E46: 0 | F46: 0 | G46: 0 | H46: 0
A47: Closing RAB, adjusted depreciation | D47: =D44-D46+IF($C43=D$5,D$27,0) -> 0 | E47: 0 | F47: 0 | G47: 0
A48: Assets commissioned in 2018/19: | C48: =I5 -> 6
A49: Opening RAB, adjusted depreciation | D49: 0 | E49: =D52 -> 0 | F49: 0 | G49: 0 | H49: 0 | I49: 0
A50: Years of remaining life | D50: =$D$8+$C48 -> 50 | E50: =D50-1 -> 49 | F50: 48 | G50: 47 | H50: 46 | I50: 45 | J50: 44
A51: Adjusted depreciation | D51: =D49/D50 -> 0 | E51: 0 | F51: 0 | G51: 0 | H51: 0 | I51: 0
A52: Closing RAB, adjusted depreciation | D52: =D49-D51+IF($C48=D$5,D$27,0) -> 0 | E52: 0 | F52: 0 | G52: 0 | H52: 0
A53: Assets commissioned in 2019/20: | C53: =J5 -> 7
A54: Opening RAB, adjusted depreciation | D54: 0 | E54: =D57 -> 0 | F54: =E57 -> 0 | G54: 0 | H54: =G57 -> 0 | I54: =H57 -> 0 | J54: =I57 -> 0
A55: Years of remaining life | D55: =$D$8+$C53 -> 51 | E55: =D55-1 -> 50 | F55: =E55-1 -> 49 | G55: 48 | H55: =G55-1 -> 47 | I55: =H55-1 -> 46 | J55: =I55-1 -> 45
A56: Adjusted depreciation | D56: =D54/D55 -> 0 | E56: 0 | F56: 0 | G56: 0 | H56: 0 | I56: 0 | J56: 0
A57: Closing RAB, adjusted depreciation | D57: =D54-D56+IF($C53=D$5,D$27,0) -> 0 | E57: 0 | F57: 0 | G57: 0 | H57: 0 | I57: 0
A58: Total assets commissioned
A59: Total adjusted depreciation of commissioned assets | D59: =D31+D36+D41+D46+D51+D56 -> 0 | E59: 0
A60: Adjusted depreciation of existing assets
C61: Value | D61: =Inputs!D$12 -> 2018/19 | E61: =Inputs!E$12 -> 2019/20 | F61: =Inputs!F$12 -> 2020/21 | G61: =Inputs!G$12 -> 2021/22 | H61: =Inputs!H$12 -> 2022/23 | I61: =Inputs!I$12 -> 2023/24 | J61: =Inputs!J$12 -> 2024/25
A62: Opening RAB value of existing assets, adjusted depreciation | D62: =D13 ->  | E62: =D68 ->  | F62: =E68 ->  | G62: =F68 ->  | H62: =G68 ->  | I62: =H68 ->  | J62: =I68 -> 
A63: Disposed assets | D63: =D12 -> 
A64: Base year lost assets | D64: =D10 -> 
A65: Base year found assets | D65: =D11 -> 
A66: Adjusted depreciation of existing assets | D66: =D14 ->  | E66: =E62/E20 -> 
A67: Base year commissioned assets | D67: =D7 -> 
A68: Closing RAB value of existing assets, adjusted depreciation | D68: =D62-D63-D64+D65-D66+D67 ->  | E68: =E62-E63-E66 ->  | G68: =G62-G63-G66 ->  | H68: =H62-H63-H66 ->  | I68: =I62-I63-I66 ->  | J68: =J62-J63-J66 -> 
A69: Regulatory tax asset value
C70: Value | D70: =Inputs!D$12 -> 2018/19 | E70: =Inputs!E$12 -> 2019/20 | F70: =Inputs!F$12 -> 2020/21 | G70: =Inputs!G$12 -> 2021/22 | H70: =Inputs!H$12 -> 2022/23 | I70: =Inputs!I$12 -> 2023/24 | J70: =Inputs!J$12 -> 2024/25
A71: Average DV rate | C71: =D15/D16 -> 
A72: Opening regulatory tax asset value | D72: =D16 ->  | E72: =D75 ->  | F72: =E75 ->  | G72: =F75 ->  | H72: =G75 ->  | I72: =H75 ->  | J72: =I75 -> 
A73: Tax depreciation | D73: =D15 ->  | E73: =E72*$C71 ->  | F73: =F72*$C71 ->  | G73: =G72*$C71 ->  | H73: =H72*$C71 ->  | I73: =I72*$C71 ->  | J73: =J72*$C71 -> 
A74: Value of commissioned assets | D74: =D7 -> 
A75: Closing regulatory tax asset value | D75: =D72-D73+D74 -> 
A76: Depreciation temporary differences
C77: Value | D77: =Inputs!D$12 -> 2018/19 | E77: =Inputs!E$12 -> 2019/20 | F77: =Inputs!F$12 -> 2020/21 | G77: =Inputs!G$12 -> 2021/22 | H77: =Inputs!H$12 -> 2022/23 | I77: =Inputs!I$12 -> 2023/24 | J77: =Inputs!J$12 -> 2024/25
A78: Total adjusted depreciation of assets | D78: =D59+D66 -> 
A79: Tax depreciation | D79: =D73 -> 
A80: Depreciation temporary differences | D80: =D78-D79 -> 
A81: Deductions for regulatory tax purposes
A82: Amortisation of initial differences in asset values | D82: =D9 ->  | E82: =D82 ->  | F82: =E82 -> 
A83: Notional deductible interest | D83: =(D23*$D$19*$D$18+D22)/(1+$D$18)^0.5 -> 
A84: Amortisation of revaluations | D84: =D21-D78 -> 
A85: Regulatory tax adjustments | D85: =D82+D84-D83 ->  | E85: =E82+E84-E83 -> 
A87: Deferred tax asset value
C88: Value | D88: =Inputs!D$12 -> 2018/19 | E88: =Inputs!E$12 -> 2019/20 | F88: =Inputs!F$12 -> 2020/21 | G88: =Inputs!G$12 -> 2021/22 | H88: =Inputs!H$12 -> 2022/23 | I88: =Inputs!I$12 -> 2023/24 | J88: =Inputs!J$12 -> 2024/25
A89: Opening deferred tax | D89: =D17 ->  | E89: =D92 ->  | F89: =E92 ->  | G89: =F92 ->  | H89: =G92 ->  | I89: =H92 ->  | J89: =I92 -> 
A90: Depreciation temporary differences | D90: =D80 -> 
A91: Amortisation of initial differences in asset values | D91: =D82 -> 
A92: Closing deferred tax | D92: =D89+(D90-D91)*D6 -> 
A93: Outputs
C94: Value | D94: =Inputs!D$12 -> 2018/19 | E94: =Inputs!E$12 -> 2019/20 | F94: =Inputs!F$12 -> 2020/21 | G94: =Inputs!G$12 -> 2021/22 | H94: =Inputs!H$12 -> 2022/23 | I94: =Inputs!I$12 -> 2023/24 | J94: =Inputs!J$12 -> 2024/25
A95: Total adjusted depreciation of commissioned assets | D95: =D59 -> 0 | E95: 0
A96: Opening deferred tax | D96: =D89 ->  | E96: =E89 -> 
A97: Closing deferred tax | D97: =D92 ->  | E97: =E92 -> 
A98: Regulatory tax adjustments | D98: =D85 ->  | E98: =E85 -> 

Sheet BBAR
A1: Building blocks allowable revenue | J1: =EDB_Name -> Total for selected EDBs
A2: Derivation of BBAR present value, opening investment value, and TCSD allowance.
A3: Inputs
B4: Source | C4: Value | D4: =Inputs!D$12 -> 2018/19 | E4: =Inputs!E$12 -> 2019/20 | F4: =Inputs!F$12 -> 2020/21 | G4: =Inputs!G$12 -> 2021/22 | H4: =Inputs!H$12 -> 2022/23 | I4: =Inputs!I$12 -> 2023/24 | J4: =Inputs!J$12 -> 2024/25
A5: Year in regulatory period | B5: EDB data | F5: ='EDB data'!D22 -> 1 | G5: ='EDB data'!E22 -> 2 | H5: ='EDB data'!F22 -> 3 | I5: ='EDB data'!G22 -> 4 | J5: ='EDB data'!H22 -> 5
A6: Tax rate | B6: EDB data | D6: ='EDB data'!B25 -> 0.28 | E6: ='EDB data'!C25 -> 0.28 | F6: ='EDB data'!D25 -> 0.28 | G6: ='EDB data'!E25 -> 0.28 | H6: ='EDB data'!F25 -> 0.28 | I6: ='EDB data'!G25 -> 0.28 | J6: ='EDB data'!H25 -> 0.28
A7: Other regulated income | B7: EDB data | D7: ='EDB data'!$B82 ->  | E7: ='EDB data'!$B83 ->  | F7: ='EDB data'!$B84 ->  | G7: ='EDB data'!$B85 ->  | H7: ='EDB data'!$B86 ->  | I7: ='EDB data'!$B87 ->  | J7: ='EDB data'!$B88 -> 
A8: Term credit spread differential allowance | B8: EDB data | D8: ='EDB data'!B39 -> 
A9: Value of commissioned assets | B9: EDB data | D9: ='EDB data'!$B64 ->  | E9: ='EDB data'!$B65 ->  | F9: ='EDB data'!$B66 ->  | G9: ='EDB data'!$B67 ->  | H9: ='EDB data'!$B68 ->  | I9: ='EDB data'!$B69 ->  | J9: ='EDB data'!$B70 -> 
A10: Operating expenditure | B10: EDB data | D10: ='EDB data'!$B46 ->  | E10: ='EDB data'!$B47 ->  | F10: ='EDB data'!$B48 ->  | G10: ='EDB data'!$B49 ->  | H10: ='EDB data'!$B50 ->  | I10: ='EDB data'!$B51 ->  | J10: ='EDB data'!$B52 -> 
A11: Vanilla WACC (67th percentile) | B11: EDB data | C11: =WACC -> 0.0457
A12: TFopex | B12: TIMING | C12: =TIMING!C23 -> 1.022532143
A13: TFtax | B13: TIMING | C13: =TIMING!C24 -> 1.022532143
A14: TFVCA | B14: TIMING | C14: =TIMING!C25 -> 1.022532143
A15: TFori | B15: TIMING | C15: =TIMING!C26 -> 1.022532143
A16: TFrev | B16: TIMING | C16: =TIMING!C27 -> 1.018284618
A17: Aggregate opening RAB value | B17: RAB | D17: =RAB!D93 ->  | E17: =RAB!E93 ->  | F17: =RAB!F93 ->  | G17: =RAB!G93 ->  | H17: =RAB!H93 ->  | I17: =RAB!I93 ->  | J17: =RAB!J93 -> 
A18: Total revaluation | B18: RAB | D18: =RAB!D94 ->  | E18: =RAB!E94 ->  | F18: =RAB!F94 ->  | G18: =RAB!G94 ->  | H18: =RAB!H94 ->  | I18: =RAB!I94 ->  | J18: =RAB!J94 -> 
A19: Total depreciation | B19: RAB | D19: =RAB!D92 ->  | E19: =RAB!E92 ->  | F19: =RAB!F92 ->  | G19: =RAB!G92 ->  | H19: =RAB!H92 ->  | I19: =RAB!I92 ->  | J19: =RAB!J92 -> 
A20: Opening deferred tax | B20: TAX | D20: =TAX!D96 ->  | E20: =TAX!E96 ->  | F20: =TAX!F96 ->  | G20: =TAX!G96 ->  | H20: =TAX!H96 ->  | I20: =TAX!I96 ->  | J20: =TAX!J96 -> 
A21: Closing deferred tax | B21: TAX | D21: =TAX!D97 ->  | E21: =TAX!E97 ->  | F21: =TAX!F97 ->  | G21: =TAX!G97 ->  | H21: =TAX!H97 ->  | I21: =TAX!I97 ->  | J21: =TAX!J97 -> 
A22: Regulatory tax adjustments | B22: TAX | D22: =TAX!D98 ->  | E22: =TAX!E98 ->  | F22: =TAX!F98 ->  | G22: =TAX!G98 ->  | H22: =TAX!H98 ->  | I22: =TAX!I98 ->  | J22: =TAX!J98 -> 
A23: Calculations
A24: Term credit spread differential allowance
D25: =Inputs!D$12 -> 2018/19 | E25: =Inputs!E$12 -> 2019/20 | F25: =Inputs!F$12 -> 2020/21 | G25: =Inputs!G$12 -> 2021/22 | H25: =Inputs!H$12 -> 2022/23 | I25: =Inputs!I$12 -> 2023/24 | J25: =Inputs!J$12 -> 2024/25
A26: Asset base scaling factor | D26: =D17/$D$17 -> 
A27: Term credit spread differential allowance | D27: =IF(D8>0,D8,0) ->  | E27: =$D27*E26 -> 
A28: Return on capital
D29: =Inputs!D$12 -> 2018/19 | E29: =Inputs!E$12 -> 2019/20 | F29: =Inputs!F$12 -> 2020/21 | G29: =Inputs!G$12 -> 2021/22 | H29: =Inputs!H$12 -> 2022/23 | I29: =Inputs!I$12 -> 2023/24 | J29: =Inputs!J$12 -> 2024/25
A30: Opening investment value | D30: =D17+D20 -> 
A31: Value of commissioned assets | D31: =D9 -> 
A32: Term credit spread differential allowance | D32: =D27 -> 
A33: Total revaluation | D33: =D18 ->  | E33: =E18 -> 
A34: Return on capital | D34: =D30*$C$11+D31*($C$14-1)+D32-D33 ->  | E34: =E30*$C$11+E31*($C$14-1)+E32-E33 -> 
A35: Operating expenditure
D36: =Inputs!D$12 -> 2018/19 | E36: =Inputs!E$12 -> 2019/20 | F36: =Inputs!F$12 -> 2020/21 | G36: =Inputs!G$12 -> 2021/22 | H36: =Inputs!H$12 -> 2022/23 | I36: =Inputs!I$12 -> 2023/24 | J36: =Inputs!J$12 -> 2024/25
A37: Operating expenditure | D37: =D10 -> 
A38: Operating expenditure allowance | D38: =D37*$C$12 -> 
A39: Building block allowable revenue before tax (BBAR before tax)
D40: =Inputs!D$12 -> 2018/19 | E40: =Inputs!E$12 -> 2019/20 | F40: =Inputs!F$12 -> 2020/21 | G40: =Inputs!G$12 -> 2021/22 | H40: =Inputs!H$12 -> 2022/23 | I40: =Inputs!I$12 -> 2023/24 | J40: =Inputs!J$12 -> 2024/25
A41: Increase in deferred tax asset, ΔDT | D41: =D21-D20 -> 
A42: BBAR before tax in revenue date terms, calculation not referencing tax | D42: =(D34+D19+D38+((D7-D37-D19+D22)*D6+D41)*$C13-D41-D7*$C15)/($C16-D6*$C13) ->  | E42: =(E34+E19+E38+((E7-E37-E19+E22)*E6+E41)*$C13-E41-E7*$C15)/($C16-E6*$C13) -> 
A43: Regulatory tax allowance before considering possibility of tax losses | D43: =(D42+D7-D37-D19+D22)*D6 ->  | E43: =(E42+E7-E37-E19+E22)*E6 -> 
A44: Regulatory tax allowance | D44: =IF(D43<0,#N/A,D43) -> 
A45: BBAR before tax in year-end terms, direct simple calculation | D45: =D34+D19+D38+(D44+D41)*$C$13-D41-D7*$C$15 -> 
A46: BBAR before tax in revenue date terms | D46: =D45/$C$16 -> 
A47: Difference between the two BBAR calculations (should = 0) | D47: =D42-D46 -> 
A48: Present value of the building block allowable revenue before tax
C49: Value | D49: =Inputs!D$12 -> 2018/19 | E49: =Inputs!E$12 -> 2019/20 | F49: =Inputs!F$12 -> 2020/21 | G49: =Inputs!G$12 -> 2021/22 | H49: =Inputs!H$12 -> 2022/23 | I49: =Inputs!I$12 -> 2023/24 | J49: =Inputs!J$12 -> 2024/25
A50: Number of years to discount the year-end values to start of the present value period | F50: =F5 -> 1 | G50: =G5 -> 2 | H50: =H5 -> 3 | I50: =I5 -> 4 | J50: =J5 -> 5
A51: BBAR before tax in year-end terms, i.e. Rev * TFrev | F51: =F45 ->  | G51: =G45 ->  | H51: =H45 ->  | I51: =I45 ->  | J51: =J45 -> 
A52: PV at 1 Apr 2015 of BBAR before tax for each year | F52: =F51/(1+WACC)^F$50 ->  | G52: =G51/(1+WACC)^G$50 ->  | H52: =H51/(1+WACC)^H$50 ->  | I52: =I51/(1+WACC)^I$50 ->  | J52: =J51/(1+WACC)^J$50 -> 
A53: PV at 1 Apr 2015 of BBAR before tax over the regulatory period | C53: =SUM(F52:J52) -> 
A54: Outputs
C55: Value | D55: =Inputs!D$12 -> 2018/19 | E55: =Inputs!E$12 -> 2019/20 | F55: =Inputs!F$12 -> 2020/21 | G55: =Inputs!G$12 -> 2021/22 | H55: =Inputs!H$12 -> 2022/23 | I55: =Inputs!I$12 -> 2023/24 | J55: =Inputs!J$12 -> 2024/25
A56: Opening investment value | D56: =D30 -> 
A57: PV at 1 Apr 2015 of BBAR before tax over the regulatory period | C57: =C53 -> 
A58: Term credit spread differential allowance | D58: =D27 ->  | E58: =E27 -> 
A59: BBAR before tax in revenue date terms, calculation not referencing tax | D59: =D42 ->  | E59: =E42 -> 

Sheet REV
A1: Revenue growth index | H1: =EDB_Name -> Total for selected EDBs
A2: Derivation of the normalised profile of the maximum allowable revenue before tax values.
A3: Inputs
B4: Source | C4: Value | D4: =Inputs!F$12 -> 2020/21 | E4: =Inputs!G$12 -> 2021/22 | F4: =Inputs!H$12 -> 2022/23 | G4: =Inputs!I$12 -> 2023/24 | H4: =Inputs!J$12 -> 2024/25
A5: Constant price revenue growth | B5: EDB data | D5: ='EDB data'!$B57 ->  | E5: ='EDB data'!$B58 ->  | F5: ='EDB data'!$B59 ->  | G5: ='EDB data'!$B60 ->  | H5: ='EDB data'!$B61 -> 
A6: Industry-wide X factor | B6: EDB data | C6: ='EDB data'!B14 -> 0
A7: Alternative X factor | B7: EDB data | C7: ='EDB data'!B43 -> 
A8: Forecast changes in the CPI element of the price path | B8: EDB data | D8: ='EDB data'!D24 -> 0.01750437898 | E8: ='EDB data'!E24 -> 0.01950211459 | F8: ='EDB data'!F24 -> 0.02024805898 | G8: ='EDB data'!G24 -> 0.02 | H8: ='EDB data'!H24 -> 0.02
A9: Calculations
A10: ="Index of price path with industry-wide X factor of "&TEXT(C6,"#0.0%") -> Index of price path with industry-wide X factor of 0.0%
C11: Value | D11: =Inputs!F$12 -> 2020/21 | E11: =Inputs!G$12 -> 2021/22 | F11: =Inputs!H$12 -> 2022/23 | G11: =Inputs!I$12 -> 2023/24 | H11: =Inputs!J$12 -> 2024/25
A12: X value applied | C12: =C6 -> 0
A13: Index of price path | D13: 1 | E13: =D13*(1+E$8)*(1-$C$6) -> 1.019502115 | F13: =E13*(1+F$8)*(1-$C$6) -> 1.040145054 | G13: =F13*(1+G$8)*(1-$C$6) -> 1.060947955 | H13: =G13*(1+H$8)*(1-$C$6) -> 1.082166914
A14: Index of constant price growth | D14: 1 | E14: =D14*(1+E$5) ->  | F14: =E14*(1+F$5) -> 
A15: Indexed maximum allowable revenue before tax | D15: 1 | E15: =E13*E14 ->  | F15: =F13*F14 ->  | G15: =G13*G14 ->  | H15: =H13*H14 -> 
A16: ="CPI minus X revenues with applicable X factor (" & IF(ISNUMBER(C7),"alternate X factor of " & TEXT(C7,"#0.0%"), "industry-wide X factor of " & TEXT(C6,"#0.0%"))&")" -> CPI minus X revenues with applicable X factor (industry-wide X factor of 0.0%)
C17: Value | D17: =Inputs!F$12 -> 2020/21 | E17: =Inputs!G$12 -> 2021/22 | F17: =Inputs!H$12 -> 2022/23 | G17: =Inputs!I$12 -> 2023/24 | H17: =Inputs!J$12 -> 2024/25
A18: X value applied | C18: =IF(ISNUMBER(C7),C7,C6) -> 0
A19: Index of price path | D19: 1 | E19: =D19*(1+E$8)*(1-$C$18) -> 1.019502115 | F19: =E19*(1+F$8)*(1-$C$18) -> 1.040145054 | G19: =F19*(1+G$8)*(1-$C$18) -> 1.060947955 | H19: =G19*(1+H$8)*(1-$C$18) -> 1.082166914
A20: Index of constant price growth | D20: 1 | E20: =D20*(1+E$5) ->  | F20: =E20*(1+F$5) -> 
A21: Indexed maximum allowable revenue before tax | D21: 1 | E21: =E19*E20 ->  | F21: =F19*F20 ->  | G21: =G19*G20 ->  | H21: =H19*H20 -> 
A23: This data block calculates maximum allowable revenues for the regulatory period for the 2014/15 X value that has been applied. These
A24: Maximum allowable revenues are set PV equivalent to the corresponding maximum allowable revenues for the industry-wide X CPI - X revenues.
A25: Outputs
C26: Misc. | D26: =Inputs!F$12 -> 2020/21 | E26: =Inputs!G$12 -> 2021/22 | F26: =Inputs!H$12 -> 2022/23 | G26: =Inputs!I$12 -> 2023/24 | H26: =Inputs!J$12 -> 2024/25
A27: Indexed maximum allowable revenue before tax—industry wide X factor | D27: =D15 -> 1 | E27: =E15 ->  | F27: =F15 ->  | G27: =G15 ->  | H27: =H15 -> 
A28: Indexed maximum allowable revenue before tax—applicable X factor | D28: =D21 -> 1 | E28: =E21 -> 

Sheet MAR
A1: Maximum allowable revenue | H1: =EDB_Name -> Total for selected EDBs
A2: Derivation of starting prices.
A3: Inputs
B4: Source | C4: Value | D4: =Inputs!F$12 -> 2020/21 | E4: =Inputs!G$12 -> 2021/22 | F4: =Inputs!H$12 -> 2022/23 | G4: =Inputs!I$12 -> 2023/24 | H4: =Inputs!J$12 -> 2024/25
A5: Year in regulatory period | B5: EDB data | D5: ='EDB data'!D22 -> 1 | E5: ='EDB data'!E22 -> 2 | F5: ='EDB data'!F22 -> 3 | G5: ='EDB data'!G22 -> 4 | H5: ='EDB data'!H22 -> 5
A6: Industry-wide X factor | B6: EDB data | C6: ='EDB data'!B14 -> 0
A7: Additional allowance in 1 April 2015 PV terms | B7: EDB data | C7: ='EDB data'!B42 -> 
A8: Alternative X factor | B8: EDB data | C8: ='EDB data'!B43 -> 
A9: Vanilla WACC (67th percentile) | B9: EDB data | C9: =WACC -> 0.0457
A10: TFrev | B10: TIMING | C10: =TIMING!C27 -> 1.018284618
A11: Constant price revenue growth 2015 | B11: EDB data | C11: ='EDB data'!B56 -> 
A12: Constant price revenue growth 2016 | B12: EDB data | C12: ='EDB data'!B57 -> 
A13: PV at 1 Apr 2015 of BBAR before tax over the regulatory period | B13: BBAR | C13: =BBAR!C57 -> 
A14: Indexed maximum allowable revenue before tax—industry wide X factor | B14: REV | D14: =REV!D27 -> 1 | E14: =REV!E27 ->  | F14: =REV!F27 ->  | G14: =REV!G27 ->  | H14: =REV!H27 -> 
A15: Indexed maximum allowable revenue before tax—applicable X factor | B15: REV | D15: =REV!D28 -> 1 | E15: =REV!E28 ->  | F15: =REV!F28 ->  | G15: =REV!G28 ->  | H15: =REV!H28 -> 
A16: Calculations
A17: ="CPI minus X revenues with industry-wide X factor of "&TEXT(C6,"#0.0%") -> CPI minus X revenues with industry-wide X factor of 0.0%
C18: PV at 1-Apr-15 | D18: =Inputs!F$12 -> 2020/21 | E18: =Inputs!G$12 -> 2021/22 | F18: =Inputs!H$12 -> 2022/23 | G18: =Inputs!I$12 -> 2023/24 | H18: =Inputs!J$12 -> 2024/25
A19: PV at 1 Apr 2015 of BBAR before tax over the regulatory period | C19: =C13 -> 
A20: Additional allowance | C20: =C7 -> 
A21: PV at 1 Apr 2015 of maximum allowable revenue before tax | C21: =C19+C20 -> 
A22: Indexed maximum allowable revenue before tax | D22: =D14 -> 1 | E22: =E14 ->  | F22: =F14 ->  | G22: =G14 ->  | H22: =H14 -> 
A23: Present value of indexed maximum allowable revenue for each year | D23: =D22/(1+$C$9)^D$5 -> 0.9562972172 | E23: =E22/(1+$C$9)^E$5 ->  | F23: =F22/(1+$C$9)^F$5 ->  | G23: =G22/(1+$C$9)^G$5 ->  | H23: =H22/(1+$C$9)^H$5 -> 
A24: Present value of indexed revenue | C24: =SUM(D23:H23) -> 
A25: Maximum allowable revenue before tax in first year of the regulatory period | C25: =C21/C24 -> 
A26: Maximum allowable revenue before tax in year-end terms | D26: =$C25*D22 ->  | E26: =$C25*E22 ->  | F26: =$C25*F22 ->  | G26: =$C25*G22 ->  | H26: =$C25*H22 -> 
A27: Maximum allowable revenue before tax in revenue-date terms | D27: =D26/$C$10 ->  | E27: =E26/$C$10 ->  | F27: =F26/$C$10 ->  | G27: =G26/$C$10 ->  | H27: =H26/$C$10 -> 
A28: PV at 1 Apr 2015 of maximum allowable revenue before tax in year-end terms in each year | D28: =D26/(1+$C$9)^D5 ->  | E28: =E26/(1+$C$9)^E5 ->  | F28: =F26/(1+$C$9)^F5 ->  | G28: =G26/(1+$C$9)^G5 ->  | H28: =H26/(1+$C$9)^H5 -> 
A29: PV at 1 Apr 2015 of maximum allowable revenue before tax | C29: =SUM(D28:H28) -> 
A30: Error check for PV equivalence (should = 0) | C30: =C21-C29 -> 
A31: ΔD | C31: =(1+$C$11)*(1+$C$12) -> 
A32: ANR 2016 (industry-wide X-factor) | C32: =C29/C31 -> 
A33: ="CPI minus X revenues with applicable X factor (" & IF(ISNUMBER(C8),"alternate X factor of " & TEXT(C8,"#0.0%"), "industry-wide X factor of " & TEXT(C6,"#0.0%"))&")" -> CPI minus X revenues with applicable X factor (industry-wide X factor of 0.0%)
C34: PV at 1-Apr-15 | D34: 2015/16 | E34: 2016/17 | F34: 2017/18 | G34: 2018/19 | H34: 2019/20
A35: PV at 1 Apr 2015 of BBAR before tax over the regulatory period | C35: =C13 -> 
A36: Additional allowance | C36: =C7 -> 
A37: PV at 1 Apr 2015 of maximum allowable revenue before tax | C37: =C35+C36 -> 
A38: Indexed maximum allowable revenue before tax | D38: =D15 -> 1 | E38: =E15 ->  | F38: =F15 ->  | G38: =G15 ->  | H38: =H15 -> 
A39: Present value of indexed maximum allowable revenue for each year | D39: =D38/(1+$C$9)^D$5 -> 0.9562972172 | E39: =E38/(1+$C$9)^E$5 ->  | F39: =F38/(1+$C$9)^F$5 ->  | G39: =G38/(1+$C$9)^G$5 ->  | H39: =H38/(1+$C$9)^H$5 -> 
A40: Present value of indexed revenue | C40: =SUM(D39:H39) -> 
A41: Maximum allowable revenue before tax in first year of the regulatory period | C41: =C37/C40 -> 
A42: Maximum allowable revenue before tax in year-end terms | D42: =$C41*D38 ->  | F42: =$C41*F38 ->  | G42: =$C41*G38 ->  | H42: =$C41*H38 -> 
A43: Maximum allowable revenue before tax in revenue-date terms | D43: =D42/$C$10 ->  | E43: =E42/$C$10 ->  | F43: =F42/$C$10 -> 
A44: PV at 1 Apr 2015 of maximum allowable revenue before tax in year-end terms in each year | D44: =D42/(1+$C$9)^D$5 ->  | E44: =E42/(1+$C$9)^E$5 ->  | F44: =F42/(1+$C$9)^F$5 ->  | G44: =G42/(1+$C$9)^G$5 ->  | H44: =H42/(1+$C$9)^H$5 -> 
A45: PV at 1 Apr 2015 of maximum allowable revenue before tax | C45: =SUM(D44:H44) -> 
A46: Difference from PV equivalence (incentives etc.) | C46: =C37-C45 -> 
A47: ΔD | C47: =(1+$C$11)*(1+$C$12) -> 
A48: ANR 2016 (applicable X-factor) | C48: =D44/C47 -> 
A50: This data block uses the applicable 2014/15 X factor to calculate the maximum allowable revenues for the regulatory period. These allowed
A51: revenues are PV-equivalent to the corresponding revenues calculated with the industry-wide X factor in the previous data block.
A52: Outputs
D53: =Inputs!F$12 -> 2020/21 | E53: =Inputs!G$12 -> 2021/22 | F53: =Inputs!H$12 -> 2022/23 | G53: =Inputs!I$12 -> 2023/24 | H53: =Inputs!J$12 -> 2024/25
A54: Maximum allowable revenue before tax in revenue-date terms for industry wide X factor | D54: =D27 ->  | E54: =E27 -> 
A55: Maximum allowable revenue before tax in revenue-date terms for applicable X factor | D55: =D43 ->  | E55: =E43 -> 
A56: Starting price for industry-wide X factor | D56: =D27 -> 
A57: Starting price for applicable X factor | D57: =D43 -> 
A58: PV at 1 Apr 2015 of MAR before tax over the regulatory period (industry X ) | D58: =C21 -> 
A59: PV at 1 Apr 2015 of MAR before tax over the regulatory period (Applicable X) | D59: =C37 -> 
A60: ΔD | D60: =C47 -> 
A61: ANR 2016 (applicable X-factor) | D61: =C48 -> 

Sheet Reconciliation
A1: Reconciliation with financial models outputs
A2: Reconciliation of this waterfall model outputs with 2015 and 2020 financial model outputs | F2: How this sheet operates | K2: Mode is set by Cell C5 on the Waterfall chart. | P2: ="Currently, mode = " & Waterfall!D5 -> Currently, mode = 14
F3: When the mode is set to 14, the panel with a blue fill colour below (see Cell W11) should be filled with zeros.
A4: Distributor | C4: Scenario | F4: When the mode is set to 0, the panel with a tan fill colour below (see Cell C40) should be filled with zeros.
A5: Name | C5: =EDB_Name -> Total for selected EDBs
A6: Distributor number | C6: ='EDB data'!C6 ->  | G6: Block below with this fill colour is for data table with first argument set to C5, second argument blank.
B8: Active EDB outputs | C8: =Inputs!C28 -> Alpine Energy | D8: =Inputs!D28 -> Aurora Energy | E8: =Inputs!E28 -> Centralines | F8: =Inputs!F28 -> EA Networks | G8: =Inputs!G28 -> Eastland Network | H8: =Inputs!H28 -> Electricity Invercargill | I8: =Inputs!I28 -> Horizon Energy | J8: =Inputs!J28 -> Nelson Electricity | K8: =Inputs!K28 -> Network Tasman | L8: =Inputs!L28 -> Orion NZ | M8: =Inputs!M28 -> OtagoNet | N8: =Inputs!N28 -> Powerco | O8: =Inputs!O28 -> The Lines Company | P8: =Inputs!P28 -> Top Energy | Q8: =Inputs!Q28 -> Unison Networks | R8: =Inputs!R28 -> Vector Lines | S8: =Inputs!S28 -> Wellington Electricity | W8: Reconciliation of this waterfall model with the 2020 financial model outputs is achieved when the blue coloured panel below indicates zero values. This requires the "mode" setting at cell D5 on the Waterfall sheet to be set to 14. Powerco is not represented in this panel as it is not featured in the outputs of the DPP3 financial model.
A9: Distributor number | B9: =C6 ->  | C9: =Inputs!C29 -> 1 | D9: =Inputs!D29 -> 2 | E9: =Inputs!E29 -> 3 | F9: =Inputs!F29 -> 4 | G9: =Inputs!G29 -> 5 | H9: =Inputs!H29 -> 6 | I9: =Inputs!I29 -> 7 | J9: =Inputs!J29 -> 8 | K9: =Inputs!K29 -> 9 | L9: =Inputs!L29 -> 10 | M9: =Inputs!M29 -> 11 | N9: =Inputs!N29 -> 12 | O9: =Inputs!O29 -> 13 | P9: =Inputs!P29 -> 14 | Q9: =Inputs!Q29 -> 15 | R9: =Inputs!R29 -> 16 | S9: =Inputs!S29 -> 17
A10: Outputs | C10: 0 | D10: 0 | E10: 0 | F10: 0 | G10: 0 | H10: 0 | I10: 0 | J10: 0 | K10: 0 | L10: 0 | M10: 0 | N10: 0 | O10: 0 | P10: 0 | Q10: 0 | R10: 0 | S10: 0 | W10: Alpine Energy | X10: Aurora Energy | Y10: Centralines | Z10: EA Networks | AA10: Eastland Network | AB10: Electricity Invercargill | AC10: Horizon Energy | AD10: Nelson Electricity | AE10: Network Tasman | AF10: Orion | AG10: OtagoNet | AH10: The Lines Company | AI10: Top Energy | AJ10: Unison Networks | AK10: Vector Lines | AL10: Wellington Electricity | AO10: Alpine Energy | AP10: Aurora Energy | AQ10: Centralines | AR10: EA Networks | AS10: Eastland Network | AT10: Electricity Invercargill | AU10: Horizon Energy | AV10: Nelson Electricity | AW10: Network Tasman | AX10: Orion | AY10: OtagoNet | AZ10: The Lines Company | BA10: Top Energy | BB10: Unison Networks | BC10: Vector Lines | BD10: Wellington Electricity
A11: PV at 1 Apr 2020 of BBAR | B11: =BBAR!C57 ->  | C11: 197663.6584 | D11: 404731.891 | E11: 43409.18198 | F11: 154129.8709 | G11: 111354.2725 | H11: 56804.61896 | I11: 110815.2507 | J11: 25496.67758 | K11: 122587.8565 | L11: 734520.4663 | M11: 119468.4454 | O11: 160845.6536 | P11: 176169.622 | Q11: 463516.4873 | R11: 1801373.735 | S11: 423604.9911 | W11: =C11-AO11 -> 0 | X11: =D11-AP11 -> 0 | Y11: =E11-AQ11 -> 0 | Z11: 0 | AA11: 0 | AB11: 0 | AC11: 0 | AD11: 0 | AE11: 0 | AF11: 0 | AG11: =M11-AY11 -> 0 | AH11: =O11-AZ11 -> 0 | AI11: =P11-BA11 -> 0 | AJ11: 0 | AK11: 0 | AL11: 0 | AO11: =[1]Outputs!C9 -> 197663.6584 | AP11: =[1]Outputs!D9 -> 404731.891 | AQ11: =[1]Outputs!E9 -> 43409.18198 | AR11: =[1]Outputs!F9 -> 154129.8709 | AS11: =[1]Outputs!G9 -> 111354.2725 | AT11: =[1]Outputs!H9 -> 56804.61896 | AU11: =[1]Outputs!I9 -> 110815.2507 | AV11: =[1]Outputs!J9 -> 25496.67758 | AW11: =[1]Outputs!K9 -> 122587.8565 | AX11: =[1]Outputs!L9 -> 734520.4663 | AY11: =[1]Outputs!M9 -> 119468.4454 | AZ11: =[1]Outputs!O9 -> 160845.6536 | BA11: =[1]Outputs!P9 -> 176169.622 | BB11: =[1]Outputs!Q9 -> 463516.4873 | BC11: =[1]Outputs!R9 -> 1801373.735 | BD11: =[1]Outputs!S9 -> 423604.9911
A12: Starting price for industry-wide X factor | B12: =MAR!D56 ->  | C12: 42652.59408 | D12: 87334.54193 | E12: 9366.993578 | F12: 33258.71266 | G12: 24028.4361 | H12: 12257.51043 | I12: 23912.12399 | J12: 5501.767235 | K12: 26452.46034 | L12: 158497.5385 | M12: 25779.3423 | O12: 34707.86906 | P12: 38014.53155 | Q12: 100019.2992 | R12: 388707.0762 | S12: 91407.04917 | W12: =C12-AO12 -> 0 | X12: 0 | Y12: 0 | Z12: 0 | AA12: 0 | AB12: 0 | AC12: 0 | AD12: 0 | AE12: 0 | AF12: 0 | AG12: 0 | AH12: =O12-AZ12 -> 0 | AI12: 0 | AJ12: 0 | AK12: 0 | AL12: 0 | AO12: =[1]Outputs!C10 -> 42652.59408 | AP12: =[1]Outputs!D10 -> 87334.54193 | AQ12: =[1]Outputs!E10 -> 9366.993578 | AR12: =[1]Outputs!F10 -> 33258.71266 | AS12: =[1]Outputs!G10 -> 24028.4361 | AT12: =[1]Outputs!H10 -> 12257.51043 | AU12: =[1]Outputs!I10 -> 23912.12399 | AV12: =[1]Outputs!J10 -> 5501.767235 | AW12: =[1]Outputs!K10 -> 26452.46034 | AX12: =[1]Outputs!L10 -> 158497.5385 | AY12: =[1]Outputs!M10 -> 25779.3423 | AZ12: =[1]Outputs!O10 -> 34707.86906 | BA12: =[1]Outputs!P10 -> 38014.53155 | BB12: =[1]Outputs!Q10 -> 100019.2992 | BC12: =[1]Outputs!R10 -> 388707.0762 | BD12: =[1]Outputs!S10 -> 91407.04917
A13: Starting price for applicable X factor | B13: =MAR!D57 ->  | C13: 42652.59408 | D13: 87334.54193 | E13: 9366.993578 | F13: 33258.71266 | G13: 24028.4361 | H13: 12257.51043 | I13: 23912.12399 | J13: 5501.767235 | K13: 26452.46034 | L13: 158497.5385 | M13: 25779.3423 | O13: 34707.86906 | P13: 38014.53155 | Q13: 100019.2992 | R13: 388707.0762 | S13: 91407.04917 | W13: 0 | X13: 0 | Y13: 0 | Z13: 0 | AA13: 0 | AB13: 0 | AC13: 0 | AD13: 0 | AE13: 0 | AF13: 0 | AG13: 0 | AH13: 0 | AI13: 0 | AJ13: 0 | AK13: 0 | AL13: 0 | AO13: =[1]Outputs!C11 -> 42652.59408 | AP13: =[1]Outputs!D11 -> 87334.54193 | AQ13: =[1]Outputs!E11 -> 9366.993578 | AR13: =[1]Outputs!F11 -> 33258.71266 | AS13: =[1]Outputs!G11 -> 24028.4361 | AT13: =[1]Outputs!H11 -> 12257.51043 | AU13: =[1]Outputs!I11 -> 23912.12399 | AV13: =[1]Outputs!J11 -> 5501.767235 | AW13: =[1]Outputs!K11 -> 26452.46034 | AX13: =[1]Outputs!L11 -> 158497.5385 | AY13: =[1]Outputs!M11 -> 25779.3423 | AZ13: =[1]Outputs!O11 -> 34707.86906 | BA13: =[1]Outputs!P11 -> 38014.53155 | BB13: =[1]Outputs!Q11 -> 100019.2992 | BC13: =[1]Outputs!R11 -> 388707.0762 | BD13: =[1]Outputs!S11 -> 91407.04917
A14: PV at 1 Apr 2020 of MAR before tax over the regulatory period (Applicable X) | B14: =MAR!D59 ->  | C14: 197663.6584 | D14: 404731.891 | E14: 43409.18198 | F14: 154129.8709 | G14: 111354.2725 | H14: 56804.61896 | I14: 110815.2507 | J14: 25496.67758 | K14: 122587.8565 | L14: 734520.4663 | M14: 119468.4454 | O14: 160845.6536 | P14: 176169.622 | Q14: 463516.4873 | R14: 1801373.735 | S14: 423604.9911 | W14: 0 | X14: 0 | Y14: 0 | Z14: 0 | AA14: 0 | AB14: 0 | AC14: 0 | AD14: 0 | AE14: 0 | AF14: 0 | AG14: 0 | AH14: 0 | AI14: 0 | AJ14: 0 | AK14: 0 | AL14: 0 | AO14: =[1]Outputs!C12 -> 197663.6584 | AP14: =[1]Outputs!D12 -> 404731.891 | AQ14: =[1]Outputs!E12 -> 43409.18198 | AR14: =[1]Outputs!F12 -> 154129.8709 | AS14: =[1]Outputs!G12 -> 111354.2725 | AT14: =[1]Outputs!H12 -> 56804.61896 | AU14: =[1]Outputs!I12 -> 110815.2507 | AV14: =[1]Outputs!J12 -> 25496.67758 | AW14: =[1]Outputs!K12 -> 122587.8565 | AX14: =[1]Outputs!L12 -> 734520.4663 | AY14: =[1]Outputs!M12 -> 119468.4454 | AZ14: =[1]Outputs!O12 -> 160845.6536 | BA14: =[1]Outputs!P12 -> 176169.622 | BB14: =[1]Outputs!Q12 -> 463516.4873 | BC14: =[1]Outputs!R12 -> 1801373.735 | BD14: =[1]Outputs!S12 -> 423604.9911
A15: MAR (industry-wide X factor), first year of reg period | B15: =MAR!D54 ->  | C15: 42652.59408 | D15: 87334.54193 | E15: 9366.993578 | F15: 33258.71266 | G15: 24028.4361 | H15: 12257.51043 | I15: 23912.12399 | J15: 5501.767235 | K15: 26452.46034 | L15: 158497.5385 | M15: 25779.3423 | O15: 34707.86906 | P15: 38014.53155 | Q15: 100019.2992 | R15: 388707.0762 | S15: 91407.04917 | W15: 0 | X15: 0 | Y15: 0 | Z15: 0 | AA15: 0 | AB15: 0 | AC15: 0 | AD15: 0 | AE15: 0 | AF15: 0 | AG15: 0 | AH15: 0 | AI15: 0 | AJ15: 0 | AK15: 0 | AL15: 0 | AO15: =[1]Outputs!C13 -> 42652.59408 | AP15: =[1]Outputs!D13 -> 87334.54193 | AQ15: =[1]Outputs!E13 -> 9366.993578 | AR15: =[1]Outputs!F13 -> 33258.71266 | AS15: =[1]Outputs!G13 -> 24028.4361 | AT15: =[1]Outputs!H13 -> 12257.51043 | AU15: =[1]Outputs!I13 -> 23912.12399 | AV15: =[1]Outputs!J13 -> 5501.767235 | AW15: =[1]Outputs!K13 -> 26452.46034 | AX15: =[1]Outputs!L13 -> 158497.5385 | AY15: =[1]Outputs!M13 -> 25779.3423 | AZ15: =[1]Outputs!O13 -> 34707.86906 | BA15: =[1]Outputs!P13 -> 38014.53155 | BB15: =[1]Outputs!Q13 -> 100019.2992 | BC15: =[1]Outputs!R13 -> 388707.0762 | BD15: =[1]Outputs!S13 -> 91407.04917
A16: MAR (industry-wide X factor), second year of reg period | B16: =MAR!E54 ->  | C16: 43484.40986 | D16: 89037.75018 | E16: 9549.66976 | F16: 33907.32789 | G16: 24497.04141 | H16: 12496.55781 | I16: 24378.46097 | J16: 5609.06333 | K16: 26968.33926 | L16: 161588.5756 | M16: 26282.09399 | O16: 35384.7459 | P16: 38755.8953 | Q16: 101969.887 | R16: 396287.6862 | S16: 93189.67991 | W16: 0 | X16: 0 | Y16: 0 | Z16: 0 | AA16: 0 | AB16: 0 | AC16: 0 | AD16: 0 | AE16: 0 | AF16: 0 | AG16: 0 | AH16: 0 | AI16: 0 | AJ16: 0 | AK16: 0 | AL16: 0 | AO16: =[1]Outputs!C14 -> 43484.40986 | AP16: =[1]Outputs!D14 -> 89037.75018 | AQ16: =[1]Outputs!E14 -> 9549.66976 | AR16: =[1]Outputs!F14 -> 33907.32789 | AS16: =[1]Outputs!G14 -> 24497.04141 | AT16: =[1]Outputs!H14 -> 12496.55781 | AU16: =[1]Outputs!I14 -> 24378.46097 | AV16: =[1]Outputs!J14 -> 5609.06333 | AW16: =[1]Outputs!K14 -> 26968.33926 | AX16: =[1]Outputs!L14 -> 161588.5756 | AY16: =[1]Outputs!M14 -> 26282.09399 | AZ16: =[1]Outputs!O14 -> 35384.7459 | BA16: =[1]Outputs!P14 -> 38755.8953 | BB16: =[1]Outputs!Q14 -> 101969.887 | BC16: =[1]Outputs!R14 -> 396287.6862 | BD16: =[1]Outputs!S14 -> 93189.67991
A17: MAR (industry-wide X factor), third year of reg period | B17: =MAR!F54 ->  | C17: 44364.88476 | D17: 90840.5918 | E17: 9743.032037 | F17: 34593.88546 | G17: 24993.05895 | H17: 12749.58884 | I17: 24872.07749 | J17: 5722.635975 | K17: 27514.39578 | L17: 164860.4306 | M17: 26814.25537 | O17: 36101.21832 | P17: 39540.62695 | Q17: 104034.5793 | R17: 404311.7426 | S17: 95076.59005 | W17: 0 | X17: 0 | Y17: 0 | Z17: 0 | AA17: 0 | AB17: 0 | AC17: 0 | AD17: 0 | AE17: 0 | AF17: 0 | AG17: 0 | AH17: 0 | AI17: 0 | AJ17: 0 | AK17: 0 | AL17: 0 | AO17: =[1]Outputs!C15 -> 44364.88476 | AP17: =[1]Outputs!D15 -> 90840.5918 | AQ17: =[1]Outputs!E15 -> 9743.032037 | AR17: =[1]Outputs!F15 -> 34593.88546 | AS17: =[1]Outputs!G15 -> 24993.05895 | AT17: =[1]Outputs!H15 -> 12749.58884 | AU17: =[1]Outputs!I15 -> 24872.07749 | AV17: =[1]Outputs!J15 -> 5722.635975 | AW17: =[1]Outputs!K15 -> 27514.39578 | AX17: =[1]Outputs!L15 -> 164860.4306 | AY17: =[1]Outputs!M15 -> 26814.25537 | AZ17: =[1]Outputs!O15 -> 36101.21832 | BA17: =[1]Outputs!P15 -> 39540.62695 | BB17: =[1]Outputs!Q15 -> 104034.5793 | BC17: =[1]Outputs!R15 -> 404311.7426 | BD17: =[1]Outputs!S15 -> 95076.59005
A18: MAR (industry-wide X factor), fourth year of reg period | B18: =MAR!G54 ->  | C18: 45252.18245 | D18: 92657.40363 | E18: 9937.892677 | F18: 35285.76317 | G18: 25492.92013 | H18: 13004.58062 | I18: 25369.51904 | J18: 5837.088694 | K18: 28064.68369 | L18: 168157.6392 | M18: 27350.54048 | O18: 36823.24269 | P18: 40331.43949 | Q18: 106115.2709 | R18: 412397.9775 | S18: 96978.12185 | W18: 0 | X18: 0 | Y18: 0 | Z18: 0 | AA18: 0 | AB18: 0 | AC18: 0 | AD18: 0 | AE18: 0 | AF18: 0 | AG18: 0 | AH18: 0 | AI18: 0 | AJ18: 0 | AK18: 0 | AL18: 0 | AO18: =[1]Outputs!C16 -> 45252.18245 | AP18: =[1]Outputs!D16 -> 92657.40363 | AQ18: =[1]Outputs!E16 -> 9937.892677 | AR18: =[1]Outputs!F16 -> 35285.76317 | AS18: =[1]Outputs!G16 -> 25492.92013 | AT18: =[1]Outputs!H16 -> 13004.58062 | AU18: =[1]Outputs!I16 -> 25369.51904 | AV18: =[1]Outputs!J16 -> 5837.088694 | AW18: =[1]Outputs!K16 -> 28064.68369 | AX18: =[1]Outputs!L16 -> 168157.6392 | AY18: =[1]Outputs!M16 -> 27350.54048 | AZ18: =[1]Outputs!O16 -> 36823.24269 | BA18: =[1]Outputs!P16 -> 40331.43949 | BB18: =[1]Outputs!Q16 -> 106115.2709 | BC18: =[1]Outputs!R16 -> 412397.9775 | BD18: =[1]Outputs!S16 -> 96978.12185
A19: MAR (industry-wide X factor), fifth year of reg period | B19: =MAR!H54 ->  | C19: 46157.2261 | D19: 94510.5517 | E19: 10136.65053 | F19: 35991.47844 | G19: 26002.77854 | H19: 13264.67223 | I19: 25876.90942 | J19: 5953.830468 | K19: 28625.97737 | L19: 171520.792 | M19: 27897.55129 | O19: 37559.70754 | P19: 41138.06828 | Q19: 108237.5763 | R19: 420645.937 | S19: 98917.68429 | W19: 0 | X19: 0 | Y19: 0 | Z19: 0 | AA19: 0 | AB19: 0 | AC19: 0 | AD19: 0 | AE19: 0 | AF19: 0 | AG19: 0 | AH19: 0 | AI19: 0 | AJ19: 0 | AK19: 0 | AL19: 0 | AO19: =[1]Outputs!C17 -> 46157.2261 | AP19: =[1]Outputs!D17 -> 94510.5517 | AQ19: =[1]Outputs!E17 -> 10136.65053 | AR19: =[1]Outputs!F17 -> 35991.47844 | AS19: =[1]Outputs!G17 -> 26002.77854 | AT19: =[1]Outputs!H17 -> 13264.67223 | AU19: =[1]Outputs!I17 -> 25876.90942 | AV19: =[1]Outputs!J17 -> 5953.830468 | AW19: =[1]Outputs!K17 -> 28625.97737 | AX19: =[1]Outputs!L17 -> 171520.792 | AY19: =[1]Outputs!M17 -> 27897.55129 | AZ19: =[1]Outputs!O17 -> 37559.70754 | BA19: =[1]Outputs!P17 -> 41138.06828 | BB19: =[1]Outputs!Q17 -> 108237.5763 | BC19: =[1]Outputs!R17 -> 420645.937 | BD19: =[1]Outputs!S17 -> 98917.68429
A20: MAR (applicable X factor), first year of reg period | B20: =MAR!D55 ->  | C20: 42652.59408 | D20: 87334.54193 | E20: 9366.993578 | F20: 33258.71266 | G20: 24028.4361 | H20: 12257.51043 | I20: 23912.12399 | J20: 5501.767235 | K20: 26452.46034 | L20: 158497.5385 | M20: 25779.3423 | O20: 34707.86906 | P20: 38014.53155 | Q20: 100019.2992 | R20: 388707.0762 | S20: 91407.04917 | W20: 0 | X20: 0 | Y20: 0 | Z20: 0 | AA20: 0 | AB20: 0 | AC20: 0 | AD20: 0 | AE20: 0 | AF20: 0 | AG20: 0 | AH20: 0 | AI20: 0 | AJ20: 0 | AK20: 0 | AL20: 0 | AO20: =[1]Outputs!C18 -> 42652.59408 | AP20: =[1]Outputs!D18 -> 87334.54193 | AQ20: =[1]Outputs!E18 -> 9366.993578 | AR20: =[1]Outputs!F18 -> 33258.71266 | AS20: =[1]Outputs!G18 -> 24028.4361 | AT20: =[1]Outputs!H18 -> 12257.51043 | AU20: =[1]Outputs!I18 -> 23912.12399 | AV20: =[1]Outputs!J18 -> 5501.767235 | AW20: =[1]Outputs!K18 -> 26452.46034 | AX20: =[1]Outputs!L18 -> 158497.5385 | AY20: =[1]Outputs!M18 -> 25779.3423 | AZ20: =[1]Outputs!O18 -> 34707.86906 | BA20: =[1]Outputs!P18 -> 38014.53155 | BB20: =[1]Outputs!Q18 -> 100019.2992 | BC20: =[1]Outputs!R18 -> 388707.0762 | BD20: =[1]Outputs!S18 -> 91407.04917
A21: MAR (applicable X factor), second year of reg period | B21: =MAR!E55 ->  | C21: 43484.40986 | D21: 89037.75018 | E21: 9549.66976 | F21: 33907.32789 | G21: 24497.04141 | H21: 12496.55781 | I21: 24378.46097 | J21: 5609.06333 | K21: 26968.33926 | L21: 161588.5756 | M21: 26282.09399 | O21: 35384.7459 | P21: 38755.8953 | Q21: 101969.887 | R21: 396287.6862 | S21: 93189.67991 | W21: 0 | X21: 0 | Y21: 0 | Z21: 0 | AA21: 0 | AB21: 0 | AC21: 0 | AD21: 0 | AE21: 0 | AF21: 0 | AG21: 0 | AH21: 0 | AI21: 0 | AJ21: 0 | AK21: 0 | AL21: 0 | AO21: =[1]Outputs!C19 -> 43484.40986 | AP21: =[1]Outputs!D19 -> 89037.75018 | AQ21: =[1]Outputs!E19 -> 9549.66976 | AR21: =[1]Outputs!F19 -> 33907.32789 | AS21: =[1]Outputs!G19 -> 24497.04141 | AT21: =[1]Outputs!H19 -> 12496.55781 | AU21: =[1]Outputs!I19 -> 24378.46097 | AV21: =[1]Outputs!J19 -> 5609.06333 | AW21: =[1]Outputs!K19 -> 26968.33926 | AX21: =[1]Outputs!L19 -> 161588.5756 | AY21: =[1]Outputs!M19 -> 26282.09399 | AZ21: =[1]Outputs!O19 -> 35384.7459 | BA21: =[1]Outputs!P19 -> 38755.8953 | BB21: =[1]Outputs!Q19 -> 101969.887 | BC21: =[1]Outputs!R19 -> 396287.6862 | BD21: =[1]Outputs!S19 -> 93189.67991
A22: MAR (applicable X factor), third year of reg period | B22: =MAR!F55 ->  | C22: 44364.88476 | D22: 90840.5918 | E22: 9743.032037 | F22: 34593.88546 | G22: 24993.05895 | H22: 12749.58884 | I22: 24872.07749 | J22: 5722.635975 | K22: 27514.39578 | L22: 164860.4306 | M22: 26814.25537 | O22: 36101.21832 | P22: 39540.62695 | Q22: 104034.5793 | R22: 404311.7426 | S22: 95076.59005 | W22: 0 | X22: 0 | Y22: 0 | Z22: 0 | AA22: 0 | AB22: 0 | AC22: 0 | AD22: 0 | AE22: 0 | AF22: 0 | AG22: 0 | AH22: 0 | AI22: 0 | AJ22: 0 | AK22: 0 | AL22: 0 | AO22: =[1]Outputs!C20 -> 44364.88476 | AP22: =[1]Outputs!D20 -> 90840.5918 | AQ22: =[1]Outputs!E20 -> 9743.032037 | AR22: =[1]Outputs!F20 -> 34593.88546 | AS22: =[1]Outputs!G20 -> 24993.05895 | AT22: =[1]Outputs!H20 -> 12749.58884 | AU22: =[1]Outputs!I20 -> 24872.07749 | AV22: =[1]Outputs!J20 -> 5722.635975 | AW22: =[1]Outputs!K20 -> 27514.39578 | AX22: =[1]Outputs!L20 -> 164860.4306 | AY22: =[1]Outputs!M20 -> 26814.25537 | AZ22: =[1]Outputs!O20 -> 36101.21832 | BA22: =[1]Outputs!P20 -> 39540.62695 | BB22: =[1]Outputs!Q20 -> 104034.5793 | BC22: =[1]Outputs!R20 -> 404311.7426 | BD22: =[1]Outputs!S20 -> 95076.59005
A23: MAR (applicable X factor), fourth year of reg period | B23: =MAR!G55 ->  | C23: 45252.18245 | D23: 92657.40363 | E23: 9937.892677 | F23: 35285.76317 | G23: 25492.92013 | H23: 13004.58062 | I23: 25369.51904 | J23: 5837.088694 | K23: 28064.68369 | L23: 168157.6392 | M23: 27350.54048 | O23: 36823.24269 | P23: 40331.43949 | Q23: 106115.2709 | R23: 412397.9775 | S23: 96978.12185 | W23: 0 | X23: 0 | Y23: 0 | Z23: 0 | AA23: 0 | AB23: 0 | AC23: 0 | AD23: 0 | AE23: 0 | AF23: 0 | AG23: 0 | AH23: 0 | AI23: 0 | AJ23: 0 | AK23: 0 | AL23: 0 | AO23: =[1]Outputs!C21 -> 45252.18245 | AP23: =[1]Outputs!D21 -> 92657.40363 | AQ23: =[1]Outputs!E21 -> 9937.892677 | AR23: =[1]Outputs!F21 -> 35285.76317 | AS23: =[1]Outputs!G21 -> 25492.92013 | AT23: =[1]Outputs!H21 -> 13004.58062 | AU23: =[1]Outputs!I21 -> 25369.51904 | AV23: =[1]Outputs!J21 -> 5837.088694 | AW23: =[1]Outputs!K21 -> 28064.68369 | AX23: =[1]Outputs!L21 -> 168157.6392 | AY23: =[1]Outputs!M21 -> 27350.54048 | AZ23: =[1]Outputs!O21 -> 36823.24269 | BA23: =[1]Outputs!P21 -> 40331.43949 | BB23: =[1]Outputs!Q21 -> 106115.2709 | BC23: =[1]Outputs!R21 -> 412397.9775 | BD23: =[1]Outputs!S21 -> 96978.12185
A24: MAR (applicable X factor), fifth year of reg period | B24: =MAR!H55 ->  | C24: 46157.2261 | D24: 94510.5517 | E24: 10136.65053 | F24: 35991.47844 | G24: 26002.77854 | H24: 13264.67223 | I24: 25876.90942 | J24: 5953.830468 | K24: 28625.97737 | L24: 171520.792 | M24: 27897.55129 | O24: 37559.70754 | P24: 41138.06828 | Q24: 108237.5763 | R24: 420645.937 | S24: 98917.68429 | W24: 0 | X24: 0 | Y24: 0 | Z24: 0 | AA24: 0 | AB24: 0 | AC24: 0 | AD24: 0 | AE24: 0 | AF24: 0 | AG24: 0 | AH24: 0 | AI24: 0 | AJ24: 0 | AK24: 0 | AL24: 0 | AO24: =[1]Outputs!C22 -> 46157.2261 | AP24: =[1]Outputs!D22 -> 94510.5517 | AQ24: =[1]Outputs!E22 -> 10136.65053 | AR24: =[1]Outputs!F22 -> 35991.47844 | AS24: =[1]Outputs!G22 -> 26002.77854 | AT24: =[1]Outputs!H22 -> 13264.67223 | AU24: =[1]Outputs!I22 -> 25876.90942 | AV24: =[1]Outputs!J22 -> 5953.830468 | AW24: =[1]Outputs!K22 -> 28625.97737 | AX24: =[1]Outputs!L22 -> 171520.792 | AY24: =[1]Outputs!M22 -> 27897.55129 | AZ24: =[1]Outputs!O22 -> 37559.70754 | BA24: =[1]Outputs!P22 -> 41138.06828 | BB24: =[1]Outputs!Q22 -> 108237.5763 | BC24: =[1]Outputs!R22 -> 420645.937 | BD24: =[1]Outputs!S22 -> 98917.68429
A25: BBAR before tax, first year of reg period | B25: =BBAR!F59 ->  | C25: 41745.646 | D25: 83163.89409 | E25: 9223.078052 | F25: 32360.96636 | G25: 23556.88097 | H25: 12031.8329 | I25: 23661.63262 | J25: 5440.133196 | K25: 25909.17976 | L25: 153176.7129 | M25: 24969.68937 | O25: 33817.40354 | P25: 37177.75851 | Q25: 97101.47347 | R25: 375704.6118 | S25: 89348.61887 | W25: 0 | X25: 0 | Y25: 0 | Z25: 0 | AA25: 0 | AB25: 0 | AC25: 0 | AD25: 0 | AE25: 0 | AF25: 0 | AG25: 0 | AH25: 0 | AI25: 0 | AJ25: 0 | AK25: 0 | AL25: 0 | AO25: =[1]Outputs!C23 -> 41745.646 | AP25: =[1]Outputs!D23 -> 83163.89409 | AQ25: =[1]Outputs!E23 -> 9223.078052 | AR25: =[1]Outputs!F23 -> 32360.96636 | AS25: =[1]Outputs!G23 -> 23556.88097 | AT25: =[1]Outputs!H23 -> 12031.8329 | AU25: =[1]Outputs!I23 -> 23661.63262 | AV25: =[1]Outputs!J23 -> 5440.133196 | AW25: =[1]Outputs!K23 -> 25909.17976 | AX25: =[1]Outputs!L23 -> 153176.7129 | AY25: =[1]Outputs!M23 -> 24969.68937 | AZ25: =[1]Outputs!O23 -> 33817.40354 | BA25: =[1]Outputs!P23 -> 37177.75851 | BB25: =[1]Outputs!Q23 -> 97101.47347 | BC25: =[1]Outputs!R23 -> 375704.6118 | BD25: =[1]Outputs!S23 -> 89348.61887
A26: BBAR before tax, second year of reg period | B26: =BBAR!G59 ->  | C26: 42930.85464 | D26: 86584.68079 | E26: 9456.087012 | F26: 33274.87729 | G26: 24152.4804 | H26: 12299.85748 | I26: 24119.6593 | J26: 5545.142912 | K26: 26619.51937 | L26: 157730.3874 | M26: 25588.28016 | O26: 34837.58369 | P26: 38094.7033 | Q26: 100069.6601 | R26: 387546.771 | S26: 91600.24032 | W26: 0 | X26: 0 | Y26: 0 | Z26: 0 | AA26: 0 | AB26: 0 | AC26: 0 | AD26: 0 | AE26: 0 | AF26: 0 | AG26: 0 | AH26: 0 | AI26: 0 | AJ26: 0 | AK26: 0 | AL26: 0 | AO26: =[1]Outputs!C24 -> 42930.85464 | AP26: =[1]Outputs!D24 -> 86584.68079 | AQ26: =[1]Outputs!E24 -> 9456.087012 | AR26: =[1]Outputs!F24 -> 33274.87729 | AS26: =[1]Outputs!G24 -> 24152.4804 | AT26: =[1]Outputs!H24 -> 12299.85748 | AU26: =[1]Outputs!I24 -> 24119.6593 | AV26: =[1]Outputs!J24 -> 5545.142912 | AW26: =[1]Outputs!K24 -> 26619.51937 | AX26: =[1]Outputs!L24 -> 157730.3874 | AY26: =[1]Outputs!M24 -> 25588.28016 | AZ26: =[1]Outputs!O24 -> 34837.58369 | BA26: =[1]Outputs!P24 -> 38094.7033 | BB26: =[1]Outputs!Q24 -> 100069.6601 | BC26: =[1]Outputs!R24 -> 387546.771 | BD26: =[1]Outputs!S24 -> 91600.24032
A27: BBAR before tax, third year of reg period | B27: =BBAR!H59 ->  | C27: 44412.8434 | D27: 91034.34966 | E27: 9752.88555 | F27: 34609.96312 | G27: 24979.18498 | H27: 12729.66822 | I27: 24815.84806 | J27: 5715.552302 | K27: 27539.40399 | L27: 164642.0823 | M27: 26669.16239 | O27: 36123.74661 | P27: 39489.70856 | Q27: 104145.3725 | R27: 404401.1725 | S27: 94905.19093 | W27: 0 | X27: 0 | Y27: =E27-AQ27 -> 0 | Z27: =F27-AR27 -> 0 | AA27: =G27-AS27 -> 0 | AB27: =H27-AT27 -> 0 | AC27: =I27-AU27 -> 0 | AD27: =J27-AV27 -> 0 | AE27: =K27-AW27 -> 0 | AF27: =L27-AX27 -> 0 | AG27: 0 | AH27: 0 | AI27: =P27-BA27 -> 0 | AJ27: =Q27-BB27 -> 0 | AK27: =R27-BC27 -> 0 | AL27: =S27-BD27 -> 0 | AO27: =[1]Outputs!C25 -> 44412.8434 | AP27: =[1]Outputs!D25 -> 91034.34966 | AQ27: =[1]Outputs!E25 -> 9752.88555 | AR27: =[1]Outputs!F25 -> 34609.96312 | AS27: =[1]Outputs!G25 -> 24979.18498 | AT27: =[1]Outputs!H25 -> 12729.66822 | AU27: =[1]Outputs!I25 -> 24815.84806 | AV27: =[1]Outputs!J25 -> 5715.552302 | AW27: =[1]Outputs!K25 -> 27539.40399 | AX27: =[1]Outputs!L25 -> 164642.0823 | AY27: =[1]Outputs!M25 -> 26669.16239 | AZ27: =[1]Outputs!O25 -> 36123.74661 | BA27: =[1]Outputs!P25 -> 39489.70856 | BB27: =[1]Outputs!Q25 -> 104145.3725 | BC27: =[1]Outputs!R25 -> 404401.1725 | BD27: =[1]Outputs!S25 -> 94905.19093
A28: BBAR before tax, fourth year of reg period | B28: =BBAR!I59 ->  | C28: 45837.08296 | D28: 95336.93239 | E28: 10039.0191 | F28: 35908.97773 | G28: 25806.7384 | H28: 13176.30499 | I28: 25588.43181 | J28: 5887.07848 | K28: 28425.93705 | L28: 171773.512 | M28: 27997.97383 | O28: 37399.79142 | P28: 40918.53451 | Q28: 108026.5448 | R28: 421033.5877 | S28: 98374.02316 | W28: 0 | X28: 0 | Y28: 0 | Z28: 0 | AA28: 0 | AB28: 0 | AC28: 0 | AD28: 0 | AE28: 0 | AF28: 0 | AG28: 0 | AH28: 0 | AI28: 0 | AJ28: 0 | AK28: 0 | AL28: 0 | AO28: =[1]Outputs!C26 -> 45837.08296 | AP28: =[1]Outputs!D26 -> 95336.93239 | AQ28: =[1]Outputs!E26 -> 10039.0191 | AR28: =[1]Outputs!F26 -> 35908.97773 | AS28: =[1]Outputs!G26 -> 25806.7384 | AT28: =[1]Outputs!H26 -> 13176.30499 | AU28: =[1]Outputs!I26 -> 25588.43181 | AV28: =[1]Outputs!J26 -> 5887.07848 | AW28: =[1]Outputs!K26 -> 28425.93705 | AX28: =[1]Outputs!L26 -> 171773.512 | AY28: =[1]Outputs!M26 -> 27997.97383 | AZ28: =[1]Outputs!O26 -> 37399.79142 | BA28: =[1]Outputs!P26 -> 40918.53451 | BB28: =[1]Outputs!Q26 -> 108026.5448 | BC28: =[1]Outputs!R26 -> 421033.5877 | BD28: =[1]Outputs!S26 -> 98374.02316
A29: BBAR before tax, fifth year of reg period | B29: =BBAR!J59 ->  | C29: 47210.57549 | D29: 99288.60031 | E29: 10299.21839 | F29: 37118.83536 | G29: 26647.62838 | H29: 13601.64865 | I29: 26304.92497 | J29: 6056.089436 | K29: 29269.34031 | L29: 178752.3247 | M29: 29140.65258 | O29: 38622.57955 | P29: 42336.41272 | Q29: 111779.5353 | R29: 437060.0526 | S29: 101924.1756 | W29: 0 | X29: 0 | Y29: 0 | Z29: 0 | AA29: 0 | AB29: 0 | AC29: 0 | AD29: 0 | AE29: 0 | AF29: 0 | AG29: 0 | AH29: 0 | AI29: 0 | AJ29: 0 | AK29: 0 | AL29: 0 | AO29: =[1]Outputs!C27 -> 47210.57549 | AP29: =[1]Outputs!D27 -> 99288.60031 | AQ29: =[1]Outputs!E27 -> 10299.21839 | AR29: =[1]Outputs!F27 -> 37118.83536 | AS29: =[1]Outputs!G27 -> 26647.62838 | AT29: =[1]Outputs!H27 -> 13601.64865 | AU29: =[1]Outputs!I27 -> 26304.92497 | AV29: =[1]Outputs!J27 -> 6056.089436 | AW29: =[1]Outputs!K27 -> 29269.34031 | AX29: =[1]Outputs!L27 -> 178752.3247 | AY29: =[1]Outputs!M27 -> 29140.65258 | AZ29: =[1]Outputs!O27 -> 38622.57955 | BA29: =[1]Outputs!P27 -> 42336.41272 | BB29: =[1]Outputs!Q27 -> 111779.5353 | BC29: =[1]Outputs!R27 -> 437060.0526 | BD29: =[1]Outputs!S27 -> 101924.1756
A30: Closing RAB, first year of reg period | B30: =RAB!F95 ->  | C30: 211061.4698 | D30: 553394.7515 | E30: 68229.0854 | F30: 294732.0254 | G30: 173134.4417 | H30: 93085.17467 | I30: 139169.5147 | J30: 43372.55544 | K30: 181732.8442 | L30: 1173801.991 | M30: 220927.5062 | O30: 230355.0728 | P30: 297000.9593 | Q30: 671907.7752 | R30: 3376593.587 | S30: 684490.7776 | W30: 0 | X30: 0 | Y30: 0 | Z30: 0 | AA30: 0 | AB30: 0 | AC30: 0 | AD30: 0 | AE30: 0 | AF30: 0 | AG30: 0 | AH30: 0 | AI30: 0 | AJ30: 0 | AK30: 0 | AL30: 0 | AO30: =[1]Outputs!C28 -> 211061.4698 | AP30: =[1]Outputs!D28 -> 553394.7515 | AQ30: =[1]Outputs!E28 -> 68229.0854 | AR30: =[1]Outputs!F28 -> 294732.0254 | AS30: =[1]Outputs!G28 -> 173134.4417 | AT30: =[1]Outputs!H28 -> 93085.17467 | AU30: =[1]Outputs!I28 -> 139169.5147 | AV30: =[1]Outputs!J28 -> 43372.55544 | AW30: =[1]Outputs!K28 -> 181732.8442 | AX30: =[1]Outputs!L28 -> 1173801.991 | AY30: =[1]Outputs!M28 -> 220927.5062 | AZ30: =[1]Outputs!O28 -> 230355.0728 | BA30: =[1]Outputs!P28 -> 297000.9593 | BB30: =[1]Outputs!Q28 -> 671907.7752 | BC30: =[1]Outputs!R28 -> 3376593.587 | BD30: =[1]Outputs!S28 -> 684490.7776
A31: Closing RAB, second year of reg period | B31: =RAB!G95 ->  | C31: 217099.5828 | D31: 593568.0497 | E31: 69692.99581 | F31: 305969.3078 | G31: 179230.8504 | H31: 96175.87118 | I31: 140497.0604 | J31: 44220.81692 | K31: 189134.6488 | L31: 1210779.585 | M31: 229010.7031 | O31: 240551.2736 | P31: 306718.5256 | Q31: 701380.2477 | R31: 3510716.526 | S31: 702234.6642 | W31: 0 | X31: 0 | Y31: 0 | Z31: 0 | AA31: 0 | AB31: 0 | AC31: 0 | AD31: 0 | AE31: 0 | AF31: 0 | AG31: 0 | AH31: 0 | AI31: 0 | AJ31: 0 | AK31: 0 | AL31: 0 | AO31: =[1]Outputs!C29 -> 217099.5828 | AP31: =[1]Outputs!D29 -> 593568.0497 | AQ31: =[1]Outputs!E29 -> 69692.99581 | AR31: =[1]Outputs!F29 -> 305969.3078 | AS31: =[1]Outputs!G29 -> 179230.8504 | AT31: =[1]Outputs!H29 -> 96175.87118 | AU31: =[1]Outputs!I29 -> 140497.0604 | AV31: =[1]Outputs!J29 -> 44220.81692 | AW31: =[1]Outputs!K29 -> 189134.6488 | AX31: =[1]Outputs!L29 -> 1210779.585 | AY31: =[1]Outputs!M29 -> 229010.7031 | AZ31: =[1]Outputs!O29 -> 240551.2736 | BA31: =[1]Outputs!P29 -> 306718.5256 | BB31: =[1]Outputs!Q29 -> 701380.2477 | BC31: =[1]Outputs!R29 -> 3510716.526 | BD31: =[1]Outputs!S29 -> 702234.6642
A32: Closing RAB, third year of reg period | B32: =RAB!H95 ->  | C32: 220955.6198 | D32: 630450.4751 | E32: 72262.80512 | F32: 316667.2037 | G32: 183917.0369 | H32: 99654.3757 | I32: 142899.8706 | J32: 44968.27647 | K32: 193038.3181 | L32: 1271930.622 | M32: 241256.9156 | O32: 249313.0847 | P32: 317439.6026 | Q32: 727649.4245 | R32: 3644110.967 | S32: 721034.2895 | W32: 0 | X32: 0 | Y32: 0 | Z32: 0 | AA32: 0 | AB32: 0 | AC32: 0 | AD32: 0 | AE32: 0 | AF32: 0 | AG32: 0 | AH32: 0 | AI32: 0 | AJ32: 0 | AK32: 0 | AL32: 0 | AO32: =[1]Outputs!C30 -> 220955.6198 | AP32: =[1]Outputs!D30 -> 630450.4751 | AQ32: =[1]Outputs!E30 -> 72262.80512 | AR32: =[1]Outputs!F30 -> 316667.2037 | AS32: =[1]Outputs!G30 -> 183917.0369 | AT32: =[1]Outputs!H30 -> 99654.3757 | AU32: =[1]Outputs!I30 -> 142899.8706 | AV32: =[1]Outputs!J30 -> 44968.27647 | AW32: =[1]Outputs!K30 -> 193038.3181 | AX32: =[1]Outputs!L30 -> 1271930.622 | AY32: =[1]Outputs!M30 -> 241256.9156 | AZ32: =[1]Outputs!O30 -> 249313.0847 | BA32: =[1]Outputs!P30 -> 317439.6026 | BB32: =[1]Outputs!Q30 -> 727649.4245 | BC32: =[1]Outputs!R30 -> 3644110.967 | BD32: =[1]Outputs!S30 -> 721034.2895
A33: Closing RAB, fourth year of reg period | B33: =RAB!I95 ->  | C33: 223503.5107 | D33: 657032.4593 | E33: 73610.04232 | F33: 324867.1361 | G33: 188738.9484 | H33: 103008.971 | I33: 145453.435 | J33: 45660.5166 | K33: 197688.6403 | L33: 1321564.499 | M33: 258207.3946 | O33: 258355.1752 | P33: 327502.2877 | Q33: 748985.8248 | R33: 3768824.638 | S33: 740896.4209 | W33: 0 | X33: 0 | Y33: 0 | Z33: 0 | AA33: 0 | AB33: 0 | AC33: 0 | AD33: 0 | AE33: 0 | AF33: 0 | AG33: 0 | AH33: 0 | AI33: 0 | AJ33: 0 | AK33: 0 | AL33: 0 | AO33: =[1]Outputs!C31 -> 223503.5107 | AP33: =[1]Outputs!D31 -> 657032.4593 | AQ33: =[1]Outputs!E31 -> 73610.04232 | AR33: =[1]Outputs!F31 -> 324867.1361 | AS33: =[1]Outputs!G31 -> 188738.9484 | AT33: =[1]Outputs!H31 -> 103008.971 | AU33: =[1]Outputs!I31 -> 145453.435 | AV33: =[1]Outputs!J31 -> 45660.5166 | AW33: =[1]Outputs!K31 -> 197688.6403 | AX33: =[1]Outputs!L31 -> 1321564.499 | AY33: =[1]Outputs!M31 -> 258207.3946 | AZ33: =[1]Outputs!O31 -> 258355.1752 | BA33: =[1]Outputs!P31 -> 327502.2877 | BB33: =[1]Outputs!Q31 -> 748985.8248 | BC33: =[1]Outputs!R31 -> 3768824.638 | BD33: =[1]Outputs!S31 -> 740896.4209
A34: Closing RAB, fifth year of reg period | B34: =RAB!J95 ->  | C34: 224899.7823 | D34: 687202.7909 | E34: 74982.87618 | F34: 331654.3873 | G34: 193950.8489 | H34: 105770.2016 | I34: 147745.6631 | J34: 46299.63479 | K34: 200442.0405 | L34: 1373821.378 | M34: 265623.992 | O34: 265664.7443 | P34: 337469.5467 | Q34: 770218.9619 | R34: 3876169.285 | S34: 761689.6057 | W34: 0 | X34: 0 | Y34: 0 | Z34: 0 | AA34: 0 | AB34: 0 | AC34: 0 | AD34: 0 | AE34: 0 | AF34: 0 | AG34: 0 | AH34: 0 | AI34: 0 | AJ34: 0 | AK34: 0 | AL34: 0 | AO34: =[1]Outputs!C32 -> 224899.7823 | AP34: =[1]Outputs!D32 -> 687202.7909 | AQ34: =[1]Outputs!E32 -> 74982.87618 | AR34: =[1]Outputs!F32 -> 331654.3873 | AS34: =[1]Outputs!G32 -> 193950.8489 | AT34: =[1]Outputs!H32 -> 105770.2016 | AU34: =[1]Outputs!I32 -> 147745.6631 | AV34: =[1]Outputs!J32 -> 46299.63479 | AW34: =[1]Outputs!K32 -> 200442.0405 | AX34: =[1]Outputs!L32 -> 1373821.378 | AY34: =[1]Outputs!M32 -> 265623.992 | AZ34: =[1]Outputs!O32 -> 265664.7443 | BA34: =[1]Outputs!P32 -> 337469.5467 | BB34: =[1]Outputs!Q32 -> 770218.9619 | BC34: =[1]Outputs!R32 -> 3876169.285 | BD34: =[1]Outputs!S32 -> 761689.6057
C39: The data panel below is a copy of the outputs from the 2015 DPP reset model | V39: Reconciliation of the this waterfall model with the 2015 financial model outputs is achieved when the tan coloured panel below indicates zero values. This reconciliation requires the "mode" setting at cell D5 on the Waterfall sheet to be set to 0.
C40: Alpine Energy | D40: Aurora Energy | E40: Centralines | F40: EA Networks | G40: Eastland Network | H40: Electricity Invercargill | I40: Horizon Energy | J40: Nelson Electricity | K40: Network Tasman | L40: Orion | M40: OtagoNet | N40: Powerco | O40: The Lines Company | P40: Top Energy | Q40: Unison Networks | R40: Vector Lines | S40: Wellington Electricity | W40: Alpine Energy | X40: Aurora Energy | Y40: Centralines | Z40: EA Networks | AA40: Eastland Network | AB40: Electricity Invercargill | AC40: Horizon Energy | AD40: Nelson Electricity | AE40: Network Tasman | AF40: Orion | AG40: OtagoNet | AH40: Powerco | AI40: The Lines Company | AJ40: Top Energy | AK40: Unison Networks | AL40: Vector Lines | AM40: Wellington Electricity
A41: PV at 1 Apr 2015 of BBAR | C41: 207660.3982 | D41: 391914.4852 | E41: 43025.68549 | F41: 172569.6271 | G41: 114700.0865 | H41: 56269.82546 | I41: 114486.9463 | J41: 25582.49858 | K41: 131754.879 | L41: No reconciliation for Orion as the 2015 reset model did not produce meaningful outputs for Orion | M41: 114835.089 | O41: 155390.3676 | P41: 193138.7089 | Q41: 468095.9529 | R41: 1846481.339 | S41: 461489.8722 | W41: =C11-C41 -> -9996.739836 | X41: =D11-D41 -> 12817.4058 | Y41: =E11-E41 -> 383.4964941 | Z41: =F11-F41 -> -18439.75628 | AA41: =G11-G41 -> -3345.814039 | AB41: =H11-H41 -> 534.7935028 | AC41: =I11-I41 -> -3671.695564 | AD41: =J11-J41 -> -85.82100783 | AE41: =K11-K41 -> -9167.022427 | AF41: No reconciliation for Orion as the 2015 reset model did not produce meaningful outputs for Orion | AG41: =M11-M41 -> 4633.356445 | AI41: =O11-O41 -> 5455.286028 | AJ41: =P11-P41 -> -16969.0869 | AK41: =Q11-Q41 -> -4579.465622 | AL41: =R11-R41 -> -45107.60409 | AM41: =S11-S41 -> -37884.88105
A42: Starting price for industry-wide X factor | C42: 45361.38032 | D42: 85609.88118 | E42: 9398.539633 | F42: 37696.14503 | G42: 25055.11062 | H42: 12291.59231 | I42: 25008.55222 | J42: 5588.24628 | K42: 28780.563 | M42: 25084.60058 | O42: 33943.50402 | P42: 42189.2595 | Q42: 102250.9767 | R42: 403345.7655 | S42: 100807.9431 | W42: -2708.786234 | X42: =D12-D42 -> 1724.660753 | Y42: -31.54605538 | Z42: -4437.432366 | AA42: -1026.674518 | AB42: -34.08187421 | AC42: -1096.428227 | AD42: -86.47904501 | AE42: -2328.102657 | AG42: 694.7417166 | AH42: =N12-N42 ->  | AI42: =O12-O42 -> 764.3650434 | AJ42: =P12-P42 -> -4174.727954 | AK42: =Q12-Q42 -> -2231.677553 | AL42: =R12-R42 -> -14638.68929 | AM42: =S12-S42 -> -9400.893929
A43: Starting price for applicable X factor | C43: 45361.38032 | D43: 72030.72752 | E43: 9398.539633 | F43: 37696.14503 | G43: 25055.11062 | H43: 12291.59231 | I43: 25008.55222 | J43: 5588.24628 | K43: 28780.563 | M43: 25084.60058 | O43: 33943.50402 | P43: 42189.2595 | Q43: 102250.9767 | R43: 403345.7655 | S43: 100807.9431 | W43: -2708.786234 | X43: 15303.81441 | Y43: -31.54605538 | Z43: -4437.432366 | AA43: -1026.674518 | AB43: -34.08187421 | AC43: -1096.428227 | AD43: -86.47904501 | AE43: -2328.102657 | AG43: 694.7417166 | AI43: 764.3650434 | AJ43: -4174.727954 | AK43: -2231.677553 | AL43: -14638.68929 | AM43: -9400.893929
A44: PV at 1 Apr 2015 of MAR (applicable X) | C44: 207660.3982 | D44: 391914.4852 | E44: 43025.68549 | F44: 172569.6271 | G44: 114700.0865 | H44: 56269.82546 | I44: 114486.9463 | J44: 25582.49858 | K44: 131754.879 | M44: 114835.089 | O44: 155390.3676 | P44: 193138.7089 | Q44: 468095.9529 | R44: 1846481.339 | S44: 461489.8722 | W44: -9996.739836 | X44: 12817.4058 | Y44: 383.4964941 | Z44: -18439.75628 | AA44: -3345.814039 | AB44: 534.7935028 | AC44: -3671.695564 | AD44: -85.82100783 | AE44: -9167.022427 | AG44: 4633.356445 | AI44: 5455.286028 | AJ44: -16969.0869 | AK44: -4579.465622 | AL44: -45107.60409 | AM44: -37884.88105
A45: MAR (industry-wide X factor) 2016 | C45: 45361.38032 | D45: 85609.88118 | E45: 9398.539633 | F45: 37696.14503 | G45: 25055.11062 | H45: 12291.59231 | I45: 25008.55222 | J45: 5588.24628 | K45: 28780.563 | M45: 25084.60058 | O45: 33943.50402 | P45: 42189.2595 | Q45: 102250.9767 | R45: 403345.7655 | S45: 100807.9431 | W45: -2708.786234 | X45: 1724.660753 | Y45: -31.54605538 | Z45: -4437.432366 | AA45: -1026.674518 | AB45: -34.08187421 | AC45: -1096.428227 | AD45: -86.47904501 | AE45: -2328.102657 | AG45: 694.7417166 | AI45: 764.3650434 | AJ45: -4174.727954 | AK45: -2231.677553 | AL45: -14638.68929 | AM45: -9400.893929
A46: MAR (industry-wide X factor) 2017 | C46: 46302.60737 | D46: 87386.24546 | E46: 9593.554857 | F46: 38478.32209 | G46: 25574.99224 | H46: 12546.637 | I46: 25527.46777 | J46: 5704.19973 | K46: 29377.74598 | M46: 25605.0941 | O46: 34647.81557 | P46: 43064.66656 | Q46: 104372.6358 | R46: 411714.9982 | S46: 102899.6599 | W46: -2818.197506 | X46: 1651.504714 | Y46: -43.88509681 | Z46: -4570.994206 | AA46: -1077.950822 | AB46: -50.07919055 | AC46: -1149.006798 | AD46: -95.13640017 | AE46: -2409.406727 | AG46: 676.9998828 | AI46: 736.9303322 | AJ46: -4308.771256 | AK46: -2402.748813 | AL46: -15427.31198 | AM46: -9709.980015
A47: MAR (industry-wide X factor) 2018 | C47: 47259.52792 | D47: 89192.22787 | E47: 9791.821657 | F47: 39273.54075 | G47: 26103.54208 | H47: 12805.93416 | I47: 26055.03544 | J47: 5822.086524 | K47: 29984.88607 | M47: 26134.26605 | O47: 35363.87042 | P47: 43954.66966 | Q47: 106529.6703 | R47: 420223.7748 | S47: 105026.2529 | W47: -2894.643162 | X47: 1648.363925 | Y47: -48.78962067 | Z47: -4679.655287 | AA47: -1110.483122 | AB47: -56.34531568 | AC47: -1182.95795 | AD47: -99.45054948 | AE47: -2470.490287 | AG47: 679.989327 | AI47: 737.347899 | AJ47: -4414.042711 | AK47: -2495.091001 | AL47: -15912.03217 | AM47: -9949.662852
A48: MAR (industry-wide X factor) 2019 | C48: 48220.47165 | D48: 91005.80317 | E48: 9990.922031 | F48: 40072.10275 | G48: 26634.3141 | H48: 13066.32149 | I48: 26584.82116 | J48: 5940.46895 | K48: 30594.57875 | M48: 26665.66279 | O48: 36082.93579 | P48: 44848.41461 | Q48: 108695.7736 | R48: 428768.3249 | S48: 107161.7867 | W48: -2968.289202 | X48: 1651.60046 | Y48: -53.02935363 | Z48: -4786.339573 | AA48: -1141.393966 | AB48: -61.74086671 | AC48: -1215.302121 | AD48: -103.380256 | AE48: -2529.895054 | AG48: 684.8776916 | AI48: 740.3069002 | AJ48: -4516.975122 | AK48: -2580.502711 | AL48: -16370.34741 | AM48: -10183.66486
A49: MAR (industry-wide X factor) 2020 | C49: 49184.88109 | D49: 92825.91923 | E49: 10190.74047 | F49: 40873.5448 | G49: 27167.00038 | H49: 13327.64792 | I49: 27116.51758 | J49: 6059.278329 | K49: 31206.47032 | M49: 27198.97605 | O49: 36804.59451 | P49: 45745.38291 | Q49: 110869.6891 | R49: 437343.6914 | S49: 109305.0224 | W49: -3027.654986 | X49: 1684.63247 | Y49: -54.08994071 | Z49: -4882.066365 | AA49: -1164.221845 | AB49: -62.97568405 | AC49: -1239.608163 | AD49: -105.4478611 | AE49: -2580.492955 | AG49: 698.5752454 | AI49: 755.1130382 | AJ49: -4607.314624 | AK49: -2632.112765 | AL49: -16697.75436 | AM49: -10387.33816
A50: MAR (applicable X factor) 2016 | C50: 45361.38032 | D50: 72030.72752 | E50: 9398.539633 | F50: 37696.14503 | G50: 25055.11062 | H50: 12291.59231 | I50: 25008.55222 | J50: 5588.24628 | K50: 28780.563 | M50: 25084.60058 | O50: 33943.50402 | P50: 42189.2595 | Q50: 102250.9767 | R50: 403345.7655 | S50: 100807.9431 | W50: -2708.786234 | X50: 15303.81441 | Y50: -31.54605538 | Z50: -4437.432366 | AA50: -1026.674518 | AB50: -34.08187421 | AC50: -1096.428227 | AD50: -86.47904501 | AE50: -2328.102657 | AG50: 694.7417166 | AI50: 764.3650434 | AJ50: -4174.727954 | AK50: -2231.677553 | AL50: -14638.68929 | AM50: -9400.893929
A51: MAR (applicable X factor) 2017 | C51: 46302.60737 | D51: 80069.08527 | E51: 9593.554857 | F51: 38478.32209 | G51: 25574.99224 | H51: 12546.637 | I51: 25527.46777 | J51: 5704.19973 | K51: 29377.74598 | M51: 25605.0941 | O51: 34647.81557 | P51: 43064.66656 | Q51: 104372.6358 | R51: 411714.9982 | S51: 102899.6599 | W51: -2818.197506 | X51: 8968.664904 | Y51: -43.88509681 | Z51: -4570.994206 | AA51: -1077.950822 | AB51: -50.07919055 | AC51: -1149.006798 | AD51: -95.13640017 | AE51: -2409.406727 | AG51: 676.9998828 | AI51: 736.9303322 | AJ51: -4308.771256 | AK51: -2402.748813 | AL51: -15427.31198 | AM51: -9709.980015
A52: MAR (applicable X factor) 2018 | C52: 47259.52792 | D52: 88997.2687 | E52: 9791.821657 | F52: 39273.54075 | G52: 26103.54208 | H52: 12805.93416 | I52: 26055.03544 | J52: 5822.086524 | K52: 29984.88607 | M52: 26134.26605 | O52: 35363.87042 | P52: 43954.66966 | Q52: 106529.6703 | R52: 420223.7748 | S52: 105026.2529 | W52: -2894.643162 | X52: 1843.323098 | Y52: -48.78962067 | Z52: -4679.655287 | AA52: -1110.483122 | AB52: -56.34531568 | AC52: -1182.95795 | AD52: -99.45054948 | AE52: -2470.490287 | AG52: 679.989327 | AI52: 737.347899 | AJ52: -4414.042711 | AK52: -2495.091001 | AL52: -15912.03217 | AM52: -9949.662852
A53: MAR (applicable X factor) 2019 | C53: 48220.47165 | D53: 98888.69213 | E53: 9990.922031 | F53: 40072.10275 | G53: 26634.3141 | H53: 13066.32149 | I53: 26584.82116 | J53: 5940.46895 | K53: 30594.57875 | M53: 26665.66279 | O53: 36082.93579 | P53: 44848.41461 | Q53: 108695.7736 | R53: 428768.3249 | S53: 107161.7867 | W53: -2968.289202 | X53: -6231.288501 | Y53: -53.02935363 | Z53: -4786.339573 | AA53: -1141.393966 | AB53: -61.74086671 | AC53: -1215.302121 | AD53: -103.380256 | AE53: -2529.895054 | AG53: 684.8776916 | AI53: 740.3069002 | AJ53: -4516.975122 | AK53: -2580.502711 | AL53: -16370.34741 | AM53: -10183.66486
A54: MAR (applicable X factor) 2020 | C54: 49184.88109 | D54: 109843.5814 | E54: 10190.74047 | F54: 40873.5448 | G54: 27167.00038 | H54: 13327.64792 | I54: 27116.51758 | J54: 6059.278329 | K54: 31206.47032 | M54: 27198.97605 | O54: 36804.59451 | P54: 45745.38291 | Q54: 110869.6891 | R54: 437343.6914 | S54: 109305.0224 | W54: -3027.654986 | X54: -15333.02974 | Y54: -54.08994071 | Z54: -4882.066365 | AA54: -1164.221845 | AB54: -62.97568405 | AC54: -1239.608163 | AD54: -105.4478611 | AE54: -2580.492955 | AG54: 698.5752454 | AI54: 755.1130382 | AJ54: -4607.314624 | AK54: -2632.112765 | AL54: -16697.75436 | AM54: -10387.33816
A55: BBAR before tax 2016 | C55: 44262.87852 | D55: 82527.26815 | E55: 9298.802075 | F55: 36223.42434 | G55: 24496.12922 | H55: 12027.78459 | I55: 24667.32379 | J55: 5472.027364 | K55: 28470.03454 | M55: 23955.39914 | O55: 33167.50156 | P55: 40709.52852 | Q55: 98760.43574 | R55: 386984.5221 | S55: 98150.99584 | W55: -2517.232518 | X55: 636.6259312 | Y55: -75.72402368 | Z55: -3862.457972 | AA55: -939.2482491 | AB55: 4.048311421 | AC55: -1005.691167 | AD55: -31.8941682 | AE55: -2560.854776 | AG55: 1014.290228 | AI55: 649.9019785 | AJ55: -3531.770014 | AK55: -1658.962269 | AL55: -11279.91034 | AM55: -8802.376974
A56: BBAR before tax 2017 | C56: 45842.34948 | D56: 85841.67701 | E56: 9535.807137 | F56: 37776.65267 | G56: 25292.4432 | H56: 12408.15399 | I56: 25360.67477 | J56: 5637.866459 | K56: 29228.44669 | M56: 24984.67506 | O56: 34274.51101 | P56: 42394.89394 | Q56: 102597.348 | R56: 402846.1348 | S56: 101601.4732 | W56: -2911.494839 | X56: 743.0037841 | Y56: -79.72012494 | Z56: -4501.775377 | AA56: -1139.962795 | AB56: -108.2965089 | AC56: -1241.015474 | AD56: -92.72354695 | AE56: -2608.927322 | AG56: 603.6050989 | AI56: 563.0726804 | AJ56: -4300.190641 | AK56: -2527.687894 | AL56: -15299.36384 | AM56: -10001.23292
A57: BBAR before tax 2018 | C57: 47412.55837 | D57: 89457.19143 | E57: 9793.889832 | F57: 39433.85853 | G57: 26134.34169 | H57: 12823.87371 | I57: 26078.69725 | J57: 5827.12527 | K57: 30082.09719 | M57: 26158.10138 | O57: 35458.49905 | P57: 44071.65981 | Q57: 106684.1914 | R57: 421172.6251 | S57: 105175.3026 | W57: -2999.714975 | X57: 1577.158223 | Y57: -41.00428222 | Z57: -4823.895409 | AA57: -1155.156705 | AB57: -94.20548083 | AC57: -1262.849191 | AD57: -111.5729678 | AE57: -2542.693194 | AG57: 511.0610157 | AI57: 665.2475549 | AJ57: -4581.951253 | AK57: -2538.818853 | AL57: -16771.45257 | AM57: -10270.11167
A58: BBAR before tax 2019 | C58: 48904.22457 | D58: 92909.92413 | E58: 10057.79444 | F58: 40969.10283 | G58: 26975.60922 | H58: 13236.51588 | I58: 26801.97606 | J58: 6018.097094 | K58: 30818.25531 | M58: 27366.03012 | O58: 36565.31217 | P58: 45719.75649 | Q58: 110843.8044 | R58: 439140.8437 | S58: 108761.5007 | W58: -3067.14161 | X58: 2427.008255 | Y58: -18.77533985 | Z58: -5060.125097 | AA58: -1168.870826 | AB58: -60.210891 | AC58: -1213.544241 | AD58: -131.0186134 | AE58: -2392.31826 | AG58: 631.9437065 | AI58: 834.4792536 | AJ58: -4801.221985 | AK58: -2817.259597 | AL58: -18107.25595 | AM58: -10387.4775
A59: BBAR before tax 2020 | C59: 50173.56571 | D59: 96091.47743 | E59: 10307.08363 | F59: 42367.61408 | G59: 27785.27485 | H59: 13612.05368 | I59: 27472.69584 | J59: 6191.13922 | K59: 31416.6757 | M59: 28536.5813 | O59: 37574.55524 | P59: 47285.81519 | Q59: 114767.2683 | R59: 455681.2277 | S59: 112212.4705 | W59: -2962.990221 | X59: 3197.122886 | Y59: -7.865240025 | Z59: -5248.778723 | AA59: -1137.646471 | AB59: -10.40503787 | AC59: -1167.770869 | AD59: -135.0497836 | AE59: -2147.335398 | AG59: 604.0712791 | AI59: 1048.024312 | AJ59: -4949.402466 | AK59: -2987.733018 | AL59: -18621.17515 | AM59: -10288.29493
A60: Closing RAB 2016 | C60: 210242.7736 | D60: 563446.2908 | E60: 58616.60088 | F60: 304205.3516 | G60: 175604.4545 | H60: 89399.16597 | I60: 133118.2574 | J60: 42982.40875 | K60: 181162.3053 | M60: 221918.6085 | O60: 214523.6224 | P60: 305007.2431 | Q60: 654966.4049 | R60: 3242790.705 | S60: 675256.8439 | W60: 818.6961988 | X60: -10051.53926 | Y60: 9612.484525 | Z60: -9473.326208 | AA60: -2470.012855 | AB60: 3686.008706 | AC60: 6051.257309 | AD60: 390.1466871 | AE60: 570.5388354 | AG60: -991.1022674 | AI60: 15831.4504 | AJ60: -8006.283823 | AK60: 16941.37031 | AL60: 133802.8813 | AM60: 9233.933734
A61: Closing RAB 2017 | C61: 212726.1961 | D61: 582641.4927 | E61: 59357.8012 | F61: 316134.4124 | G61: 179507.2113 | H61: 91265.21429 | I61: 134645.2734 | J61: 43733.75917 | K61: 182423.9382 | M61: 232410.351 | O61: 219571.4315 | P61: 315978.9554 | Q61: 677351.6989 | R61: 3353145.558 | S61: 684437.5534 | W61: 4373.386744 | X61: 10926.55693 | Y61: 10335.19461 | Z61: -10165.10462 | AA61: -276.3608961 | AB61: 4910.656895 | AC61: 5851.787044 | AD61: 487.0577527 | AE61: 6710.710628 | AG61: -3399.647835 | AI61: 20979.84209 | AJ61: -9260.429825 | AK61: 24028.54884 | AL61: 157570.9681 | AM61: 17797.11078
A62: Closing RAB 2018 | C62: 211780.8514 | D62: 600209.1944 | E62: 59998.49335 | F62: 326506.5788 | G62: 182682.6959 | H62: 93339.28449 | I62: 136333.1047 | J62: 44449.28479 | K62: 182983.541 | M62: 243260.5357 | O62: 223790.0701 | P62: 326098.6286 | Q62: 697659.5536 | R62: 3470944.217 | S62: 693984.8417 | W62: 9174.768432 | X62: 30241.28064 | Y62: 12264.31177 | Z62: -9839.3751 | AA62: 1234.341032 | AB62: 6315.091211 | AC62: 6566.765939 | AD62: 518.9916756 | AE62: 10054.77711 | AG62: -2003.620063 | AI62: 25523.0146 | AJ62: -8659.026041 | AK62: 29989.87085 | AL62: 173166.7508 | AM62: 27049.44787
A63: Closing RAB 2019 | C63: 210642.1442 | D63: 614884.9213 | E63: 61032.58119 | F63: 334088.9166 | G63: 186487.2725 | H63: 95208.97758 | I63: 138438.2322 | J63: 45283.12157 | K63: 181039.3139 | M63: 254712.8493 | O63: 227283.2722 | P63: 335966.8778 | Q63: 722396.0456 | R63: 3577850.485 | S63: 703591.7848 | W63: 12861.36643 | X63: 42147.53794 | Y63: 12577.46113 | Z63: -9221.780502 | AA63: 2251.675895 | AB63: 7799.993404 | AC63: 7015.202856 | AD63: 377.3950312 | AE63: 16649.32638 | AG63: 3494.545272 | AI63: 31071.903 | AJ63: -8464.590064 | AK63: 26589.77915 | AL63: 190974.1528 | AM63: 37304.63614
A64: Closing RAB 2020 | C64: 206019.3073 | D64: 629562.3564 | E64: 62011.75992 | F64: 341563.0984 | G64: 190773.3252 | H64: 96975.79898 | I64: 140818.6315 | J64: 45867.79813 | K64: 179101.9236 | M64: 265410.6866 | O64: 230837.2002 | P64: 346340.009 | Q64: 744488.1891 | R64: 3668968.329 | S64: 714561.8001 | W64: 18880.47504 | X64: 57640.4345 | Y64: 12971.11626 | Z64: -9908.711074 | AA64: 3177.523759 | AB64: 8794.402617 | AC64: 6927.031657 | AD64: 431.8366575 | AE64: 21340.11693 | AG64: 213.3053694 | AI64: 34827.54403 | AJ64: -8870.462307 | AK64: 25730.77275 | AL64: 207200.9569 | AM64: 47127.8056
